,Directorate,Supplier Name,Supplier Invoice No,Payment Date,Gross Invoice Value,Vat Amount,Vendor Id,Purpose of Expenditure,Description,Redact flag,Year,Period
1,Community and Housing,SOUTHPARK RESIDENTIAL HOME,965814,10-May-23,3220.32,0,19,Older People Placements - East,321017              Nursing & Residential Care Homes,A,2023,2
2,Community and Housing,SOUTHPARK RESIDENTIAL HOME,966164,10-May-23,2965.2,0,19,Older People Placements - East,321017              Nursing & Residential Care Homes,A,2023,2
3,Community and Housing,SOUTHPARK RESIDENTIAL HOME,969253,19-May-23,1495.09,0,19,Older People Placements - East,321017              Nursing & Residential Care Homes,A,2023,2
4,"Children, Schools and Family",MORE HOUSE SCHOOL,30264,22-May-23,6295,0,345,Non-Delegated Statements,170000              Education,A,2023,2
5,"Children, Schools and Family",MORE HOUSE SCHOOL,30268,22-May-23,9315,0,345,SEN Residential (DSG),170000              Education,A,2023,2
6,"Children, Schools and Family",MORE HOUSE SCHOOL,30292,22-May-23,6912,0,345,Non-Delegated Statements,170000              Education,A,2023,2
7,"Children, Schools and Family",MORE HOUSE SCHOOL,30011,22-May-23,6295,0,345,Non-Delegated Statements,170000              Education,A,2023,2
8,"Children, Schools and Family",MORE HOUSE SCHOOL,30030,22-May-23,6912,0,345,Non-Delegated Statements,170000              Education,A,2023,2
9,"Children, Schools and Family",MORE HOUSE SCHOOL,30037,22-May-23,6093,0,345,Non-Delegated Statements,170000              Education,A,2023,2
10,"Children, Schools and Family",MORE HOUSE SCHOOL,30161,22-May-23,6912,0,345,Non-Delegated Statements,170000              Education,A,2023,2
11,"Children, Schools and Family",MORE HOUSE SCHOOL,30257,22-May-23,9932,0,345,SEN Residential (DSG),170000              Education,A,2023,2
12,"Children, Schools and Family",MORE HOUSE SCHOOL,30315,22-May-23,9932,0,345,SEN Residential (DSG),170000              Education,A,2023,2
13,"Children, Schools and Family",MORE HOUSE SCHOOL,30391,22-May-23,6093,0,345,Non-Delegated Statements,170000              Education,A,2023,2
14,Community and Housing,THE WHITE HOUSE NURSING HOME,966143,10-May-23,3396,0,611,Older People Placements - East,321000              Social Community Care Supplies & Services - Adult,A,2023,2
15,"Children, Schools and Family",BLOSSOM HOUSE SCHOOL,9343,02-May-23,17250,0,777,Non-Delegated Statements,170000              Education,A,2023,2
16,"Children, Schools and Family",BLOSSOM HOUSE SCHOOL,9364,02-May-23,20000,0,777,Non-Delegated Statements,170000              Education,A,2023,2
17,"Children, Schools and Family",BLOSSOM HOUSE SCHOOL,9533,29-May-23,6072,0,777,Non-Delegated Statements,170000              Education,A,2023,2
18,Corporate Services,Quadient,807646138,22-May-23,1200,0,793,Legal Shared Service,300000              Mail Services,A,2023,2
19,Corporate Services,Quadient,840499100,23-May-23,15224.46,16,793,Post services,300000              Mail Services,A,2023,2
20,Corporate Services,Quadient,93027591,23-May-23,628.09,104.68,793,Post services,300000              Mail Services,A,2023,2
21,Corporate Services,Quadient,840499101,23-May-23,16213.64,16,793,Post services,300000              Mail Services,A,2023,2
22,Corporate Services,Quadient,CHAPS POA,25-May-23,20000,0,793,Post services,300000              Mail Services,A,2023,2
23,Unassigned,PERSEID SCHOOL,SCHOOLS 2324/2 A,09-May-23,376902.61,0,983,Schools,170000              Education,A,2023,2
24,Community and Housing,MOUNT CARMEL HOSTEL,24014,04-May-23,1028.56,0,1053,ASC - Substance Misuse - Drugs,321017              Nursing & Residential Care Homes,A,2023,2
25,Community and Housing,SUTTON NURSING HOMES LTD,965764,10-May-23,3056.44,0,1208,Older People Placements - East,321017              Nursing & Residential Care Homes,A,2023,2
26,Community and Housing,SUTTON NURSING HOMES LTD,965853,10-May-23,3087.16,0,1208,Older People Placements - East,321017              Nursing & Residential Care Homes,A,2023,2
27,Unassigned,L.B OF RICHMOND UPON THAMES,�S106/21/3223/,08-May-23,1600,0,1353,Corporate Services,OLA,A,2023,2
28,Corporate Services,L.B OF RICHMOND UPON THAMES,20144992,10-May-23,7200,0,1353,SLLP Client Income,OLA,A,2023,2
29,Unassigned,MELROSE SPECIAL SCHOOL,SCHOOLS 2324/2 A,09-May-23,415971.33,0,1393,Schools,170000              Education,A,2023,2
30,Unassigned,WILLIAM MORRIS PRIMARY SCHOOL,SCHOOLS 2324/2 A,09-May-23,158216.8,0,1416,Schools,170000              Education,A,2023,2
31,Unassigned,ST THOMAS OF CANTERBURY PRIMARY,SCHOOLS 2324/2 A,09-May-23,212111.76,0,1418,Schools,170000              Education,A,2023,2
32,Unassigned,PRIORY C OF E MIDDLE SCHOOL,SCHOOLS 2324/2 A,09-May-23,97299.88,0,1420,Schools,170000              Education,A,2023,2
33,Unassigned,LIBERTY PRIMARY SCHOOL,SCHOOLS 2324/2 A,09-May-23,200982.28,0,1424,Schools,170000              Education,A,2023,2
34,Unassigned,HILLCROSS PRIMARY SCHOOL,SCHOOLS 2324/2 A,09-May-23,193490.65,0,1425,Schools,170000              Education,A,2023,2
35,Unassigned,CRANMER PRIMARY SCHOOL,SCHOOLS 2324/2 A,09-May-23,263498.88,0,1426,Schools,170000              Education,A,2023,2
36,Unassigned,WIMBLEDON COLLEGE SCHOOL,SCHOOLS 2324/2 A,09-May-23,695861.19,0,1428,Schools,170000              Education,A,2023,2
37,Unassigned,URSULINE HIGH SCHOOL,SCHOOLS 2324/2 A,09-May-23,738589.58,0,1429,Schools,170000              Education,A,2023,2
38,"Children, Schools and Family",URSULINE HIGH SCHOOL,HAFSPR23-P3,10-May-23,1312.5,0,1429,Holiday Act Food Prog grntfnd,170000              Education,A,2023,2
39,Unassigned,RUTLISH SCHOOL,SCHOOLS 2324/2 A,09-May-23,784307.06,0,1431,Schools,170000              Education,A,2023,2
40,Unassigned,RICARDS LODGE SECONDARY SCHOOL,SCHOOLS 2324/2 A,09-May-23,748680.17,0,1433,Schools,170000              Education,A,2023,2
41,Unassigned,WIMBLEDON PARK PRIMARY SCHOOL,SCHOOLS 2324/2 A,09-May-23,246571.5,0,1436,Schools,170000              Education,A,2023,2
42,Unassigned,ST TERESA'S R C PRIMARY SCHOOL,SCHOOLS 2324/2 A,09-May-23,202913,0,1438,Schools,170000              Education,A,2023,2
43,Unassigned,ST MARYS CATHOLIC PRIMARY SCHOOL,SCHOOLS 2324/2 A,09-May-23,183233.22,0,1439,Schools,170000              Education,A,2023,2
44,Unassigned,ST MARKS PRIMARY SCHOOL,SCHOOLS 2324/2 A,09-May-23,129126.79,0,1440,Schools,170000              Education,A,2023,2
45,Unassigned,ST JOHN FISHER RC PRIMARY SCH.,SCHOOLS 2324/2 A,09-May-23,182102.57,0,1441,Schools,170000              Education,A,2023,2
46,Unassigned,SINGLEGATE PRIMARY SCHOOL,SCHOOLS 2324/2 A,09-May-23,275905.25,0,1442,Schools,170000              Education,A,2023,2
47,Unassigned,SHERWOOD PRIMARY SCHOOL,MAYORS DONATION,03-May-23,600,0,1443,Corporate Services,170000              Education,A,2023,2
48,Unassigned,SHERWOOD PRIMARY SCHOOL,SCHOOLS 2324/2 A,09-May-23,171343.28,0,1443,Schools,170000              Education,A,2023,2
49,Unassigned,POPLAR PRIMARY SCHOOL,SCHOOLS 2324/2 A,09-May-23,273694,0,1444,Schools,170000              Education,A,2023,2
50,Unassigned,PELHAM PRIMARY SCHOOL,SCHOOLS 2324/2 A,09-May-23,183059.27,0,1445,Schools,170000              Education,A,2023,2
51,Unassigned,MORDEN PRIMARY SCHOOL,SCHOOLS 2324/2 A,09-May-23,122045.22,0,1446,Schools,170000              Education,A,2023,2
52,Unassigned,MERTON PARK PRIMARY SCHOOL,SCHOOLS 2324/2 A,09-May-23,102515,0,1447,Schools,170000              Education,A,2023,2
53,Unassigned,MERTON ABBEY PRIMARY SCHOOL,SCHOOLS 2324/2 A,09-May-23,123835.69,0,1448,Schools,170000              Education,A,2023,2
54,Unassigned,LONESOME PRIMARY SCHOOL,SCHOOLS 2324/2 A,09-May-23,182656.17,0,1450,Schools,170000              Education,A,2023,2
55,Unassigned,LINKS PRIMARY SCHOOL,SCHOOLS 2324/2 A,09-May-23,172634.88,0,1451,Schools,170000              Education,A,2023,2
56,Unassigned,JOSEPH HOOD PRIMARY SCHOOL,SCHOOLS 2324/2 A,09-May-23,186488.98,0,1452,Schools,170000              Education,A,2023,2
57,Unassigned,HOLY TRINITY C OF E PRIMARY SCHOOL,SCHOOLS 2324/2 A,09-May-23,173488,0,1453,Schools,170000              Education,A,2023,2
58,Unassigned,HOLLYMOUNT PRIMARY SCHOOL,SCHOOLS 2324/2 A,09-May-23,183059.71,0,1454,Schools,170000              Education,A,2023,2
59,Unassigned,HATFEILD PRIMARY SCHOOL,SCHOOLS 2324/2 A,09-May-23,247252.55,0,1455,Schools,170000              Education,A,2023,2
60,Unassigned,HASLEMERE PRIMARY SCHOOL,SCHOOLS 2324/2 A,09-May-23,188787,0,1456,Schools,170000              Education,A,2023,2
61,Unassigned,GARFIELD PRIMARY SCHOOL,SCHOOLS 2324/2 A,09-May-23,150379.07,0,1460,Schools,170000              Education,A,2023,2
62,Unassigned,BOND PRIMARY SCHOOL,SCHOOLS 2324/2 A,09-May-23,205608.74,0,1462,Schools,170000              Education,A,2023,2
63,Unassigned,BISHOP GILPIN C OF E PRIMARY,SCHOOLS 2324/2 A,09-May-23,179474,0,1463,Schools,170000              Education,A,2023,2
64,Unassigned,ABBOTSBURY PRIMARY SCHOOL,SCHOOLS 2324/2 A,09-May-23,196934.12,0,1467,Schools,170000              Education,A,2023,2
65,Unassigned,WIMBLEDON CHASE PRIMARY SCHOOL,SCHOOLS 2324/2 A,09-May-23,311293.99,0,1469,Schools,170000              Education,A,2023,2
66,Unassigned,GORRINGE PARK PRIMARY SCHOOL,SCHOOLS 2324/2 A,09-May-23,190478.17,0,1470,Schools,170000              Education,A,2023,2
67,Unassigned,RAYNES PARK SECONDARY SCHOOL,SCHOOLS 2324/2 A,09-May-23,768403.74,0,1471,Schools,170000              Education,A,2023,2
68,Unassigned,SS PETER AND PAUL RC PRIMARY SCH,SCHOOLS 2324/2 A,09-May-23,151398.43,0,1472,Schools,170000              Education,A,2023,2
69,Unassigned,DUNDONALD PRIMARY SCHOOL,SCHOOLS 2324/2 A,09-May-23,189911.35,0,1473,Schools,170000              Education,A,2023,2
70,"Children, Schools and Family",MERTON MENCAP,4450,03-May-23,46500,0,1519, Centralised Commiss Services,200000              Financial Services,A,2023,2
71,"Children, Schools and Family",MERTON MENCAP,4451,08-May-23,25415,0,1519, Statementing-Transport,200000              Financial Services,A,2023,2
72,Community and Housing,MERTON MENCAP,4406,03-May-23,560,0,1519,Learning Disabilities Placemnt,200000              Financial Services,A,2023,2
73,Community and Housing,MERTON MENCAP,4412,03-May-23,560,0,1519,Learning Disabilities Placemnt,200000              Financial Services,A,2023,2
74,Unassigned,ALL SAINTS C OF E PRIMARY SCH,SCHOOLS 2324/2 A,09-May-23,163903,0,1680,Schools,170000              Education,A,2023,2
75,"Children, Schools and Family",REDACTED PERSONAL DATA,963231,04-May-23,538.33,0,1801,Placements Under 18,321100              Social Community Care Supplies & Services - Children,R,2023,2
76,"Children, Schools and Family",REDACTED PERSONAL DATA,967167,12-May-23,538.33,0,1801,Placements Under 18,321100              Social Community Care Supplies & Services - Children,R,2023,2
77,"Children, Schools and Family",REDACTED PERSONAL DATA,969488,19-May-23,538.33,0,1801,Placements Under 18,321100              Social Community Care Supplies & Services - Children,R,2023,2
78,"Children, Schools and Family",REDACTED PERSONAL DATA,970879,25-May-23,538.33,0,1801,Placements Under 18,321100              Social Community Care Supplies & Services - Children,R,2023,2
79,Corporate Services,CIVICA UK LIMITED,C/BN272309,22-May-23,1860.92,310.15,1873,Local Taxation Services,270000              Information Communication Technology,A,2023,2
80,Corporate Services,CIVICA UK LIMITED,C/BN271888,22-May-23,5011.12,835.19,1873,Benefits Administration,270000              Information Communication Technology,A,2023,2
81,Corporate Services,CIVICA UK LIMITED,C/RB271195,16-May-23,11748,1958,1873,Benefits Administration,270000              Information Communication Technology,A,2023,2
82,Community and Housing,CIVICA UK LIMITED,C/BN267900,30-May-23,6442.8,1073.8,1873,Financial Assessment Team (FA),270000              Information Communication Technology,A,2023,2
83,"Children, Schools and Family",THE CHILDRENS TRUST,6050,22-May-23,5736.6,0,1980,Non-Delegated Statements,170000              Education,A,2023,2
84,"Children, Schools and Family",THE CHILDRENS TRUST,6163,22-May-23,5927.82,0,1980,Non-Delegated Statements,170000              Education,A,2023,2
85,"Children, Schools and Family",THE CHILDRENS TRUST,6219,05-Jun-23,5287.38,0,1980,Non-Delegated Statements,170000              Education,A,2023,2
86,Community and Housing,THE FRANCES TAYLOR FOUNDATION,965835,10-May-23,3812.04,0,2011,Learning Disabilities Placemnt,321017              Nursing & Residential Care Homes,A,2023,2
87,"Children, Schools and Family",ST JOSEPHS SCHOOL,T0003563,08-May-23,38038.33,0,2017,Non-Delegated Statements,170000              Education,A,2023,2
88,"Children, Schools and Family",ST JOSEPHS SCHOOL,T0003617,08-May-23,37837.67,0,2017,Non-Delegated Statements,170000              Education,A,2023,2
89,Unassigned,SACRED HEART R C PRIMARY SCH.,SCHOOLS 2324/2 A,09-May-23,158642.62,0,2076,Schools,170000              Education,A,2023,2
90,Community and Housing,OAKDOWN HOUSE LTD,965744,10-May-23,9045.53,0,2193,Learning Disabilities Placemnt,321017              Nursing & Residential Care Homes,A,2023,2
91,Community and Housing,GENEVA ROAD LIMITED,300423JW,19-May-23,600.84,100.14,2198,Older People Placements - East,321000              Social Community Care Supplies & Services - Adult,A,2023,2
92,Environment and Regeneration,LONDON BOROUGH OF SUTTON,3190332057,08-May-23,1546.6,0,2313,Recycling Activities,OLA,A,2023,2
93,Unassigned,LONDON BOROUGH OF SUTTON,�COPTHALLHOUSE,17-May-23,2000,0,2313,Corporate Services,OLA,A,2023,2
94,Environment and Regeneration,PJ HARVEY AND CO LTD,SI-70273,05-Jun-23,546.86,91.14,2439,EDS2,190000              Facilities & Management Services,A,2023,2
95,Community and Housing,FREEWAYS TRUST LTD,965747,10-May-23,3229.2,0,2474,Learning Disabilities Placemnt,321017              Nursing & Residential Care Homes,A,2023,2
96,Unassigned,WIMBLEDON AND PUTNEY COMMON,2.02305E+11,29-May-23,42294.8,0,10566,WPCC,PRECEPT,A,2023,2
97,Community and Housing,CLOYDA LTD,966021,10-May-23,3294.48,0,10762,Older People Placements - East,321017              Nursing & Residential Care Homes,A,2023,2
98,Community and Housing,CHEGWORTH N.H. (BAYSWIFT LTD),965980,10-May-23,3056.4,0,11057,Learning Disabilities Placemnt,321000              Social Community Care Supplies & Services - Adult,A,2023,2
99,"Children, Schools and Family",REDACTED PERSONAL DATA,963179,04-May-23,692.46,0,11130,Placements Under 18,321100              Social Community Care Supplies & Services - Children,R,2023,2
100,"Children, Schools and Family",REDACTED PERSONAL DATA,967115,12-May-23,692.46,0,11130,Placements Under 18,321100              Social Community Care Supplies & Services - Children,R,2023,2
101,"Children, Schools and Family",REDACTED PERSONAL DATA,969436,19-May-23,692.46,0,11130,Placements Under 18,321100              Social Community Care Supplies & Services - Children,R,2023,2
102,"Children, Schools and Family",REDACTED PERSONAL DATA,970829,25-May-23,692.46,0,11130,Placements Under 18,321100              Social Community Care Supplies & Services - Children,R,2023,2
103,"Children, Schools and Family",ST DOMINIC'S SCHOOL,DI112105082,23-May-23,10605.13,0,11569,Non-Delegated Statements,170000              Education,A,2023,2
104,Community and Housing,Queens Court,965776,10-May-23,3220.32,0,12747,Older People Placements - East,321017              Nursing & Residential Care Homes,A,2023,2
105,Community and Housing,ASHCROFT CARE SERVICES,965979,10-May-23,6161.24,0,13287,Learning Disabilities Placemnt,321017              Nursing & Residential Care Homes,A,2023,2
106,Community and Housing,SHARE COMMUNITY LTD,240124,08-May-23,560,0,13487,Learning Disabilities Placemnt,321017              Nursing & Residential Care Homes,A,2023,2
107,Community and Housing,SHARE COMMUNITY LTD,240117,08-May-23,600,0,13487,Learning Disabilities Placemnt,321017              Nursing & Residential Care Homes,A,2023,2
108,Community and Housing,SHARE COMMUNITY LTD,240119,08-May-23,840,0,13487,Learning Disabilities Placemnt,321017              Nursing & Residential Care Homes,A,2023,2
109,Community and Housing,SHARE COMMUNITY LTD,240139,08-May-23,900,0,13487,Learning Disabilities Placemnt,321017              Nursing & Residential Care Homes,A,2023,2
110,Community and Housing,SHARE COMMUNITY LTD,240130,08-May-23,840,0,13487,Learning Disabilities Placemnt,321017              Nursing & Residential Care Homes,A,2023,2
111,Community and Housing,SHARE COMMUNITY LTD,240127,08-May-23,1120,0,13487,Learning Disabilities Placemnt,321017              Nursing & Residential Care Homes,A,2023,2
112,Community and Housing,SHARE COMMUNITY LTD,240280,30-May-23,900,0,13487,Learning Disabilities Placemnt,321017              Nursing & Residential Care Homes,A,2023,2
113,Community and Housing,SHARE COMMUNITY LTD,240268,30-May-23,1120,0,13487,Learning Disabilities Placemnt,321017              Nursing & Residential Care Homes,A,2023,2
114,Community and Housing,SHARE COMMUNITY LTD,240265,30-May-23,560,0,13487,Learning Disabilities Placemnt,321017              Nursing & Residential Care Homes,A,2023,2
115,Community and Housing,FITZROY SUPPORT,966090,10-May-23,8304.28,0,13535,Learning Disabilities Placemnt,321017              Nursing & Residential Care Homes,A,2023,2
116,Community and Housing,CANTERBURY OAST TRUST LTD,965758,10-May-23,2541.24,0,13566,Learning Disabilities Placemnt,321017              Nursing & Residential Care Homes,A,2023,2
117,Community and Housing,MACINTYRE,965769,10-May-23,5776,0,13585,Learning Disabilities Placemnt,321017              Nursing & Residential Care Homes,A,2023,2
118,Community and Housing,MACINTYRE,965950,10-May-23,5641.36,0,13585,Learning Disabilities Placemnt,321017              Nursing & Residential Care Homes,A,2023,2
119,Community and Housing,MACINTYRE,966054,10-May-23,5641.36,0,13585,Older People Placements - East,321017              Nursing & Residential Care Homes,A,2023,2
120,Community and Housing,MACINTYRE,966088,10-May-23,4825.24,0,13585,Learning Disabilities Placemnt,321017              Nursing & Residential Care Homes,A,2023,2
121,Community and Housing,KENT AUTISTIC TRUST,966064,10-May-23,7494.72,0,13670,Learning Disabilities Placemnt,321017              Nursing & Residential Care Homes,A,2023,2
122,Community and Housing,UNITED RESPONSE,VSMR827734RH,22-May-23,4134.62,689.1,14616,Learning Disabilities Placemnt,321000              Social Community Care Supplies & Services - Adult,A,2023,2
123,Community and Housing,UNITED RESPONSE,VSMR827734DHH,22-May-23,3842.88,640.48,14616,Learning Disabilities Placemnt,321000              Social Community Care Supplies & Services - Adult,A,2023,2
124,Community and Housing,UNITED RESPONSE,VSMR827734HM,22-May-23,4572.24,762.04,14616,Learning Disabilities Placemnt,321000              Social Community Care Supplies & Services - Adult,A,2023,2
125,Community and Housing,UNITED RESPONSE,VSMR827734BS,22-May-23,4086.05,681.01,14616,Learning Disabilities Placemnt,321000              Social Community Care Supplies & Services - Adult,A,2023,2
126,Community and Housing,UNITED RESPONSE,VSMR827734CFW,22-May-23,4766.4,794.4,14616,Learning Disabilities Placemnt,321000              Social Community Care Supplies & Services - Adult,A,2023,2
127,Community and Housing,UNITED RESPONSE,VSMR825967-BAA,17-May-23,4837.78,806.3,14616,Learning Disabilities Placemnt,321000              Social Community Care Supplies & Services - Adult,A,2023,2
128,Community and Housing,UNITED RESPONSE,VSMR825967-BO,17-May-23,4837.78,806.3,14616,Learning Disabilities Placemnt,321000              Social Community Care Supplies & Services - Adult,A,2023,2
129,Community and Housing,UNITED RESPONSE,VSMR825967-SAT,17-May-23,4837.78,806.3,14616,Learning Disabilities Placemnt,321000              Social Community Care Supplies & Services - Adult,A,2023,2
130,Community and Housing,UNITED RESPONSE,VSMR825967-SV,17-May-23,4837.78,806.3,14616,Learning Disabilities Placemnt,321000              Social Community Care Supplies & Services - Adult,A,2023,2
131,Community and Housing,UNITED RESPONSE,VSMR825967-RW,17-May-23,4837.76,806.28,14616,Learning Disabilities Placemnt,321000              Social Community Care Supplies & Services - Adult,A,2023,2
132,Community and Housing,UNITED RESPONSE,VSMR828990-BAA,02-Jun-23,4837.78,806.3,14616,Learning Disabilities Placemnt,321000              Social Community Care Supplies & Services - Adult,A,2023,2
133,Community and Housing,UNITED RESPONSE,VSMR828990-BO,02-Jun-23,4837.78,806.3,14616,Learning Disabilities Placemnt,321000              Social Community Care Supplies & Services - Adult,A,2023,2
134,Community and Housing,UNITED RESPONSE,VSMR828990-SAT,02-Jun-23,4837.78,806.3,14616,Learning Disabilities Placemnt,321000              Social Community Care Supplies & Services - Adult,A,2023,2
135,Community and Housing,UNITED RESPONSE,VSMR828990-SV,02-Jun-23,4837.78,806.3,14616,Learning Disabilities Placemnt,321000              Social Community Care Supplies & Services - Adult,A,2023,2
136,Community and Housing,UNITED RESPONSE,VSMR828990-RW,02-Jun-23,4837.78,806.3,14616,Learning Disabilities Placemnt,321000              Social Community Care Supplies & Services - Adult,A,2023,2
137,Environment and Regeneration,MERTON CHAMBER OF COMMERCE,20344,30-May-23,6000,1000,15375,EDS2,180000              Environmental Services,A,2023,2
138,"Children, Schools and Family",MARY HARE GRAMMAR SCHOOL,INV29652,30-May-23,29030,0,20429,SEN Residential (DSG),170000              Education,A,2023,2
139,Environment and Regeneration,KINGSTON CORPORATION,37505884,04-May-23,329303,0,21573,Waste Disposal,180000              Environmental Services,A,2023,2
140,Corporate Services,KINGSTON CORPORATION,20145012,11-May-23,11990,0,21573,SLLP Client Income,180000              Environmental Services,A,2023,2
141,Corporate Services,KINGSTON CORPORATION,37503776,17-May-23,3854.92,300.82,21573,HR TRANSACTIONS,180000              Environmental Services,A,2023,2
142,Unassigned,David House,106211 CORR,22-May-23,7761.09,0,22392,Prov. for Bad & Doubtful Debts,321017              Nursing & Residential Care Homes,A,2023,2
143,Capital,MITCHAM COMMON CONSERVATORS,FUTUREMER2,09-May-23,553.5,0,28571,Highways & Footways,190000              Facilities & Management Services,A,2023,2
144,Community and Housing,TRINITY COURT NURSING HOME,965809,10-May-23,2861.6,0,30306,Older People Placements - East,321017              Nursing & Residential Care Homes,A,2023,2
145,Community and Housing,TRINITY COURT NURSING HOME,965951,10-May-23,2985.6,0,30306,Older People Placements - East,321017              Nursing & Residential Care Homes,A,2023,2
146,Community and Housing,TRINITY COURT NURSING HOME,965985,10-May-23,3063.24,0,30306,Older People Placements - East,321017              Nursing & Residential Care Homes,A,2023,2
147,Community and Housing,TRINITY COURT NURSING HOME,965997,10-May-23,3355.92,0,30306,Phys/Sens Placements - East,321017              Nursing & Residential Care Homes,A,2023,2
148,Community and Housing,TRINITY COURT NURSING HOME,966063,10-May-23,2985.6,0,30306,Older People Placements - East,321017              Nursing & Residential Care Homes,A,2023,2
149,Community and Housing,TRINITY COURT NURSING HOME,966070,10-May-23,2861.6,0,30306,Older People Placements - East,321017              Nursing & Residential Care Homes,A,2023,2
150,Community and Housing,TRINITY COURT NURSING HOME,966078,10-May-23,3063.24,0,30306,Older People Placements - East,321017              Nursing & Residential Care Homes,A,2023,2
151,Community and Housing,TRINITY COURT NURSING HOME,966138,10-May-23,2985.6,0,30306,Older People Placements - East,321017              Nursing & Residential Care Homes,A,2023,2
152,Community and Housing,TRINITY COURT NURSING HOME,966169,10-May-23,2876.32,0,30306,Older People Placements - East,321017              Nursing & Residential Care Homes,A,2023,2
153,Community and Housing,TRINITY COURT NURSING HOME,966171,10-May-23,3149.6,0,30306,Older People Placements - East,321017              Nursing & Residential Care Homes,A,2023,2
154,Community and Housing,TRINITY COURT NURSING HOME,966173,10-May-23,2521.12,0,30306,Older People Placements - East,321017              Nursing & Residential Care Homes,A,2023,2
155,Community and Housing,HAYDON PARK LODGE,965898,10-May-23,3485,0,31434,Learning Disabilities Placemnt,321017              Nursing & Residential Care Homes,A,2023,2
156,Community and Housing,HAYDON PARK LODGE,965924,10-May-23,4591.44,0,31434,Learning Disabilities Placemnt,321017              Nursing & Residential Care Homes,A,2023,2
157,Community and Housing,HAYDON PARK LODGE,966007,10-May-23,5070.76,0,31434,Learning Disabilities Placemnt,321017              Nursing & Residential Care Homes,A,2023,2
158,Community and Housing,HAYDON PARK LODGE,966049,10-May-23,4420.08,0,31434,Learning Disabilities Placemnt,321017              Nursing & Residential Care Homes,A,2023,2
159,Community and Housing,HAYDON PARK LODGE,971814,30-May-23,2500,0,31434,Learning Disabilities Placemnt,321017              Nursing & Residential Care Homes,A,2023,2
160,Community and Housing,Barchester Healthcare Wimbledon Beaumont,965748,10-May-23,3220.32,0,33384,Older People Placements - East,321017              Nursing & Residential Care Homes,A,2023,2
161,Community and Housing,Barchester Healthcare Wimbledon Beaumont,965841,10-May-23,4056,0,33384,Older People Placements - East,321017              Nursing & Residential Care Homes,A,2023,2
162,Community and Housing,Barchester Healthcare Wimbledon Beaumont,965861,10-May-23,3000,0,33384,Older People Placements - East,321017              Nursing & Residential Care Homes,A,2023,2
163,Community and Housing,Barchester Healthcare Wimbledon Beaumont,147028832,22-May-23,2773.28,0,33384,Phys/Sens Placements - East,321017              Nursing & Residential Care Homes,A,2023,2
164,Community and Housing,Barchester Healthcare Wimbledon Beaumont,147028954,22-May-23,2773.28,0,33384,Phys/Sens Placements - East,321017              Nursing & Residential Care Homes,A,2023,2
165,Community and Housing,Barchester Healthcare Wimbledon Beaumont,147028642,30-May-23,29713.71,0,33384,Phys/Sens Placements - East,321017              Nursing & Residential Care Homes,A,2023,2
166,Community and Housing,COMFORT CARE SERVICES (UK) LTD,SU0266/1518,22-May-23,2380,0,34932,Mental Health Placements,321000              Social Community Care Supplies & Services - Adult,A,2023,2
167,Community and Housing,COMFORT CARE SERVICES (UK) LTD,SU0184/1009,29-May-23,2380,0,34932,Mental Health Placements,321000              Social Community Care Supplies & Services - Adult,A,2023,2
168,Community and Housing,COMFORT CARE SERVICES (UK) LTD,SU0291/1121,29-May-23,2380,0,34932,Mental Health Placements,321000              Social Community Care Supplies & Services - Adult,A,2023,2
169,Community and Housing,COMFORT CARE SERVICES (UK) LTD,SU0133/1119,29-May-23,2380,0,34932,Mental Health Placements,321000              Social Community Care Supplies & Services - Adult,A,2023,2
170,Community and Housing,COMFORT CARE SERVICES (UK) LTD,SU0146/1453,29-May-23,2380,0,34932,Mental Health Placements,321000              Social Community Care Supplies & Services - Adult,A,2023,2
171,Community and Housing,COMFORT CARE SERVICES (UK) LTD,SU0298/1010,29-May-23,2380,0,34932,Mental Health Placements,321000              Social Community Care Supplies & Services - Adult,A,2023,2
172,Community and Housing,COMFORT CARE SERVICES (UK) LTD,SU0201/1454,29-May-23,2380,0,34932,Mental Health Placements,321000              Social Community Care Supplies & Services - Adult,A,2023,2
173,Community and Housing,COMFORT CARE SERVICES (UK) LTD,SU0294/1573,29-May-23,2380,0,34932,Mental Health Placements,321000              Social Community Care Supplies & Services - Adult,A,2023,2
174,Community and Housing,COMFORT CARE SERVICES (UK) LTD,SU0210/1120,29-May-23,2380,0,34932,Mental Health Placements,321000              Social Community Care Supplies & Services - Adult,A,2023,2
175,Community and Housing,COMFORT CARE SERVICES (UK) LTD,SU0208/1586,29-May-23,2380,0,34932,Mental Health Placements,321000              Social Community Care Supplies & Services - Adult,A,2023,2
176,Community and Housing,COMFORT CARE SERVICES (UK) LTD,SU1102/1585,22-May-23,2380,0,34932,Mental Health Placements,321000              Social Community Care Supplies & Services - Adult,A,2023,2
177,Community and Housing,COMFORT CARE SERVICES (UK) LTD,SU1051/1313-4,22-May-23,3295,0,34932,Mental Health Placements,321000              Social Community Care Supplies & Services - Adult,A,2023,2
178,Community and Housing,COMFORT CARE SERVICES (UK) LTD,SU0091/273,05-Jun-23,871.36,0,34932,Mental Health Placements,321000              Social Community Care Supplies & Services - Adult,A,2023,2
179,Community and Housing,COMFORT CARE SERVICES (UK) LTD,SU1041/848,23-May-23,1632.15,0,34932,Mental Health Placements,321000              Social Community Care Supplies & Services - Adult,A,2023,2
180,"Children, Schools and Family",URSULINE PREPARATORY SCHOOL,27581,24-May-23,7000,0,35109,Non-Delegated Statements,170000              Education,A,2023,2
181,Unassigned,ST MATTHEW'S C OF E PRIMARY,SCHOOLS 2324/2 A,09-May-23,90931.07,0,36050,Schools,170000              Education,A,2023,2
182,Community and Housing,AGE UK MERTON,HOSP DISCH ADDI,17-May-23,6787,0,37401,Hospital Discharge Grant,190000              Facilities & Management Services,A,2023,2
183,Community and Housing,JESMUND CARE LTD,962288,02-May-23,8642.85,0,46751,Older People Placements - East,321017              Nursing & Residential Care Homes,A,2023,2
184,Community and Housing,REDACTED PERSONAL DATA,969064,23-May-23,4900.28,0,50448,Older People Placements - East,DIRECT PAYMENTS,R,2023,2
185,Community and Housing,LINKAGE COMMUNITY TR.LONG-STAY,966040,10-May-23,3340.08,0,52552,Learning Disabilities Placemnt,321017              Nursing & Residential Care Homes,A,2023,2
186,Community and Housing,RUTLAND HOUSE CARE HOME,965718,10-May-23,2185.22,0,53424,Older People Placements - East,321017              Nursing & Residential Care Homes,A,2023,2
187,Community and Housing,RUTLAND HOUSE CARE HOME,965731,10-May-23,690.07,0,53424,Older People Placements - East,321017              Nursing & Residential Care Homes,A,2023,2
188,Community and Housing,RUTLAND HOUSE CARE HOME,965791,10-May-23,920.09,0,53424,Older People Placements - East,321017              Nursing & Residential Care Homes,A,2023,2
189,Community and Housing,RUTLAND HOUSE CARE HOME,965909,10-May-23,2300.23,0,53424,Older People Placements - East,321017              Nursing & Residential Care Homes,A,2023,2
190,Community and Housing,RUTLAND HOUSE CARE HOME,965916,10-May-23,3156,0,53424,Older People Placements - East,321017              Nursing & Residential Care Homes,A,2023,2
191,Community and Housing,RUTLAND HOUSE CARE HOME,965949,10-May-23,2645.26,0,53424,Older People Placements - East,321017              Nursing & Residential Care Homes,A,2023,2
192,Community and Housing,RUTLAND HOUSE CARE HOME,966031,10-May-23,3200,0,53424,Older People Placements - East,321017              Nursing & Residential Care Homes,A,2023,2
193,Community and Housing,PARK LODGE,965885,10-May-23,2940,0,56878,Learning Disabilities Placemnt,321017              Nursing & Residential Care Homes,A,2023,2
194,Community and Housing,PARK LODGE,965983,10-May-23,3026.8,0,56878,Learning Disabilities Placemnt,321017              Nursing & Residential Care Homes,A,2023,2
195,Unassigned,CRICKET GREEN SCHOOL,SCHOOLS 2324/2 A,09-May-23,366153.9,0,57057,Schools,170000              Education,A,2023,2
196,Community and Housing,KENWARD TRUST,965784,10-May-23,3596,0,57058,ASC - Substance Misuse - Drugs,321100              Social Community Care Supplies & Services - Children,A,2023,2
197,"Children, Schools and Family",PEARSON EDUCATION LTD.,3847160,29-May-23,532.5,88.75,57285,Language & Learning Service,170000              Education,A,2023,2
198,Corporate Services,JADE SECURITY SERVICE LTD,5505,22-May-23,2523.88,420.65,57563,Cash Collections,200000              Financial Services,A,2023,2
199,"Children, Schools and Family",CANBURY SCHOOL LIMITED,4496,24-May-23,10145,0,57830,Non-Delegated Statements,170000              Education,A,2023,2
200,"Children, Schools and Family",CANBURY SCHOOL LIMITED,4494,24-May-23,11882.49,0,57830,Non-Delegated Statements,170000              Education,A,2023,2
201,"Children, Schools and Family",CANBURY SCHOOL LIMITED,4472,25-May-23,10813.33,0,57830,Non-Delegated Statements,170000              Education,A,2023,2
202,Community and Housing,WALSINGHAM,965854,10-May-23,5486.52,0,58466,Learning Disabilities Placemnt,321017              Nursing & Residential Care Homes,A,2023,2
203,Community and Housing,WALSINGHAM,966038,10-May-23,5486.4,0,58466,Learning Disabilities Placemnt,321017              Nursing & Residential Care Homes,A,2023,2
204,Community and Housing,WALSINGHAM,966097,10-May-23,7365.64,0,58466,Learning Disabilities Placemnt,321017              Nursing & Residential Care Homes,A,2023,2
205,Community and Housing,WALSINGHAM,966104,10-May-23,5476.12,0,58466,Learning Disabilities Placemnt,321017              Nursing & Residential Care Homes,A,2023,2
206,Community and Housing,HATS GROUP LTD,223593,11-May-23,2990.74,498.46,58532,Learning Disabilities Placemnt,360000              Passenger Transport,A,2023,2
207,Community and Housing,HATS GROUP LTD,223982,24-May-23,1329.21,221.53,58532,Learning Disabilities Placemnt,360000              Passenger Transport,A,2023,2
208,Community and Housing,CARE UK,965745,10-May-23,3229.52,0,58851,Older People Placements - East,321017              Nursing & Residential Care Homes,A,2023,2
209,Community and Housing,CARE UK,965762,10-May-23,3800,0,58851,Older People Placements - East,321017              Nursing & Residential Care Homes,A,2023,2
210,Community and Housing,CARE UK,965813,10-May-23,3723.24,0,58851,Older People Placements - East,321017              Nursing & Residential Care Homes,A,2023,2
211,Community and Housing,CARE UK,965828,10-May-23,3963.24,0,58851,Older People Placements - East,321017              Nursing & Residential Care Homes,A,2023,2
212,Community and Housing,CARE UK,965922,10-May-23,3264.32,0,58851,Older People Placements - East,321017              Nursing & Residential Care Homes,A,2023,2
213,Community and Housing,CARE UK,965977,10-May-23,3723.24,0,58851,Older People Placements - East,321017              Nursing & Residential Care Homes,A,2023,2
214,Community and Housing,CARE UK,966032,10-May-23,3229.52,0,58851,Older People Placements - East,321017              Nursing & Residential Care Homes,A,2023,2
215,Community and Housing,CARE UK,966052,10-May-23,3723.24,0,58851,Older People Placements - East,321017              Nursing & Residential Care Homes,A,2023,2
216,Community and Housing,CARE UK,966121,10-May-23,4000,0,58851,Older People Placements - East,321017              Nursing & Residential Care Homes,A,2023,2
217,Community and Housing,CARE UK,966124,10-May-23,3229.52,0,58851,Older People Placements - East,321017              Nursing & Residential Care Homes,A,2023,2
218,Community and Housing,CARE UK,969250,19-May-23,2777.89,0,58851,Older People Placements - East,321017              Nursing & Residential Care Homes,A,2023,2
219,"Children, Schools and Family",ST MICHAEL'S FELLOWSHIP,C3084A/2100,30-May-23,3256,0,59560,Placements Under 18,280000              Legal Services,A,2023,2
220,Corporate Services,NEWSPAPER LICENSING AGENCY LTD,Q501532,22-May-23,2480.4,413.4,61069,Marketing & Communication,190000              Facilities & Management Services,A,2023,2
221,Corporate Services,NEWSPAPER LICENSING AGENCY LTD,Q501533,22-May-23,744.12,124.02,61069,Marketing & Communication,190000              Facilities & Management Services,A,2023,2
222,Corporate Services,EDE'S (U.K.) LTD,INV25474,24-May-23,585.65,97.61,62345,Leisure Buildings,190000              Facilities & Management Services,A,2023,2
223,Community and Housing,BARONS LODGE NURSING HOME,965805,10-May-23,1716,0,62371,Mental Health Placements,321017              Nursing & Residential Care Homes,A,2023,2
224,Community and Housing,BARONS LODGE NURSING HOME,965882,10-May-23,3111.43,0,62371,Older People Placements - East,321017              Nursing & Residential Care Homes,A,2023,2
225,Community and Housing,BARONS LODGE NURSING HOME,965896,10-May-23,4360,0,62371,Older People Placements - East,321017              Nursing & Residential Care Homes,A,2023,2
226,Community and Housing,BARONS LODGE NURSING HOME,965999,10-May-23,3502,0,62371,Mental Health Placements,321017              Nursing & Residential Care Homes,A,2023,2
227,Community and Housing,BARONS LODGE NURSING HOME,966011,10-May-23,4200,0,62371,Mental Health Placements,321017              Nursing & Residential Care Homes,A,2023,2
228,Community and Housing,BARONS LODGE NURSING HOME,966073,10-May-23,4360,0,62371,Mental Health Placements,321017              Nursing & Residential Care Homes,A,2023,2
229,Community and Housing,BARONS LODGE NURSING HOME,966079,10-May-23,4360,0,62371,Older People Placements - East,321017              Nursing & Residential Care Homes,A,2023,2
230,Community and Housing,BARONS LODGE NURSING HOME,966080,10-May-23,3807.2,0,62371,Learning Disabilities Placemnt,321017              Nursing & Residential Care Homes,A,2023,2
231,Community and Housing,BARONS LODGE NURSING HOME,966098,10-May-23,4800,0,62371,Older People Placements - East,321017              Nursing & Residential Care Homes,A,2023,2
232,Community and Housing,BARONS LODGE NURSING HOME,966118,10-May-23,3502,0,62371,Older People Placements - East,321017              Nursing & Residential Care Homes,A,2023,2
233,Community and Housing,SANCTUARY CARE LTD,965771,10-May-23,3117.52,0,63458,Learning Disabilities Placemnt,321017              Nursing & Residential Care Homes,A,2023,2
234,Community and Housing,THE REGARD PARTNERSHIP LTD,965757,10-May-23,6220.72,0,63796,Learning Disabilities Placemnt,321017              Nursing & Residential Care Homes,A,2023,2
235,Community and Housing,THE REGARD PARTNERSHIP LTD,965850,10-May-23,6010.48,0,63796,Learning Disabilities Placemnt,321017              Nursing & Residential Care Homes,A,2023,2
236,Community and Housing,THE REGARD PARTNERSHIP LTD,965868,10-May-23,9681.96,0,63796,Learning Disabilities Placemnt,321017              Nursing & Residential Care Homes,A,2023,2
237,Community and Housing,THE REGARD PARTNERSHIP LTD,965883,10-May-23,5765,0,63796,Learning Disabilities Placemnt,321017              Nursing & Residential Care Homes,A,2023,2
238,Community and Housing,THE REGARD PARTNERSHIP LTD,965989,10-May-23,6126.52,0,63796,Learning Disabilities Placemnt,321017              Nursing & Residential Care Homes,A,2023,2
239,Community and Housing,THE REGARD PARTNERSHIP LTD,966099,10-May-23,4901.24,0,63796,Learning Disabilities Placemnt,321017              Nursing & Residential Care Homes,A,2023,2
240,Community and Housing,NEEDHAM AND SAUNDERS,2596,09-May-23,845,0,68089,Occupational Therapy,"390000              Works - Construction, Repair & Maintenance",A,2023,2
241,Community and Housing,NEEDHAM AND SAUNDERS,2597,15-May-23,540,0,68089,Occupational Therapy,"390000              Works - Construction, Repair & Maintenance",A,2023,2
242,Community and Housing,HIGH HURLANDS HOMES,962942,04-May-23,1138.85,0,74925,Learning Disabilities Placemnt,321017              Nursing & Residential Care Homes,A,2023,2
243,"Children, Schools and Family",JANCETT CHILDCARE AND  JACE TRNG,1929,25-May-23,2693.33,0,75578,Non-Delegated Statements,260000              Human Resources,A,2023,2
244,Community and Housing,BRANDON TRUST,965766,10-May-23,4054,0,76126,Learning Disabilities Placemnt,321017              Nursing & Residential Care Homes,A,2023,2
245,Corporate Services,LONDON BOROUGH OF SUTTON,3190453938,03-May-23,123000,0,76615,Insurance Premiums & Funding,OLA,A,2023,2
246,Unassigned,LONDON BOROUGH OF SUTTON,BAILIFF APR 2023,12-May-23,78784.9,0,76615,Corporate Services,OLA,A,2023,2
247,Unassigned,POST OFFICE LTD,MERTON23/24PO3,08-May-23,17411.55,0,77066,Adults Social Care,200000              Financial Services,A,2023,2
248,Unassigned,POST OFFICE LTD,MERTON23/24PO4,17-May-23,12836.95,0,77066,Adults Social Care,200000              Financial Services,A,2023,2
249,Unassigned,POST OFFICE LTD,MERTON23/24PO5,31-May-23,19237,0,77066,Adults Social Care,200000              Financial Services,A,2023,2
250,Community and Housing,ABBEY HOUSE RESIDENTIAL HOMES,925415,03-May-23,1226.76,0,78937,Older People Placements - East,321017              Nursing & Residential Care Homes,A,2023,2
251,Community and Housing,ABBEY HOUSE RESIDENTIAL HOMES,965767,10-May-23,4400,0,78937,Older People Placements - East,321017              Nursing & Residential Care Homes,A,2023,2
252,Community and Housing,ABBEY HOUSE RESIDENTIAL HOMES,965792,10-May-23,4400,0,78937,Older People Placements - East,321017              Nursing & Residential Care Homes,A,2023,2
253,Community and Housing,ABBEY HOUSE RESIDENTIAL HOMES,965794,10-May-23,5520,0,78937,Mental Health Placements,321017              Nursing & Residential Care Homes,A,2023,2
254,Unassigned,TRANSPORT FOR LONDON,S106 18P192 HIGH,24-May-23,70000,0,79197,Capital,PRECEPT,A,2023,2
255,Community and Housing,REDACTED PERSONAL DATA,967246,15-May-23,15980,0,81639,Older People Placements - East,DIRECT PAYMENTS,R,2023,2
256,Community and Housing,REDACTED PERSONAL DATA,968867,23-May-23,5808.6,0,81639,Older People Placements - East,DIRECT PAYMENTS,R,2023,2
257,Corporate Services,IRON MOUNTAIN (UK) LTD,17148724,22-May-23,1141.67,190.28,82409,IT-Telecomms,270000              Information Communication Technology,A,2023,2
258,Environment and Regeneration,S.GRUNDON (WASTE) LTD.,W158424,18-May-23,764.64,127.44,82593,Waste Disposal,180000              Environmental Services,A,2023,2
259,Community and Housing,ASKEWS AND HOLTS LIBRARY SRV LTD,6864352,11-May-23,793.05,0,82770,Media Fund,200000              Financial Services,A,2023,2
260,Community and Housing,ASKEWS AND HOLTS LIBRARY SRV LTD,6864364,11-May-23,503.03,0,82770,Media Fund,200000              Financial Services,A,2023,2
261,Community and Housing,ASKEWS AND HOLTS LIBRARY SRV LTD,6864367,12-May-23,615.9,0,82770,Media Fund,200000              Financial Services,A,2023,2
262,Community and Housing,ASKEWS AND HOLTS LIBRARY SRV LTD,6864368,12-May-23,529.05,0,82770,Media Fund,200000              Financial Services,A,2023,2
263,Community and Housing,ASKEWS AND HOLTS LIBRARY SRV LTD,6864381,12-May-23,802.22,0,82770,Media Fund,200000              Financial Services,A,2023,2
264,Community and Housing,ASKEWS AND HOLTS LIBRARY SRV LTD,6864385,12-May-23,685.37,0,82770,Media Fund,200000              Financial Services,A,2023,2
265,Community and Housing,ASKEWS AND HOLTS LIBRARY SRV LTD,6864393,11-May-23,715.97,0,82770,Media Fund,200000              Financial Services,A,2023,2
266,Community and Housing,ASKEWS AND HOLTS LIBRARY SRV LTD,6864600,11-May-23,789.92,0,82770,Media Fund,200000              Financial Services,A,2023,2
267,Corporate Services,REDACTED PERSONAL DATA,INVJD182,16-May-23,1500,250,83383,SLLP - Disbursements,280000              Legal Services,R,2023,2
268,Corporate Services,REDACTED PERSONAL DATA,INVJD181,17-May-23,630,105,83383,SLLP - Disbursements,280000              Legal Services,R,2023,2
269,Unassigned,MALMESBURY PRIMARY SCHOOL,SCHOOLS 2324/2 A,09-May-23,215998.52,0,83593,Schools,170000              Education,A,2023,2
270,Environment and Regeneration,NEWSQUEST MEDIA GROUP LTD,42629367,22-May-23,2205.14,367.52,85566,Tr Man & Accid Sch,190000              Facilities & Management Services,A,2023,2
271,Environment and Regeneration,NEWSQUEST MEDIA GROUP LTD,42519209,04-May-23,968.11,161.35,85566,Development Control,190000              Facilities & Management Services,A,2023,2
272,"Children, Schools and Family",NEWSQUEST MEDIA GROUP LTD,42438520,15-May-23,1800,300,85566,Fostering Recruit/Assessment,190000              Facilities & Management Services,A,2023,2
273,Environment and Regeneration,NEWSQUEST MEDIA GROUP LTD,42629841,22-May-23,2850.55,475.09,85566,Tr Man & Accid Sch,190000              Facilities & Management Services,A,2023,2
274,Environment and Regeneration,NEWSQUEST MEDIA GROUP LTD,42679675,29-May-23,3442.18,573.7,85566,CPZ Implementation & Consult,190000              Facilities & Management Services,A,2023,2
275,"Children, Schools and Family",NEWSQUEST MEDIA GROUP LTD,42635798,22-May-23,1800,300,85566,Fostering Recruit/Assessment,190000              Facilities & Management Services,A,2023,2
276,Corporate Services,L.B.RICHMOND UPON THAMES,3001739359,25-May-23,353834.4,58972.4,86993,Internal Audit,OLA,A,2023,2
277,Corporate Services,L.B.RICHMOND UPON THAMES,3001739375,31-May-23,23272.8,3878.8,86993,Internal Audit,OLA,A,2023,2
278,"Children, Schools and Family",LONDON GRID FOR LEARNING TRUST,2020015996,24-May-23,20901.6,3483.6,90449,Schools Admin & Pupil Benefits,270000              Information Communication Technology,A,2023,2
279,"Children, Schools and Family",LONDON GRID FOR LEARNING TRUST,2020016067,29-May-23,990,165,90449, Schools IT Support,270000              Information Communication Technology,A,2023,2
280,"Children, Schools and Family",LONDON GRID FOR LEARNING TRUST,2020015000,29-May-23,1438.8,239.8,90449, Schools IT Support,270000              Information Communication Technology,A,2023,2
281,"Children, Schools and Family",LONDON GRID FOR LEARNING TRUST,2020015002,29-May-23,1170,195,90449, Schools IT Support,270000              Information Communication Technology,A,2023,2
282,"Children, Schools and Family",LONDON GRID FOR LEARNING TRUST,2020016009,29-May-23,600,100,90449, Schools IT Support,270000              Information Communication Technology,A,2023,2
283,"Children, Schools and Family",LONDON GRID FOR LEARNING TRUST,2020014991,29-May-23,1438.8,239.8,90449, Schools IT Support,270000              Information Communication Technology,A,2023,2
284,"Children, Schools and Family",LONDON GRID FOR LEARNING TRUST,2020014996,29-May-23,1438.8,239.8,90449, Schools IT Support,270000              Information Communication Technology,A,2023,2
285,"Children, Schools and Family",LONDON GRID FOR LEARNING TRUST,2020014988,29-May-23,1170,195,90449, Schools IT Support,270000              Information Communication Technology,A,2023,2
286,"Children, Schools and Family",LONDON GRID FOR LEARNING TRUST,2020014994,29-May-23,720,120,90449, Schools IT Support,270000              Information Communication Technology,A,2023,2
287,"Children, Schools and Family",LONDON GRID FOR LEARNING TRUST,2020014995,29-May-23,1618.8,269.8,90449, Schools IT Support,270000              Information Communication Technology,A,2023,2
288,"Children, Schools and Family",LONDON GRID FOR LEARNING TRUST,2020014998,29-May-23,1438.8,239.8,90449, Schools IT Support,270000              Information Communication Technology,A,2023,2
289,"Children, Schools and Family",LONDON GRID FOR LEARNING TRUST,2020014992,01-Jun-23,828,138,90449, Schools IT Support,270000              Information Communication Technology,A,2023,2
290,Community and Housing,SUPREME CARE SERVICES LIMITED,85631,08-May-23,1091.9,0,91840,Phys/Sens Placements - East,321000              Social Community Care Supplies & Services - Adult,A,2023,2
291,Community and Housing,SUPREME CARE SERVICES LIMITED,85705,16-May-23,739.68,0,91840,Older People Placements - East,321000              Social Community Care Supplies & Services - Adult,A,2023,2
292,Community and Housing,SUPREME CARE SERVICES LIMITED,85706,16-May-23,3063.32,0,91840,Older People Placements - East,321000              Social Community Care Supplies & Services - Adult,A,2023,2
293,Community and Housing,SUPREME CARE SERVICES LIMITED,85710,16-May-23,1202.43,0,91840,Older People Placements - East,321000              Social Community Care Supplies & Services - Adult,A,2023,2
294,Community and Housing,SUPREME CARE SERVICES LIMITED,85711/A,18-May-23,2850.12,0,91840,Older People Placements - East,321000              Social Community Care Supplies & Services - Adult,A,2023,2
295,Community and Housing,SUPREME CARE SERVICES LIMITED,85709,18-May-23,1140.03,0,91840,Older People Placements - East,321000              Social Community Care Supplies & Services - Adult,A,2023,2
296,Community and Housing,SUPREME CARE SERVICES LIMITED,85737,30-May-23,1305.86,0,91840,Older People Placements - East,321000              Social Community Care Supplies & Services - Adult,A,2023,2
297,Community and Housing,SUPREME CARE SERVICES LIMITED,85738,30-May-23,3096.41,0,91840,Older People Placements - East,321000              Social Community Care Supplies & Services - Adult,A,2023,2
298,Community and Housing,SUPREME CARE SERVICES LIMITED,85735,30-May-23,802.36,0,91840,Older People Placements - East,321000              Social Community Care Supplies & Services - Adult,A,2023,2
299,Community and Housing,SUPREME CARE SERVICES LIMITED,85731,30-May-23,3327.86,0,91840,Older People Placements - East,321000              Social Community Care Supplies & Services - Adult,A,2023,2
300,Community and Housing,THE GARWOOD FOUNDATION,MW.DFAPRIL23,04-May-23,1180,0,92268,Older People Placements - East,321000              Social Community Care Supplies & Services - Adult,A,2023,2
301,Community and Housing,Allied Healthcare,RF/264/1066014,08-May-23,1539.94,0,92896,Learning Disabilities Placemnt,321000              Social Community Care Supplies & Services - Adult,A,2023,2
302,Community and Housing,CARE MANAGEMENT GROUP,397000695,03-May-23,4961.72,0,93533,Learning Disabilities Placemnt,321017              Nursing & Residential Care Homes,A,2023,2
303,Community and Housing,CARE MANAGEMENT GROUP,397000693,03-May-23,4961.72,0,93533,Learning Disabilities Placemnt,321017              Nursing & Residential Care Homes,A,2023,2
304,Community and Housing,CARE MANAGEMENT GROUP,613000633,03-May-23,6353.48,0,93533,Learning Disabilities Placemnt,321017              Nursing & Residential Care Homes,A,2023,2
305,Community and Housing,CARE MANAGEMENT GROUP,613000639,03-May-23,6353.48,0,93533,Learning Disabilities Placemnt,321017              Nursing & Residential Care Homes,A,2023,2
306,Community and Housing,CARE MANAGEMENT GROUP,255001495,03-May-23,8725.64,0,93533,Learning Disabilities Placemnt,321017              Nursing & Residential Care Homes,A,2023,2
307,Community and Housing,CARE MANAGEMENT GROUP,255001484,03-May-23,8725.64,0,93533,Learning Disabilities Placemnt,321017              Nursing & Residential Care Homes,A,2023,2
308,Community and Housing,CARE MANAGEMENT GROUP,255001496,03-May-23,8725.64,0,93533,Learning Disabilities Placemnt,321017              Nursing & Residential Care Homes,A,2023,2
309,Community and Housing,CARE MANAGEMENT GROUP,255001497,03-May-23,8725.64,0,93533,Learning Disabilities Placemnt,321017              Nursing & Residential Care Homes,A,2023,2
310,Community and Housing,CARE MANAGEMENT GROUP,613000644,04-May-23,6353.48,0,93533,Learning Disabilities Placemnt,321017              Nursing & Residential Care Homes,A,2023,2
311,Community and Housing,CARE MANAGEMENT GROUP,613000320,04-May-23,5637.76,0,93533,Learning Disabilities Placemnt,321017              Nursing & Residential Care Homes,A,2023,2
312,Community and Housing,CARE MANAGEMENT GROUP,397000241,04-May-23,4402.76,0,93533,Learning Disabilities Placemnt,321017              Nursing & Residential Care Homes,A,2023,2
313,Community and Housing,CARE MANAGEMENT GROUP,965751,10-May-23,4593.88,0,93533,Mental Health Placements,321017              Nursing & Residential Care Homes,A,2023,2
314,Community and Housing,CARE MANAGEMENT GROUP,965817,10-May-23,6279.2,0,93533,Learning Disabilities Placemnt,321017              Nursing & Residential Care Homes,A,2023,2
315,Community and Housing,CARE MANAGEMENT GROUP,965920,10-May-23,5936.6,0,93533,Learning Disabilities Placemnt,321017              Nursing & Residential Care Homes,A,2023,2
316,Community and Housing,CARE MANAGEMENT GROUP,965971,10-May-23,8733.64,0,93533,Phys/Sens Placements - East,321017              Nursing & Residential Care Homes,A,2023,2
317,Community and Housing,CARE MANAGEMENT GROUP,966001,10-May-23,7712.12,0,93533,Learning Disabilities Placemnt,321017              Nursing & Residential Care Homes,A,2023,2
318,Community and Housing,CARE MANAGEMENT GROUP,966131,10-May-23,7974.36,0,93533,Learning Disabilities Placemnt,321017              Nursing & Residential Care Homes,A,2023,2
319,Community and Housing,CARE MANAGEMENT GROUP,397000719,23-May-23,4961.72,0,93533,Learning Disabilities Placemnt,321017              Nursing & Residential Care Homes,A,2023,2
320,Community and Housing,CARE MANAGEMENT GROUP,255001513,23-May-23,8725.64,0,93533,Learning Disabilities Placemnt,321017              Nursing & Residential Care Homes,A,2023,2
321,Community and Housing,A AND R CARE LTD,961709,02-May-23,2514.04,0,94357,Older People Placements - East,321017              Nursing & Residential Care Homes,A,2023,2
322,Community and Housing,A AND R CARE LTD,965808,10-May-23,3300,0,94357,Older People Placements - East,321017              Nursing & Residential Care Homes,A,2023,2
323,Community and Housing,A AND R CARE LTD,965929,10-May-23,3763.24,0,94357,Older People Placements - East,321017              Nursing & Residential Care Homes,A,2023,2
324,Community and Housing,A AND R CARE LTD,966065,10-May-23,3400,0,94357,Older People Placements - East,321017              Nursing & Residential Care Homes,A,2023,2
325,Community and Housing,A AND R CARE LTD,966103,10-May-23,4800,0,94357,Older People Placements - East,321017              Nursing & Residential Care Homes,A,2023,2
326,Community and Housing,A AND R CARE LTD,966161,10-May-23,3824.32,0,94357,Phys/Sens Placements - East,321017              Nursing & Residential Care Homes,A,2023,2
327,Corporate Services,JCDECAUX UNITED KINGDOM,SF/I222301,24-May-23,558,93,94678,Chief Executive,190000              Facilities & Management Services,A,2023,2
328,"Children, Schools and Family",JCDECAUX UNITED KINGDOM,SF/1225405,25-May-23,558,93,94678,Fostering Support,190000              Facilities & Management Services,A,2023,2
329,"Children, Schools and Family",CARERS SUPPORT MERTON,462,23-May-23,18750,0,95795, Centralised Commiss Services,290000              Arts & Leisure Services,A,2023,2
330,Corporate Services,COMMONSIDE COMMUNITY DEV TRUST,CIVIC PRIDE GRNT,22-May-23,19279.7,0,95839,VOLUNTARY SECTOR COORDINATION,321000              Social Community Care Supplies & Services - Adult,A,2023,2
331,Community and Housing,Aspens Charities Ltd,37713,04-May-23,18309.2,0,96019,Learning Disabilities Placemnt,321017              Nursing & Residential Care Homes,A,2023,2
332,Community and Housing,Aspens Charities Ltd,965948,10-May-23,8954.28,0,96019,Learning Disabilities Placemnt,321017              Nursing & Residential Care Homes,A,2023,2
333,Community and Housing,Aspens Charities Ltd,38008,24-May-23,990.84,0,96019,Learning Disabilities Placemnt,321017              Nursing & Residential Care Homes,A,2023,2
334,Community and Housing,REDACTED PERSONAL DATA,968727,23-May-23,4260.16,0,96859,Learning Disabilities Placemnt,DIRECT PAYMENTS,R,2023,2
335,Community and Housing,THE ABBEYFIELD SOCIETY,966082,10-May-23,4000,0,97539,Older People Placements - East,321000              Social Community Care Supplies & Services - Adult,A,2023,2
336,Community and Housing,EL-SHADDAI,971246,29-May-23,1052.08,0,97709,MH Housing Support Placements,321000              Social Community Care Supplies & Services - Adult,A,2023,2
337,Community and Housing,EL-SHADDAI,971264,29-May-23,780.68,0,97709,Phys/Sens Placements - East,321000              Social Community Care Supplies & Services - Adult,A,2023,2
338,Community and Housing,EL-SHADDAI,971269,29-May-23,1315.04,0,97709,Learning Disabilities Placemnt,321000              Social Community Care Supplies & Services - Adult,A,2023,2
339,Community and Housing,EL-SHADDAI,971276,29-May-23,1052.08,0,97709,Learning Disabilities Placemnt,321000              Social Community Care Supplies & Services - Adult,A,2023,2
340,Community and Housing,EL-SHADDAI,971236,31-May-23,2240,0,97709,Hospital To Home,321000              Social Community Care Supplies & Services - Adult,A,2023,2
341,Community and Housing,Rosenmanor Ltd,965941,10-May-23,2924.24,0,97808,Mental Health Placements,321017              Nursing & Residential Care Homes,A,2023,2
342,"Children, Schools and Family",MERTON COMMUNITY TRANSPORT,17106,15-May-23,669.2,0,98164, ETE Team,360000              Passenger Transport,A,2023,2
343,Community and Housing,MERTON COMMUNITY TRANSPORT,17082,16-May-23,1332,222,98164,Learning Disabilities Placemnt,360000              Passenger Transport,A,2023,2
344,Community and Housing,MERTON COMMUNITY TRANSPORT,17099,16-May-23,806.4,134.4,98164,Learning Disabilities Placemnt,360000              Passenger Transport,A,2023,2
345,Unassigned,BEECHOLME PRIMARY ACADEMY,SCHOOLS 2324/2 A,09-May-23,6636,0,98168,Schools,170000              Education,A,2023,2
346,"Children, Schools and Family",Evolve Housing + Support,3298,19-May-23,1480,0,98536,Placements Over 18,321000              Social Community Care Supplies & Services - Adult,A,2023,2
347,"Children, Schools and Family",Evolve Housing + Support,3299,19-May-23,1480,0,98536,Placements Over 18,321000              Social Community Care Supplies & Services - Adult,A,2023,2
348,"Children, Schools and Family",Evolve Housing + Support,3300,19-May-23,1282.92,0,98536,UASC Care Leavers Over 18,321000              Social Community Care Supplies & Services - Adult,A,2023,2
349,"Children, Schools and Family",Evolve Housing + Support,3301,19-May-23,1282.92,0,98536,UASC Care Leavers Over 18,321000              Social Community Care Supplies & Services - Adult,A,2023,2
350,"Children, Schools and Family",Evolve Housing + Support,3302,19-May-23,1282.92,0,98536,UASC Care Leavers Over 18,321000              Social Community Care Supplies & Services - Adult,A,2023,2
351,"Children, Schools and Family",Evolve Housing + Support,3303,19-May-23,595.64,0,98536,UASC Care Leavers Over 18,321000              Social Community Care Supplies & Services - Adult,A,2023,2
352,"Children, Schools and Family",Evolve Housing + Support,3304,19-May-23,2200,0,98536,UASC Care Leavers Over 18,321000              Social Community Care Supplies & Services - Adult,A,2023,2
353,"Children, Schools and Family",Evolve Housing + Support,3276,30-May-23,1420.38,0,98536,UASC Care Leavers Over 18,321000              Social Community Care Supplies & Services - Adult,A,2023,2
354,Unassigned,WEST WIMBLEDON PRIMARY SCHOOL,SCHOOLS 2324/2 A,09-May-23,241791.46,0,101674,Schools,170000              Education,A,2023,2
355,Community and Housing,HILLDALE AND NORTHVIEW,965901,10-May-23,2072.52,0,103592,Older People Placements - East,321000              Social Community Care Supplies & Services - Adult,A,2023,2
356,Community and Housing,HILLDALE AND NORTHVIEW,970264,23-May-23,8290.08,0,103592,Older People Placements - East,321000              Social Community Care Supplies & Services - Adult,A,2023,2
357,Community and Housing,BUPA CARE HOMES,965721,10-May-23,788.53,0,105027,Older People Placements - East,321017              Nursing & Residential Care Homes,A,2023,2
358,Community and Housing,BUPA CARE HOMES,965739,10-May-23,1409.68,0,105027,Older People Placements - East,321017              Nursing & Residential Care Homes,A,2023,2
359,Community and Housing,BUPA CARE HOMES,965741,10-May-23,788.53,0,105027,Older People Placements - East,321017              Nursing & Residential Care Homes,A,2023,2
360,Community and Housing,BUPA CARE HOMES,965772,10-May-23,3154.12,0,105027,Older People Placements - East,321017              Nursing & Residential Care Homes,A,2023,2
361,Community and Housing,BUPA CARE HOMES,965780,10-May-23,3289.24,0,105027,Older People Placements - East,321017              Nursing & Residential Care Homes,A,2023,2
362,Community and Housing,BUPA CARE HOMES,965795,10-May-23,3289.24,0,105027,Older People Placements - East,321017              Nursing & Residential Care Homes,A,2023,2
363,Community and Housing,BUPA CARE HOMES,965807,10-May-23,3154.12,0,105027,Older People Placements - East,321017              Nursing & Residential Care Homes,A,2023,2
364,Community and Housing,BUPA CARE HOMES,965859,10-May-23,3289.24,0,105027,Older People Placements - East,321017              Nursing & Residential Care Homes,A,2023,2
365,Community and Housing,BUPA CARE HOMES,965873,10-May-23,3154.12,0,105027,Older People Placements - East,321017              Nursing & Residential Care Homes,A,2023,2
366,Community and Housing,BUPA CARE HOMES,965904,10-May-23,3289.24,0,105027,Older People Placements - East,321017              Nursing & Residential Care Homes,A,2023,2
367,Community and Housing,BUPA CARE HOMES,965967,10-May-23,3289.24,0,105027,Older People Placements - East,321017              Nursing & Residential Care Homes,A,2023,2
368,Community and Housing,BUPA CARE HOMES,965990,10-May-23,3289.24,0,105027,Older People Placements - East,321017              Nursing & Residential Care Homes,A,2023,2
369,Community and Housing,BUPA CARE HOMES,965993,10-May-23,3154.12,0,105027,Older People Placements - East,321017              Nursing & Residential Care Homes,A,2023,2
370,Community and Housing,BUPA CARE HOMES,966000,10-May-23,3289.24,0,105027,Older People Placements - East,321017              Nursing & Residential Care Homes,A,2023,2
371,Community and Housing,BUPA CARE HOMES,966036,10-May-23,3289.24,0,105027,Older People Placements - East,321017              Nursing & Residential Care Homes,A,2023,2
372,Community and Housing,BUPA CARE HOMES,966044,10-May-23,4363.16,0,105027,Phys/Sens Placements - East,321017              Nursing & Residential Care Homes,A,2023,2
373,Community and Housing,BUPA CARE HOMES,966059,10-May-23,3569.4,0,105027,Older People Placements - East,321017              Nursing & Residential Care Homes,A,2023,2
374,Community and Housing,BUPA CARE HOMES,966093,10-May-23,3154.12,0,105027,Older People Placements - East,321017              Nursing & Residential Care Homes,A,2023,2
375,Community and Housing,BUPA CARE HOMES,966116,10-May-23,3289.24,0,105027,Older People Placements - East,321017              Nursing & Residential Care Homes,A,2023,2
376,Community and Housing,BUPA CARE HOMES,966125,10-May-23,3289.24,0,105027,Older People Placements - East,321017              Nursing & Residential Care Homes,A,2023,2
377,Community and Housing,BUPA CARE HOMES,966147,10-May-23,3289.24,0,105027,Older People Placements - East,321017              Nursing & Residential Care Homes,A,2023,2
378,Community and Housing,BUPA CARE HOMES,966160,10-May-23,3289.24,0,105027,Older People Placements - East,321017              Nursing & Residential Care Homes,A,2023,2
379,Community and Housing,BUPA CARE HOMES,966182,10-May-23,3154.12,0,105027,Older People Placements - East,321017              Nursing & Residential Care Homes,A,2023,2
380,Community and Housing,BUPA CARE HOMES,971613,29-May-23,9397.84,0,105027,Mental Health Placements,321017              Nursing & Residential Care Homes,A,2023,2
381,Community and Housing,REDACTED PERSONAL DATA,969046,23-May-23,2689.24,0,105300,Learning Disabilities Placemnt,DIRECT PAYMENTS,R,2023,2
382,"Children, Schools and Family",NEWSCHOOLS (MERTON) LIMITED,NSM01060,24-May-23,23468.4,3911.4,106428, PFI Unitary Charges,200000              Financial Services,A,2023,2
383,Unassigned,THE ALL ENG.LAWN TENNIS AND CROQ,T-000000474,24-May-23,7220,1203.33,108017,Corporate Services,290000              Arts & Leisure Services,A,2023,2
384,"Children, Schools and Family",The Eveline Day and Nursery Schools Ltd,2,16-May-23,3056.33,0,108282,Non-Delegated Statements,170000              Education,A,2023,2
385,Community and Housing,REDACTED PERSONAL DATA,971230,29-May-23,789.04,0,110403,MH Housing Support Placements,321000              Social Community Care Supplies & Services - Adult,R,2023,2
386,Community and Housing,REDACTED PERSONAL DATA,971231,29-May-23,1360,0,110403,Mental Health Placements,321000              Social Community Care Supplies & Services - Adult,R,2023,2
387,Community and Housing,REDACTED PERSONAL DATA,971234,29-May-23,1052.04,0,110403,Learning Disabilities Placemnt,321000              Social Community Care Supplies & Services - Adult,R,2023,2
388,Community and Housing,REDACTED PERSONAL DATA,971235,29-May-23,780.68,0,110403,MH Housing Support Placements,321000              Social Community Care Supplies & Services - Adult,R,2023,2
389,Community and Housing,REDACTED PERSONAL DATA,971248,29-May-23,780.68,0,110403,MH Housing Support Placements,321000              Social Community Care Supplies & Services - Adult,R,2023,2
390,Community and Housing,REDACTED PERSONAL DATA,971249,29-May-23,789.04,0,110403,MH Housing Support Placements,321000              Social Community Care Supplies & Services - Adult,R,2023,2
391,Community and Housing,REDACTED PERSONAL DATA,971253,29-May-23,1052.08,0,110403,Phys/Sens Placements - East,321000              Social Community Care Supplies & Services - Adult,R,2023,2
392,Community and Housing,REDACTED PERSONAL DATA,971255,29-May-23,1586.16,0,110403,Mental Health Placements,321000              Social Community Care Supplies & Services - Adult,R,2023,2
393,Community and Housing,REDACTED PERSONAL DATA,971260,29-May-23,780.68,0,110403,MH Housing Support Placements,321000              Social Community Care Supplies & Services - Adult,R,2023,2
394,Community and Housing,REDACTED PERSONAL DATA,971272,29-May-23,780.68,0,110403,MH Housing Support Placements,321000              Social Community Care Supplies & Services - Adult,R,2023,2
395,Community and Housing,REDACTED PERSONAL DATA,971273,29-May-23,780.68,0,110403,Mental Health Placements,321000              Social Community Care Supplies & Services - Adult,R,2023,2
396,Community and Housing,REDACTED PERSONAL DATA,971275,29-May-23,520.48,0,110403,MH Housing Support Placements,321000              Social Community Care Supplies & Services - Adult,R,2023,2
397,Community and Housing,REDACTED PERSONAL DATA,971241,29-May-23,780.68,0,110406,LD Housing Support Placements,321000              Social Community Care Supplies & Services - Adult,R,2023,2
398,"Children, Schools and Family",REDACTED PERSONAL DATA,963162,04-May-23,504.5,0,111277,Placements Under 18,321100              Social Community Care Supplies & Services - Children,R,2023,2
399,"Children, Schools and Family",REDACTED PERSONAL DATA,967096,12-May-23,504.5,0,111277,Placements Under 18,321100              Social Community Care Supplies & Services - Children,R,2023,2
400,"Children, Schools and Family",REDACTED PERSONAL DATA,969415,19-May-23,504.5,0,111277,Placements Under 18,321100              Social Community Care Supplies & Services - Children,R,2023,2
401,"Children, Schools and Family",REDACTED PERSONAL DATA,969472,19-May-23,563.29,0,111277,Placements Under 18,321100              Social Community Care Supplies & Services - Children,R,2023,2
402,"Children, Schools and Family",REDACTED PERSONAL DATA,970808,25-May-23,504.5,0,111277,Placements Under 18,321100              Social Community Care Supplies & Services - Children,R,2023,2
403,Community and Housing,MEADBANK NURSING CENTRE,962290,02-May-23,605.56,0,113139,Older People Placements - East,321017              Nursing & Residential Care Homes,A,2023,2
404,Community and Housing,MEADBANK NURSING CENTRE,962521,02-May-23,1695.56,0,113139,Older People Placements - East,321017              Nursing & Residential Care Homes,A,2023,2
405,Community and Housing,MEADBANK NURSING CENTRE,966083,10-May-23,3273.84,0,113139,Older People Placements - East,321017              Nursing & Residential Care Homes,A,2023,2
406,Community and Housing,MEADBANK NURSING CENTRE,966117,10-May-23,1937.78,0,113139,Older People Placements - East,321017              Nursing & Residential Care Homes,A,2023,2
407,Community and Housing,MEADBANK NURSING CENTRE,966157,10-May-23,2995.28,0,113139,Older People Placements - East,321017              Nursing & Residential Care Homes,A,2023,2
408,Community and Housing,REDACTED PERSONAL DATA,958494,29-May-23,14250.44,0,113331,Learning Disabilities Placemnt,DIRECT PAYMENTS,R,2023,2
409,Community and Housing,REDACTED PERSONAL DATA,968850,29-May-23,14250.44,0,113331,Learning Disabilities Placemnt,DIRECT PAYMENTS,R,2023,2
410,Community and Housing,MIHOMECARE LIMITED,LIVE1W-269913,24-May-23,1113.7,0,114370,Learning Disabilities Placemnt,321000              Social Community Care Supplies & Services - Adult,A,2023,2
411,Community and Housing,MIHOMECARE LIMITED,LIVE1W-269963,01-Jun-23,1113.7,0,114370,Learning Disabilities Placemnt,321000              Social Community Care Supplies & Services - Adult,A,2023,2
412,Community and Housing,MIHOMECARE LIMITED,LIVE1W-269908,18-May-23,1113.7,0,114370,Learning Disabilities Placemnt,321000              Social Community Care Supplies & Services - Adult,A,2023,2
413,Community and Housing,REDACTED PERSONAL DATA,971242,29-May-23,780.68,0,114970,MH Housing Support Placements,321000              Social Community Care Supplies & Services - Adult,R,2023,2
414,Community and Housing,REDACTED PERSONAL DATA,971245,29-May-23,1857.56,0,114970,Mental Health Placements,321000              Social Community Care Supplies & Services - Adult,R,2023,2
415,Community and Housing,REDACTED PERSONAL DATA,971265,29-May-23,1052.08,0,114970,MH Housing Support Placements,321000              Social Community Care Supplies & Services - Adult,R,2023,2
416,Community and Housing,REDACTED PERSONAL DATA,971279,29-May-23,1586.2,0,114970,Mental Health Placements,321000              Social Community Care Supplies & Services - Adult,R,2023,2
417,Community and Housing,REDACTED PERSONAL DATA,971256,31-May-23,1040.92,0,114970,Hospital To Home,321000              Social Community Care Supplies & Services - Adult,R,2023,2
418,Community and Housing,ASTRA HOMES,AK/34/23,04-May-23,2034.24,0,114991,Mental Health Placements,321000              Social Community Care Supplies & Services - Adult,A,2023,2
419,Community and Housing,ASTRA HOMES,MJ/34723,04-May-23,1816.76,0,114991,Mental Health Placements,321000              Social Community Care Supplies & Services - Adult,A,2023,2
420,Community and Housing,ASTRA HOMES,GB/34/23,04-May-23,1978.12,0,114991,Mental Health Placements,321000              Social Community Care Supplies & Services - Adult,A,2023,2
421,Community and Housing,ASTRA HOMES,EC/34/23,04-May-23,2071.68,0,114991,Mental Health Placements,321000              Social Community Care Supplies & Services - Adult,A,2023,2
422,Community and Housing,GRANGE COTTAGE LIMITED,965816,10-May-23,2680,0,117931,Older People Placements - East,321017              Nursing & Residential Care Homes,A,2023,2
423,Community and Housing,GRANGE COTTAGE LIMITED,965870,10-May-23,2680,0,117931,Older People Placements - East,321017              Nursing & Residential Care Homes,A,2023,2
424,Community and Housing,GRANGE COTTAGE LIMITED,965875,10-May-23,3200,0,117931,Older People Placements - East,321017              Nursing & Residential Care Homes,A,2023,2
425,Community and Housing,GRANGE COTTAGE LIMITED,965987,10-May-23,3600,0,117931,Older People Placements - East,321017              Nursing & Residential Care Homes,A,2023,2
426,Community and Housing,GRANGE COTTAGE LIMITED,966077,10-May-23,2680,0,117931,Older People Placements - East,321017              Nursing & Residential Care Homes,A,2023,2
427,Community and Housing,REDACTED PERSONAL DATA,971239,29-May-23,789.04,0,117970,MH Housing Support Placements,321000              Social Community Care Supplies & Services - Adult,R,2023,2
428,Community and Housing,REDACTED PERSONAL DATA,971250,29-May-23,1052.08,0,117970,Mental Health Placements,321000              Social Community Care Supplies & Services - Adult,R,2023,2
429,Community and Housing,REDACTED PERSONAL DATA,971263,29-May-23,1052.08,0,117970,Mental Health Placements,321000              Social Community Care Supplies & Services - Adult,R,2023,2
430,Community and Housing,L'ARCHE,966108,10-May-23,3094.6,0,118483,Learning Disabilities Placemnt,321017              Nursing & Residential Care Homes,A,2023,2
431,Community and Housing,Alexander House c/o Keychange Charity,962632,02-May-23,4242.86,0,119109,Older People Placements - East,321017              Nursing & Residential Care Homes,A,2023,2
432,Community and Housing,Alexander House c/o Keychange Charity,965829,10-May-23,3100,0,119109,Older People Placements - East,321017              Nursing & Residential Care Homes,A,2023,2
433,Community and Housing,Alexander House c/o Keychange Charity,965889,10-May-23,6600,0,119109,Older People Placements - East,321017              Nursing & Residential Care Homes,A,2023,2
434,Community and Housing,Alexander House c/o Keychange Charity,965905,10-May-23,3220.32,0,119109,Older People Placements - East,321017              Nursing & Residential Care Homes,A,2023,2
435,Community and Housing,Alexander House c/o Keychange Charity,966119,10-May-23,4000,0,119109,Older People Placements - East,321017              Nursing & Residential Care Homes,A,2023,2
436,Community and Housing,Alexander House c/o Keychange Charity,966170,10-May-23,3840,0,119109,Older People Placements - East,321017              Nursing & Residential Care Homes,A,2023,2
437,Environment and Regeneration,KINGDOM SECURITY LTD,SER-00042897INV,22-May-23,10942.94,1823.76,123458,Vestry Hall,260000              Human Resources,A,2023,2
438,Environment and Regeneration,KINGDOM SECURITY LTD,SER-00042896INV,22-May-23,3523.85,587.31,123458,EDS2,260000              Human Resources,A,2023,2
439,Community and Housing,REDACTED PERSONAL DATA,968782,23-May-23,1412.4,0,124097,Older People Placements - East,DIRECT PAYMENTS,R,2023,2
440,Community and Housing,UNITED RESPONSE,965789,10-May-23,7605.02,1267.5,125227,Learning Disabilities Placemnt,321000              Social Community Care Supplies & Services - Adult,A,2023,2
441,Community and Housing,UNITED RESPONSE,965840,10-May-23,7605.02,1267.5,125227,Learning Disabilities Placemnt,321000              Social Community Care Supplies & Services - Adult,A,2023,2
442,Community and Housing,UNITED RESPONSE,965895,10-May-23,7605.02,1267.5,125227,Learning Disabilities Placemnt,321000              Social Community Care Supplies & Services - Adult,A,2023,2
443,Community and Housing,UNITED RESPONSE,965937,10-May-23,7605.02,1267.5,125227,Learning Disabilities Placemnt,321000              Social Community Care Supplies & Services - Adult,A,2023,2
444,Community and Housing,UNITED RESPONSE,966055,10-May-23,7605.02,1267.5,125227,Learning Disabilities Placemnt,321000              Social Community Care Supplies & Services - Adult,A,2023,2
445,Community and Housing,REDACTED PERSONAL DATA,968819,23-May-23,1336.44,0,125642,Phys/Sens Placements - East,DIRECT PAYMENTS,R,2023,2
446,Community and Housing,REDACTED PERSONAL DATA,968961,23-May-23,835.52,0,126189,Older People Placements - East,DIRECT PAYMENTS,R,2023,2
447,Community and Housing,KELSTONE COURT NURSING HOME,962450,02-May-23,11784.29,0,126473,Older People Placements - East,321017              Nursing & Residential Care Homes,A,2023,2
448,Community and Housing,KELSTONE COURT NURSING HOME,962451,02-May-23,2294.29,0,126473,Older People Placements - East,321017              Nursing & Residential Care Homes,A,2023,2
449,Community and Housing,KELSTONE COURT NURSING HOME,964641,08-May-23,2294.29,0,126473,Older People Placements - East,321017              Nursing & Residential Care Homes,A,2023,2
450,Community and Housing,KELSTONE COURT NURSING HOME,964643,08-May-23,65267.85,0,126473,Older People Placements - East,321017              Nursing & Residential Care Homes,A,2023,2
451,Community and Housing,KELSTONE COURT NURSING HOME,964646,08-May-23,2571.43,0,126473,Older People Placements - East,321017              Nursing & Residential Care Homes,A,2023,2
452,Community and Housing,REDACTED PERSONAL DATA,968731,23-May-23,668.24,0,127266,Phys/Sens Placements - East,DIRECT PAYMENTS,R,2023,2
453,Environment and Regeneration,TRL LIMITED,11617951,17-May-23,630.28,105.05,128700,Environmental Health-Pollution,180000              Environmental Services,A,2023,2
454,Environment and Regeneration,TRL LIMITED,11617949,17-May-23,4345.04,724.17,128700,Wandsworth Air Quality,180000              Environmental Services,A,2023,2
455,Environment and Regeneration,TRL LIMITED,11617950,17-May-23,1285.2,214.2,128700,LBR - Pollution,180000              Environmental Services,A,2023,2
456,Environment and Regeneration,TRL LIMITED,11618090,01-Jun-23,630.28,105.05,128700,Environmental Health-Pollution,180000              Environmental Services,A,2023,2
457,Environment and Regeneration,TRL LIMITED,11618091,01-Jun-23,1285.2,214.2,128700,LBR - Pollution,180000              Environmental Services,A,2023,2
458,Environment and Regeneration,TRL LIMITED,11618092,01-Jun-23,4345.04,724.17,128700,Wandsworth Air Quality,180000              Environmental Services,A,2023,2
459,Community and Housing,BUPA CARE HOMES,965788,10-May-23,6133.76,0,130491,Phys/Sens Placements - East,321017              Nursing & Residential Care Homes,A,2023,2
460,Community and Housing,BUPA CARE HOMES,965897,10-May-23,6050.76,0,130491,Phys/Sens Placements - East,321017              Nursing & Residential Care Homes,A,2023,2
461,Unassigned,Evans Cycles Limited,HO-PSI4484627,24-May-23,2114,352.33,133082,Corporate Accountancy,260000              Human Resources,A,2023,2
462,Unassigned,Evans Cycles Limited,HOPSI4484489,24-May-23,920,153.33,133082,Corporate Accountancy,260000              Human Resources,A,2023,2
463,Unassigned,Evans Cycles Limited,HOPSI4484626,24-May-23,2133.99,355.66,133082,Corporate Accountancy,260000              Human Resources,A,2023,2
464,"Children, Schools and Family",Evans Cycles Limited,HO-PSI4483992,22-May-23,2800,466.67,133082, Education Psychology,260000              Human Resources,A,2023,2
465,"Children, Schools and Family",NGA,110971,24-May-23,975,0,133206, Governor Support,260000              Human Resources,A,2023,2
466,Community and Housing,VOYAGE CARE LTD,965863,10-May-23,6505.28,0,133700,Learning Disabilities Placemnt,321017              Nursing & Residential Care Homes,A,2023,2
467,Community and Housing,VOYAGE CARE LTD,965975,10-May-23,7721.6,0,133700,Learning Disabilities Placemnt,321017              Nursing & Residential Care Homes,A,2023,2
468,Community and Housing,VOYAGE CARE LTD,966053,10-May-23,7799.4,0,133700,Learning Disabilities Placemnt,321017              Nursing & Residential Care Homes,A,2023,2
469,Corporate Services,VOCALINK,2.3999E+14,05-Jun-23,577.2,96.2,134117,Local Taxation Services,270000              Information Communication Technology,A,2023,2
470,Community and Housing,HOMECARE SERVICES LTD,28943,18-May-23,5474,0,134594,Phys/Sens Placements - East,321100              Social Community Care Supplies & Services - Children,A,2023,2
471,Community and Housing,HOMECARE SERVICES LTD,28967,18-May-23,509.6,0,134594,Phys/Sens Placements - East,321100              Social Community Care Supplies & Services - Children,A,2023,2
472,Community and Housing,Sunrise Rehabilitation Centre,965775,10-May-23,5213.88,0,135093,Learning Disabilities Placemnt,321017              Nursing & Residential Care Homes,A,2023,2
473,Community and Housing,Sunrise Rehabilitation Centre,965804,10-May-23,5213.88,0,135093,Learning Disabilities Placemnt,321017              Nursing & Residential Care Homes,A,2023,2
474,Community and Housing,Sunrise Rehabilitation Centre,965972,10-May-23,5161.52,0,135093,Learning Disabilities Placemnt,321017              Nursing & Residential Care Homes,A,2023,2
475,Community and Housing,Sunrise Rehabilitation Centre,966094,10-May-23,5043.72,0,135093,Learning Disabilities Placemnt,321017              Nursing & Residential Care Homes,A,2023,2
476,Community and Housing,Sunrise Rehabilitation Centre,966096,10-May-23,5174.6,0,135093,Learning Disabilities Placemnt,321017              Nursing & Residential Care Homes,A,2023,2
477,Community and Housing,Sunrise Rehabilitation Centre,966115,10-May-23,5213.88,0,135093,Learning Disabilities Placemnt,321017              Nursing & Residential Care Homes,A,2023,2
478,Community and Housing,Sunrise Rehabilitation Centre,966168,10-May-23,6102,0,135093,Learning Disabilities Placemnt,321017              Nursing & Residential Care Homes,A,2023,2
479,Community and Housing,Sunrise Rehabilitation Centre,966187,10-May-23,4363.08,0,135093,Learning Disabilities Placemnt,321017              Nursing & Residential Care Homes,A,2023,2
480,"Children, Schools and Family",Sunrise Rehabilitation Centre,969623,22-May-23,1120,0,135093, Statementing-Transport,321017              Nursing & Residential Care Homes,A,2023,2
481,Corporate Services,Lbox Communications (Beta Dist.South),335412,05-Jun-23,2190.5,365.08,135590,Printing,190000              Facilities & Management Services,A,2023,2
482,Community and Housing,REDACTED PERSONAL DATA,968845,23-May-23,1420,0,135784,Phys/Sens Placements - East,DIRECT PAYMENTS,R,2023,2
483,Community and Housing,ENCYCLOPAEDIA BRITANNICA,92680,22-May-23,5400,900,137060,Media Fund,200000              Financial Services,A,2023,2
484,Unassigned,LB Wandsworth Pension Fund Account,CETV PH66****C,15-May-23,4271.34,0,137418,London Borough of Merton,PENSIONS,A,2023,2
485,"Children, Schools and Family",VICTOR FILMS LTD,867,30-May-23,636,106,138351, Duke of Edinburgh Awrds,170000              Education                                                                                 confirmed,A,2023,2
486,Community and Housing,REDACTED PERSONAL DATA,968749,23-May-23,1078,0,139365,Phys/Sens Placements - East,DIRECT PAYMENTS,R,2023,2
487,Community and Housing,REDACTED PERSONAL DATA,969086,23-May-23,509.12,0,140662,Phys/Sens Placements - East,DIRECT PAYMENTS,R,2023,2
488,Community and Housing,REDACTED PERSONAL DATA,968766,23-May-23,5056.2,0,140759,Phys/Sens Placements - East,DIRECT PAYMENTS,R,2023,2
489,Community and Housing,SURREY AND BORDERS PARTNERSHIP,965927,10-May-23,11448.72,0,140911,Learning Disabilities Placemnt,321017              Nursing & Residential Care Homes,A,2023,2
490,Community and Housing,GARWOOD FOUNDATION,965811,10-May-23,2755.48,0,142358,Phys/Sens Placements - East,321017              Nursing & Residential Care Homes,A,2023,2
491,Community and Housing,GARWOOD FOUNDATION,965914,10-May-23,2755.48,0,142358,Older People Placements - East,321017              Nursing & Residential Care Homes,A,2023,2
492,Community and Housing,CONSENSUS - GRETTON HOMES,955726,29-May-23,8431.48,0,142442,Learning Disabilities Placemnt,321017              Nursing & Residential Care Homes,A,2023,2
493,Community and Housing,CONSENSUS - GRETTON HOMES,966137,29-May-23,8431.48,0,142442,Learning Disabilities Placemnt,321017              Nursing & Residential Care Homes,A,2023,2
494,Community and Housing,EVERGREEN PARTNERSHIP,965857,10-May-23,9675,0,142455,Learning Disabilities Placemnt,321017              Nursing & Residential Care Homes,A,2023,2
495,Community and Housing,EVERGREEN PARTNERSHIP,965877,10-May-23,6629.16,0,142455,Learning Disabilities Placemnt,321017              Nursing & Residential Care Homes,A,2023,2
496,Community and Housing,REDACTED PERSONAL DATA,971251,29-May-23,1052.08,0,143597,MH Housing Support Placements,321000              Social Community Care Supplies & Services - Adult,R,2023,2
497,Community and Housing,REDACTED PERSONAL DATA,971261,29-May-23,1315.04,0,143597,LD Housing Support Placements,321000              Social Community Care Supplies & Services - Adult,R,2023,2
498,Community and Housing,REDACTED PERSONAL DATA,971280,29-May-23,1462.32,0,143597,Learning Disabilities Placemnt,321000              Social Community Care Supplies & Services - Adult,R,2023,2
499,Corporate Services,REDACTED PERSONAL DATA,JR188,04-May-23,963,0,143840,Translation Service,TRANSLATIONS,R,2023,2
500,Community and Housing,REDACTED PERSONAL DATA,969031,23-May-23,3731.72,0,144689,Learning Disabilities Placemnt,DIRECT PAYMENTS,R,2023,2
501,Community and Housing,CRAEGMOOR FACILITIES - WINDSOR,965910,10-May-23,6834.88,0,145152,Learning Disabilities Placemnt,321017              Nursing & Residential Care Homes,A,2023,2
502,Community and Housing,REDACTED PERSONAL DATA,968848,23-May-23,4454.8,0,145882,Learning Disabilities Placemnt,DIRECT PAYMENTS,R,2023,2
503,"Children, Schools and Family",THE BEACON SCHOOL,BESI219,29-May-23,6702.41,0,148289,Non-Delegated Statements,170000              Education,A,2023,2
504,Community and Housing,GENERATE,10747,16-May-23,666.6,0,148332,Learning Disabilities Placemnt,321000              Social Community Care Supplies & Services - Adult,A,2023,2
505,Community and Housing,GENERATE,10749,22-May-23,576.8,0,148332,Learning Disabilities Placemnt,321000              Social Community Care Supplies & Services - Adult,A,2023,2
506,Community and Housing,CHICHESTER HALL CARE HOME LTD,966127,10-May-23,2637.2,0,148358,Older People Placements - East,321017              Nursing & Residential Care Homes,A,2023,2
507,"Children, Schools and Family",DONHEAD SCHOOL,MCBRIEN23-2,08-May-23,3387,0,149760,Non-Delegated Statements,170000              Education,A,2023,2
508,"Children, Schools and Family",DONHEAD SCHOOL,OGIONWO23-2,08-May-23,1935,0,149760,Non-Delegated Statements,170000              Education,A,2023,2
509,"Children, Schools and Family",DONHEAD SCHOOL,OLIVER23-2,08-May-23,2661,0,149760,Non-Delegated Statements,170000              Education,A,2023,2
510,"Children, Schools and Family",DONHEAD SCHOOL,ORTON232,08-May-23,2661,0,149760,Non-Delegated Statements,170000              Education,A,2023,2
511,Unassigned,Canterbury Campus,SCHOOLS 2324/2 A,09-May-23,224224.65,0,150054,Schools,170000              Education,A,2023,2
512,Unassigned,BARNETT WADDINGHAM LLP,T23/10181,22-May-23,5652,942,150927,Governance & Oversight Cost,PENSIONS,A,2023,2
513,Community and Housing,REDACTED PERSONAL DATA,968784,23-May-23,2544.32,0,151002,Older People Placements - East,DIRECT PAYMENTS,R,2023,2
514,Community and Housing,AIMS CARE PARTNERSHIP,965860,10-May-23,10560,0,151592,Learning Disabilities Placemnt,321017              Nursing & Residential Care Homes,A,2023,2
515,Community and Housing,AIMS CARE PARTNERSHIP,965899,10-May-23,3114.72,0,151592,Learning Disabilities Placemnt,321017              Nursing & Residential Care Homes,A,2023,2
516,Community and Housing,REDACTED PERSONAL DATA,968949,23-May-23,2333.6,0,151790,Older People Placements - East,DIRECT PAYMENTS,R,2023,2
517,Community and Housing,REDACTED PERSONAL DATA,969077,23-May-23,7434.32,0,152015,Older People Placements - East,321000              Social Community Care Supplies & Services - Adult,R,2023,2
518,Corporate Services,WANDSWORTH CORPORATION,20144993,10-May-23,1644.84,0,152180,SLLP Client Income,OLA,A,2023,2
519,Community and Housing,REDACTED PERSONAL DATA,968983,23-May-23,954.6,0,152709,Older People Placements - East,DIRECT PAYMENTS,R,2023,2
520,Community and Housing,REDACTED PERSONAL DATA,968856,23-May-23,1909.2,0,152990,Learning Disabilities Placemnt,DIRECT PAYMENTS,R,2023,2
521,Community and Housing,LYNTON HALL NURSING HOME,965756,15-May-23,3102.04,0,153795,Older People Placements - East,321017              Nursing & Residential Care Homes,A,2023,2
522,Community and Housing,LYNTON HALL NURSING HOME,965761,15-May-23,2988.48,0,153795,Older People Placements - East,321017              Nursing & Residential Care Homes,A,2023,2
523,Community and Housing,LYNTON HALL NURSING HOME,965935,15-May-23,3249.6,0,153795,Older People Placements - East,321017              Nursing & Residential Care Homes,A,2023,2
524,Corporate Services,ALLWAG PROMOTIONS LTD,95308,30-May-23,1460.16,243.36,157161,Printing,190000              Facilities & Management Services,A,2023,2
525,Community and Housing,LONDON BOROUGH OF CAMDEN,24845252,23-May-23,2750,0,159338,Housing Strategy,OLA,A,2023,2
526,Community and Housing,REDACTED PERSONAL DATA,968834,23-May-23,979.36,0,159542,Phys/Sens Placements - East,DIRECT PAYMENTS,R,2023,2
527,Community and Housing,REDACTED PERSONAL DATA,970079,23-May-23,3220,0,160044,Phys/Sens Placements - East,DIRECT PAYMENTS,R,2023,2
528,Community and Housing,METROPOLITAN THAMES VALLEY,3063604SM,23-May-23,2171,0,160080,Learning Disabilities Placemnt,321017              Nursing & Residential Care Homes,A,2023,2
529,Community and Housing,METROPOLITAN THAMES VALLEY,3063604LD,23-May-23,2171,0,160080,Learning Disabilities Placemnt,321017              Nursing & Residential Care Homes,A,2023,2
530,Community and Housing,METROPOLITAN THAMES VALLEY,3063604SC,23-May-23,2171,0,160080,Learning Disabilities Placemnt,321017              Nursing & Residential Care Homes,A,2023,2
531,Community and Housing,METROPOLITAN THAMES VALLEY,3063604GB,23-May-23,2171,0,160080,Learning Disabilities Placemnt,321017              Nursing & Residential Care Homes,A,2023,2
532,"Children, Schools and Family",REDACTED PERSONAL DATA,969803,22-May-23,1082.6,0,160147,Child Disabilities - Placement,CSF-DIRECT PAYMENTS,R,2023,2
533,Community and Housing,REDACTED PERSONAL DATA,968877,23-May-23,1166.76,0,160244,Phys/Sens Placements - East,DIRECT PAYMENTS,R,2023,2
534,Community and Housing,REDACTED PERSONAL DATA,968818,23-May-23,604.6,0,160273,Learning Disabilities Placemnt,DIRECT PAYMENTS,R,2023,2
535,Community and Housing,REDACTED PERSONAL DATA,968929,23-May-23,889.96,0,160279,Phys/Sens Placements - East,DIRECT PAYMENTS,R,2023,2
536,"Children, Schools and Family",Fleet Educ.Services Ltd T/A Fleet Tutors,23294,08-May-23,1711.2,285.2,160300,Non-Delegated Statements,260000              Human Resources,A,2023,2
537,"Children, Schools and Family",THE NATIONAL FOSTERING AGENCY,444678,22-May-23,3482.1,0,160464,Placements Under 18,321100              Social Community Care Supplies & Services - Children,A,2023,2
538,"Children, Schools and Family",THE NATIONAL FOSTERING AGENCY,444677,22-May-23,5519.4,0,160464,Placements Under 18,321100              Social Community Care Supplies & Services - Children,A,2023,2
539,"Children, Schools and Family",THE NATIONAL FOSTERING AGENCY,444676,22-May-23,5519.4,0,160464,Placements Under 18,321100              Social Community Care Supplies & Services - Children,A,2023,2
540,Environment and Regeneration,CITY OF LONDON CORPORATION,4339616,15-May-23,6909.12,1151.52,160895,Waste Disposal,180000              Environmental Services,A,2023,2
541,"Children, Schools and Family",REDACTED PERSONAL DATA,963126,04-May-23,538.33,0,161094,UASC LAC Under 18,321100              Social Community Care Supplies & Services - Children,R,2023,2
542,"Children, Schools and Family",REDACTED PERSONAL DATA,963167,04-May-23,538.33,0,161094,UASC LAC Under 18,321100              Social Community Care Supplies & Services - Children,R,2023,2
543,"Children, Schools and Family",REDACTED PERSONAL DATA,967060,12-May-23,538.33,0,161094,UASC LAC Under 18,321100              Social Community Care Supplies & Services - Children,R,2023,2
544,"Children, Schools and Family",REDACTED PERSONAL DATA,967102,12-May-23,538.33,0,161094,UASC LAC Under 18,321100              Social Community Care Supplies & Services - Children,R,2023,2
545,"Children, Schools and Family",REDACTED PERSONAL DATA,969377,19-May-23,538.33,0,161094,UASC LAC Under 18,321100              Social Community Care Supplies & Services - Children,R,2023,2
546,"Children, Schools and Family",REDACTED PERSONAL DATA,969423,19-May-23,538.33,0,161094,UASC LAC Under 18,321100              Social Community Care Supplies & Services - Children,R,2023,2
547,"Children, Schools and Family",REDACTED PERSONAL DATA,970771,25-May-23,538.33,0,161094,UASC LAC Under 18,321100              Social Community Care Supplies & Services - Children,R,2023,2
548,"Children, Schools and Family",REDACTED PERSONAL DATA,970816,25-May-23,538.33,0,161094,UASC LAC Under 18,321100              Social Community Care Supplies & Services - Children,R,2023,2
549,Corporate Services,JC APPLICATIONS DEVELOPMENT,19519,23-May-23,16765.2,2794.2,161398,Insurance Premiums & Funding,270000              Information Communication Technology,A,2023,2
550,Environment and Regeneration,KAT TRANSPORT LTD,83,12-May-23,1560,260,162381,Passenger Transport,360000              Passenger Transport,A,2023,2
551,Environment and Regeneration,KAT TRANSPORT LTD,84,12-May-23,1680,280,162381,Passenger Transport,360000              Passenger Transport,A,2023,2
552,Environment and Regeneration,KAT TRANSPORT LTD,85,12-May-23,3864,644,162381,Passenger Transport,360000              Passenger Transport,A,2023,2
553,Environment and Regeneration,KAT TRANSPORT LTD,86,15-May-23,600,100,162381,Passenger Transport,360000              Passenger Transport,A,2023,2
554,Environment and Regeneration,KAT TRANSPORT LTD,87,15-May-23,2760,460,162381,Passenger Transport,360000              Passenger Transport,A,2023,2
555,Environment and Regeneration,KAT TRANSPORT LTD,88,15-May-23,6348,1058,162381,Passenger Transport,360000              Passenger Transport,A,2023,2
556,Environment and Regeneration,KAT TRANSPORT LTD,90,15-May-23,2760,460,162381,Passenger Transport,360000              Passenger Transport,A,2023,2
557,Environment and Regeneration,KAT TRANSPORT LTD,89,17-May-23,1200,200,162381,Passenger Transport,360000              Passenger Transport,A,2023,2
558,Corporate Services,DATA INTERCHANGE PLC,UKSI-105121,24-May-23,521.16,86.86,162623,Local Taxation Bailiffs,270000              Information Communication Technology,A,2023,2
559,Community and Housing,REDACTED PERSONAL DATA,968783,23-May-23,1562.56,0,163392,Learning Disabilities Placemnt,DIRECT PAYMENTS,R,2023,2
560,Corporate Services,D N H PROPERTY MAINTENANCE,2182DNH,02-May-23,1182.72,197.12,163395,Buildings Maintenance,"390000              Works - Construction, Repair & Maintenance",C,2023,2
561,Corporate Services,D N H PROPERTY MAINTENANCE,2267DNH,22-May-23,4416,736,163395,Schools FM,"390000              Works - Construction, Repair & Maintenance",C,2023,2
562,Corporate Services,D N H PROPERTY MAINTENANCE,2265DNH,15-May-23,528,88,163395,C & H Buildings,"390000              Works - Construction, Repair & Maintenance",C,2023,2
563,Community and Housing,Tunstall Healthcare (UK) Limited,CD970017392,16-May-23,9120,1520,163420,Hospital Discharge Grant,190000              Facilities & Management Services,A,2023,2
564,"Children, Schools and Family",REDACTED PERSONAL DATA,963180,04-May-23,785.52,0,163471,Placements Under 18,200000              Financial Services,R,2023,2
565,"Children, Schools and Family",REDACTED PERSONAL DATA,963191,04-May-23,692.46,0,163471,Placements Under 18,200000              Financial Services,R,2023,2
566,"Children, Schools and Family",REDACTED PERSONAL DATA,967116,12-May-23,785.52,0,163471,Placements Under 18,200000              Financial Services,R,2023,2
567,"Children, Schools and Family",REDACTED PERSONAL DATA,967126,12-May-23,792.46,0,163471,Placements Under 18,200000              Financial Services,R,2023,2
568,"Children, Schools and Family",REDACTED PERSONAL DATA,969437,19-May-23,785.52,0,163471,Placements Under 18,200000              Financial Services,R,2023,2
569,"Children, Schools and Family",REDACTED PERSONAL DATA,969447,19-May-23,692.46,0,163471,Placements Under 18,200000              Financial Services,R,2023,2
570,"Children, Schools and Family",REDACTED PERSONAL DATA,970750,25-May-23,597.12,0,163471,UASC LAC Under 18,200000              Financial Services,R,2023,2
571,"Children, Schools and Family",REDACTED PERSONAL DATA,970830,25-May-23,785.52,0,163471,Placements Under 18,200000              Financial Services,R,2023,2
572,"Children, Schools and Family",REDACTED PERSONAL DATA,970840,25-May-23,692.46,0,163471,Placements Under 18,200000              Financial Services,R,2023,2
573,Community and Housing,Active Prospects,965790,10-May-23,6103.76,0,163859,Learning Disabilities Placemnt,321017              Nursing & Residential Care Homes,A,2023,2
574,Community and Housing,REDACTED PERSONAL DATA,968814,23-May-23,1058.76,0,163971,Older People Placements - East,DIRECT PAYMENTS,R,2023,2
575,Corporate Services,SME INVOICE FINANCE LTD,19560,22-May-23,703.2,117.2,164106,Legal Shared Service,260000              Human Resources,A,2023,2
576,Corporate Services,CLIFFE ENTERPRISE LTD,22652,25-May-23,508,0,164341,Printing,190000              Facilities & Management Services,A,2023,2
577,Environment and Regeneration,LONDON COUNCILS,4339236,08-May-23,1500,0,164343,Operational Running Costs,OLA,A,2023,2
578,Corporate Services,LONDON COUNCILS,4339356,12-May-23,3600,600,164343,AD-Human Resources,OLA,A,2023,2
579,Community and Housing,SUPPORTED LIVING TEAM,PCASH 12/05/23,15-May-23,518.8,39.8,164370,Eastway Day Centre,INTERNAL,A,2023,2
580,Community and Housing,ENTERPRISE CARE SUPPORT LTD,20390,04-May-23,2850.12,0,164431,Older People Placements - East,321000              Social Community Care Supplies & Services - Adult,A,2023,2
581,Community and Housing,ENTERPRISE CARE SUPPORT LTD,20391,04-May-23,3279.12,0,164431,Older People Placements - East,321000              Social Community Care Supplies & Services - Adult,A,2023,2
582,Community and Housing,ENTERPRISE CARE SUPPORT LTD,20393,04-May-23,766.22,0,164431,Older People Placements - East,321000              Social Community Care Supplies & Services - Adult,A,2023,2
583,Community and Housing,ENTERPRISE CARE SUPPORT LTD,20402,04-May-23,1095.64,0,164431,Older People Placements - East,321000              Social Community Care Supplies & Services - Adult,A,2023,2
584,Community and Housing,ENTERPRISE CARE SUPPORT LTD,20403,04-May-23,2191.28,0,164431,Older People Placements - East,321000              Social Community Care Supplies & Services - Adult,A,2023,2
585,Community and Housing,ENTERPRISE CARE SUPPORT LTD,20405,04-May-23,1095.64,0,164431,Older People Placements - East,321000              Social Community Care Supplies & Services - Adult,A,2023,2
586,Community and Housing,ENTERPRISE CARE SUPPORT LTD,20408,04-May-23,2850.12,0,164431,Older People Placements - East,321000              Social Community Care Supplies & Services - Adult,A,2023,2
587,Community and Housing,ENTERPRISE CARE SUPPORT LTD,20410,04-May-23,736.83,0,164431,Older People Placements - East,321000              Social Community Care Supplies & Services - Adult,A,2023,2
588,Community and Housing,ENTERPRISE CARE SUPPORT LTD,20411,04-May-23,842.36,0,164431,Older People Placements - East,321000              Social Community Care Supplies & Services - Adult,A,2023,2
589,Community and Housing,ENTERPRISE CARE SUPPORT LTD,20412,04-May-23,1095.64,0,164431,Older People Placements - East,321000              Social Community Care Supplies & Services - Adult,A,2023,2
590,Community and Housing,ENTERPRISE CARE SUPPORT LTD,20389,08-May-23,3605.46,0,164431,Older People Placements - East,321000              Social Community Care Supplies & Services - Adult,A,2023,2
591,Community and Housing,ENTERPRISE CARE SUPPORT LTD,20394,08-May-23,965.32,0,164431,Older People Placements - East,321000              Social Community Care Supplies & Services - Adult,A,2023,2
592,Community and Housing,ENTERPRISE CARE SUPPORT LTD,20395,08-May-23,1095.64,0,164431,Older People Placements - East,321000              Social Community Care Supplies & Services - Adult,A,2023,2
593,Community and Housing,ENTERPRISE CARE SUPPORT LTD,20396,08-May-23,543.66,0,164431,Older People Placements - East,321000              Social Community Care Supplies & Services - Adult,A,2023,2
594,Community and Housing,ENTERPRISE CARE SUPPORT LTD,20397,08-May-23,701.91,0,164431,Older People Placements - East,321000              Social Community Care Supplies & Services - Adult,A,2023,2
595,Community and Housing,ENTERPRISE CARE SUPPORT LTD,20398,08-May-23,766.22,0,164431,Older People Placements - East,321000              Social Community Care Supplies & Services - Adult,A,2023,2
596,Community and Housing,ENTERPRISE CARE SUPPORT LTD,20400,08-May-23,1393.4,0,164431,Older People Placements - East,321000              Social Community Care Supplies & Services - Adult,A,2023,2
597,Community and Housing,ENTERPRISE CARE SUPPORT LTD,20401,09-May-23,701.91,0,164431,Learning Disabilities Placemnt,321000              Social Community Care Supplies & Services - Adult,A,2023,2
598,Community and Housing,ENTERPRISE CARE SUPPORT LTD,20488,30-May-23,1190.12,0,164431,Older People Placements - East,321000              Social Community Care Supplies & Services - Adult,A,2023,2
599,Community and Housing,ENTERPRISE CARE SUPPORT LTD,20486,30-May-23,1190.12,0,164431,Older People Placements - East,321000              Social Community Care Supplies & Services - Adult,A,2023,2
600,Community and Housing,ENTERPRISE CARE SUPPORT LTD,20484,30-May-23,2380.24,0,164431,Older People Placements - East,321000              Social Community Care Supplies & Services - Adult,A,2023,2
601,Community and Housing,ENTERPRISE CARE SUPPORT LTD,20483,30-May-23,1190.12,0,164431,Older People Placements - East,321000              Social Community Care Supplies & Services - Adult,A,2023,2
602,Community and Housing,ENTERPRISE CARE SUPPORT LTD,20481,30-May-23,1514.6,0,164431,Older People Placements - East,321000              Social Community Care Supplies & Services - Adult,A,2023,2
603,"Children, Schools and Family",I CAN CHARITY,8079,22-May-23,9760.64,1626.77,164540,Non-Delegated Statements,170000              Education,A,2023,2
604,"Children, Schools and Family",I CAN CHARITY,8087,22-May-23,9220.87,1536.81,164540,Non-Delegated Statements,170000              Education,A,2023,2
605,Community and Housing,BUPA CARE SERVICES BACS RECEIP,965984,10-May-23,8580.84,0,164629,Older People Placements - East,321017              Nursing & Residential Care Homes,A,2023,2
606,Community and Housing,REDACTED PERSONAL DATA,969003,23-May-23,1272.8,0,164694,Older People Placements - East,DIRECT PAYMENTS,R,2023,2
607,Unassigned,MARSTON GROUP,62690,22-May-23,3536.47,0,165202,Corporate Accountancy,200000              Financial Services,A,2023,2
608,Corporate Services,DX NETWORK SERVICES LTD,83803615,22-May-23,7229.21,1204.87,165316,Legal Shared Service,300000              Mail Services,A,2023,2
609,"Children, Schools and Family",CHILDREN OF COLOUR,8194,08-May-23,5164.71,0,165365,Placements Under 18,321100              Social Community Care Supplies & Services - Children,A,2023,2
610,Community and Housing,REDACTED PERSONAL DATA,969029,23-May-23,1349.48,0,165602,Learning Disabilities Placemnt,DIRECT PAYMENTS,R,2023,2
611,Community and Housing,REDACTED PERSONAL DATA,968988,23-May-23,5766.6,0,165619,Phys/Sens Placements - East,DIRECT PAYMENTS,R,2023,2
612,Community and Housing,BUPA CARE HOMES (ANS) LTD,966149,10-May-23,4791.48,0,165704,Older People Placements - East,321017              Nursing & Residential Care Homes,A,2023,2
613,Community and Housing,REDACTED PERSONAL DATA,969068,23-May-23,1001.56,0,165786,Older People Placements - East,DIRECT PAYMENTS,R,2023,2
614,Community and Housing,REDACTED PERSONAL DATA,969080,23-May-23,700.8,0,166085,Learning Disabilities Placemnt,DIRECT PAYMENTS,R,2023,2
615,Community and Housing,REDACTED PERSONAL DATA,968775,23-May-23,1654.64,0,166158,Phys/Sens Placements - East,DIRECT PAYMENTS,R,2023,2
616,Community and Housing,REDACTED PERSONAL DATA,968798,23-May-23,1209.16,0,166547,Learning Disabilities Placemnt,DIRECT PAYMENTS,R,2023,2
617,"Children, Schools and Family",REDACTED PERSONAL DATA,963109,04-May-23,1316.03,0,166742,Placements Under 18,321100              Social Community Care Supplies & Services - Children,R,2023,2
618,"Children, Schools and Family",REDACTED PERSONAL DATA,967041,12-May-23,1316.03,0,166742,Placements Under 18,321100              Social Community Care Supplies & Services - Children,R,2023,2
619,"Children, Schools and Family",REDACTED PERSONAL DATA,969361,19-May-23,1316.03,0,166742,Placements Under 18,321100              Social Community Care Supplies & Services - Children,R,2023,2
620,"Children, Schools and Family",REDACTED PERSONAL DATA,970756,25-May-23,1316.03,0,166742,Placements Under 18,321100              Social Community Care Supplies & Services - Children,R,2023,2
621,Environment and Regeneration,UNIQUE OFFICE SOLUTIONS LTD,112637,16-May-23,1212.66,202.11,166889,Vestry Hall,210000              Furniture & Soft Furnishings,A,2023,2
622,"Children, Schools and Family",UNIQUE OFFICE SOLUTIONS LTD,112432,30-May-23,2856.17,476.03,166889,Head - Help & Family Assessmnt,210000              Furniture & Soft Furnishings,A,2023,2
623,Environment and Regeneration,UNIQUE OFFICE SOLUTIONS LTD,112638,22-May-23,3400.8,566.8,166889,EDS2,210000              Furniture & Soft Furnishings,A,2023,2
624,"Children, Schools and Family",REDACTED PERSONAL DATA,969770,22-May-23,807.76,0,166972,Child Disabilities - Placement,CSF-DIRECT PAYMENTS,R,2023,2
625,"Children, Schools and Family",RAINBOW FOSTERING SERVICES LTD,RF2483,25-May-23,3621.42,0,167793,Placements Under 18,321100              Social Community Care Supplies & Services - Children,A,2023,2
626,"Children, Schools and Family",BURLINGTON HOUSE SCHOOL,230446,24-May-23,11918,0,167981,Non-Delegated Statements,200000              Financial Services,A,2023,2
627,"Children, Schools and Family",BURLINGTON HOUSE SCHOOL,P230415,24-May-23,12694,0,167981,Non-Delegated Statements,200000              Financial Services,A,2023,2
628,"Children, Schools and Family",BURLINGTON HOUSE SCHOOL,230447,24-May-23,11918,0,167981,Non-Delegated Statements,200000              Financial Services,A,2023,2
629,"Children, Schools and Family",BURLINGTON HOUSE SCHOOL,230478,24-May-23,12694,0,167981,Non-Delegated Statements,200000              Financial Services,A,2023,2
630,"Children, Schools and Family",BURLINGTON HOUSE SCHOOL,230444,24-May-23,10660,0,167981,Non-Delegated Statements,200000              Financial Services,A,2023,2
631,"Children, Schools and Family",BURLINGTON HOUSE SCHOOL,230451,24-May-23,12694,0,167981,Non-Delegated Statements,200000              Financial Services,A,2023,2
632,"Children, Schools and Family",BURLINGTON HOUSE SCHOOL,230449,24-May-23,12274,0,167981,Non-Delegated Statements,200000              Financial Services,A,2023,2
633,"Children, Schools and Family",BURLINGTON HOUSE SCHOOL,230448,24-May-23,12274,0,167981,Non-Delegated Statements,200000              Financial Services,A,2023,2
634,"Children, Schools and Family",BURLINGTON HOUSE SCHOOL,6230452,24-May-23,12728,0,167981,Non-Delegated Statements,200000              Financial Services,A,2023,2
635,"Children, Schools and Family",BURLINGTON HOUSE SCHOOL,6230453,24-May-23,13110,0,167981,Non-Delegated Statements,200000              Financial Services,A,2023,2
636,"Children, Schools and Family",BURLINGTON HOUSE SCHOOL,230445,24-May-23,11918,0,167981,Non-Delegated Statements,200000              Financial Services,A,2023,2
637,"Children, Schools and Family",BURLINGTON HOUSE SCHOOL,P230414,24-May-23,12694,0,167981,Non-Delegated Statements,200000              Financial Services,A,2023,2
638,"Children, Schools and Family",BURLINGTON HOUSE SCHOOL,230450,31-May-23,12274,0,167981,Non-Delegated Statements,200000              Financial Services,A,2023,2
639,Corporate Services,REDACTED PERSONAL DATA,10202962,02-May-23,638.4,106.4,168092,SLLP - Disbursements,280000              Legal Services,R,2023,2
640,Corporate Services,REDACTED PERSONAL DATA,10203196,02-May-23,969.6,161.6,168092,SLLP - Disbursements,280000              Legal Services,R,2023,2
641,Corporate Services,REDACTED PERSONAL DATA,10221573,10-May-23,1874.4,312.4,168092,SLLP - Disbursements,280000              Legal Services,R,2023,2
642,Corporate Services,REDACTED PERSONAL DATA,10220514,24-May-23,21678,3613,168092,SLLP - Disbursements,280000              Legal Services,R,2023,2
643,Corporate Services,REDACTED PERSONAL DATA,10224240,30-May-23,34320.6,5720.1,168092,SLLP - Disbursements,280000              Legal Services,R,2023,2
644,Capital,CBS Adaptation Design,1749,08-May-23,1456.91,155.32,168147,Disabled Facilities Grant,200000              Financial Services,A,2023,2
645,Capital,CBS Adaptation Design,1747,11-May-23,1953.23,237.04,168147,Disabled Facilities Grant,200000              Financial Services,A,2023,2
646,Capital,CBS Adaptation Design,1745,11-May-23,2833.78,384.8,168147,Disabled Facilities Grant,200000              Financial Services,A,2023,2
647,Corporate Services,LANGUAGE BANK,MTS-250423,11-May-23,624,104,168229,Translation Service,TRANSLATIONS,A,2023,2
648,Corporate Services,LANGUAGE BANK,MTS-210423,19-May-23,708,118,168229,Translation Service,TRANSLATIONS,A,2023,2
649,Corporate Services,LANGUAGE BANK,MTS-010523,29-May-23,822,137,168229,Translation Service,TRANSLATIONS,A,2023,2
650,Corporate Services,LANGUAGE BANK,MTS-040523,29-May-23,933,155.5,168229,Translation Service,TRANSLATIONS,A,2023,2
651,Community and Housing,REDACTED PERSONAL DATA,968807,23-May-23,786.76,0,168403,Learning Disabilities Placemnt,DIRECT PAYMENTS,R,2023,2
652,Capital,SYNERGY CPC LLP,2324/0156,29-May-23,1008,168,168935,Harris Academy Wimbledon,"390000              Works - Construction, Repair & Maintenance",A,2023,2
653,Community and Housing,FITZROY SUPPORT,965819,10-May-23,6414.52,0,169400,Learning Disabilities Placemnt,321017              Nursing & Residential Care Homes,A,2023,2
654,Environment and Regeneration,HAYMARKET MEDIA GROUP LIMITED,50228573,29-May-23,7068,1178,170034,Development Control,260000              Human Resources,A,2023,2
655,"Children, Schools and Family",JULIUS RUTHERFOORD AND CO LTD,INVS149538,22-May-23,861.97,143.66,170092,Avenue CC Building Management,130000              Cleaning & Janitorial,A,2023,2
656,"Children, Schools and Family",JULIUS RUTHERFOORD AND CO LTD,INVS149267,22-May-23,1229.42,204.9,170092,Bond Road Building,130000              Cleaning & Janitorial,A,2023,2
657,"Children, Schools and Family",JULIUS RUTHERFOORD AND CO LTD,INVS149287,22-May-23,861.97,143.66,170092,Church Road Building,130000              Cleaning & Janitorial,A,2023,2
658,"Children, Schools and Family",JULIUS RUTHERFOORD AND CO LTD,INVS149400,22-May-23,862.03,143.67,170092,Ivy Garden CC Building,130000              Cleaning & Janitorial,A,2023,2
659,"Children, Schools and Family",JULIUS RUTHERFOORD AND CO LTD,INVS149240,22-May-23,861.97,143.66,170092,Lower Morden CC Building Mgt,130000              Cleaning & Janitorial,A,2023,2
660,"Children, Schools and Family",JULIUS RUTHERFOORD AND CO LTD,INVS149440,22-May-23,1298.96,216.49,170092,Newminster CC Building Mgt,130000              Cleaning & Janitorial,A,2023,2
661,Corporate Services,JULIUS RUTHERFOORD AND CO LTD,INVS149017,29-May-23,2296.06,382.68,170092,PDC,130000              Cleaning & Janitorial,A,2023,2
662,Corporate Services,JULIUS RUTHERFOORD AND CO LTD,INVS149433,29-May-23,2498.65,416.44,170092,PDC,130000              Cleaning & Janitorial,A,2023,2
663,"Children, Schools and Family",SENSATIONAL KIDS,INV-6580,08-May-23,570,0,170195,Non-Delegated Statements,321100              Social Community Care Supplies & Services - Children,A,2023,2
664,"Children, Schools and Family",SENSATIONAL KIDS,INV-6571,16-May-23,830,0,170195,Non-Delegated Statements,321100              Social Community Care Supplies & Services - Children,A,2023,2
665,"Children, Schools and Family",SENSATIONAL KIDS,INV-6558,16-May-23,710,0,170195,Non-Delegated Statements,321100              Social Community Care Supplies & Services - Children,A,2023,2
666,"Children, Schools and Family",SENSATIONAL KIDS,INV-6568,16-May-23,1115,0,170195,Non-Delegated Statements,321100              Social Community Care Supplies & Services - Children,A,2023,2
667,Corporate Services,REDACTED PERSONAL DATA,17348827/03/23,10-May-23,6180,0,170268,SLLP - Disbursements,280000              Legal Services                                                                            Confirmed,R,2023,2
668,Community and Housing,INDEPENDENCE HOMES LTD,966091,10-May-23,7935.88,0,170527,Learning Disabilities Placemnt,321017              Nursing & Residential Care Homes,A,2023,2
669,Community and Housing,INDEPENDENCE HOMES LTD,CED00136,23-May-23,5662.72,0,170527,Learning Disabilities Placemnt,321017              Nursing & Residential Care Homes,A,2023,2
670,"Children, Schools and Family",GREATER LONDON FOSTERING LTD,INV-0573,22-May-23,3403.5,0,170596,Placements Under 18,321100              Social Community Care Supplies & Services - Children,A,2023,2
671,"Children, Schools and Family",GREATER LONDON FOSTERING LTD,INV-0572,22-May-23,3578.4,0,170596,Placements Under 18,321100              Social Community Care Supplies & Services - Children,A,2023,2
672,"Children, Schools and Family",ADCS,SI-36371,11-May-23,2236.8,372.8,170603, Central Administration,200000              Financial Services,A,2023,2
673,Community and Housing,REDACTED PERSONAL DATA,969005,23-May-23,1427.4,0,170878,Learning Disabilities Placemnt,DIRECT PAYMENTS,R,2023,2
674,Community and Housing,REDACTED PERSONAL DATA,968849,23-May-23,1304.64,0,171056,Phys/Sens Placements - East,DIRECT PAYMENTS,R,2023,2
675,Community and Housing,ST GEORGES RES. CARE HOME,966135,10-May-23,4871.4,0,171491,Learning Disabilities Placemnt,321017              Nursing & Residential Care Homes,A,2023,2
676,Community and Housing,ST GEORGES RES. CARE HOME,966162,10-May-23,4024.2,0,171491,Learning Disabilities Placemnt,321017              Nursing & Residential Care Homes,A,2023,2
677,Environment and Regeneration,BT REDCARE,20035810,16-May-23,2626.1,437.68,171767,CCTV,350000              Street & Traffic Management,A,2023,2
678,Environment and Regeneration,BT REDCARE,20035809,16-May-23,74214.97,12369.16,171767,CCTV,350000              Street & Traffic Management,A,2023,2
679,Community and Housing,REDACTED PERSONAL DATA,968956,23-May-23,588.08,0,172070,Learning Disabilities Placemnt,DIRECT PAYMENTS,R,2023,2
680,Community and Housing,NORBURY PROPERTY SERV LDN LTD,SI-8771,23-May-23,11153.1,0,172104,Bed & Breakfast - accomm,321000              Social Community Care Supplies & Services - Adult,A,2023,2
681,Community and Housing,EALING COUNCIL,17224637,11-May-23,10000,0,172129,Homelessness Prevention,OLA,A,2023,2
682,Community and Housing,EALING COUNCIL,965778,10-May-23,2985.92,0,172129,Mental Health Placements,OLA,A,2023,2
683,Community and Housing,CARRICKS BROOK,965796,10-May-23,6536.16,0,172297,Learning Disabilities Placemnt,321017              Nursing & Residential Care Homes,A,2023,2
684,Community and Housing,BROADHAM CARE LTD,965845,10-May-23,7386.96,0,172298,Learning Disabilities Placemnt,321017              Nursing & Residential Care Homes,A,2023,2
685,Community and Housing,BROADHAM CARE LTD,966120,10-May-23,7638.12,0,172298,Learning Disabilities Placemnt,321017              Nursing & Residential Care Homes,A,2023,2
686,Unassigned,KENNEDYS,012300264731M890,16-May-23,3360,560,172486,Corporate Services,280000              Legal Services,A,2023,2
687,"Children, Schools and Family",LINDEN LODGE SCHOOL,INV-1281,25-May-23,34751.67,0,172798,Non-Delegated Statements,170000              Education,A,2023,2
688,Community and Housing,REDACTED PERSONAL DATA,968764,23-May-23,923.76,0,172912,Learning Disabilities Placemnt,DIRECT PAYMENTS,R,2023,2
689,Community and Housing,REDACTED PERSONAL DATA,968899,23-May-23,890.96,0,172914,Learning Disabilities Placemnt,DIRECT PAYMENTS,R,2023,2
690,Community and Housing,HAVERING COURT NURSING HOME,961269,02-May-23,6404.9,0,173297,Phys/Sens Placements - East,321017              Nursing & Residential Care Homes,A,2023,2
691,Community and Housing,HAVERING COURT NURSING HOME,965759,10-May-23,4954.12,0,173297,Older People Placements - East,321017              Nursing & Residential Care Homes,A,2023,2
692,Community and Housing,REDACTED PERSONAL DATA,968974,23-May-23,795.52,0,173308,Phys/Sens Placements - East,DIRECT PAYMENTS,R,2023,2
693,"Children, Schools and Family",REDACTED PERSONAL DATA,967163,12-May-23,1708.22,0,173600,Placements Under 18,321100              Social Community Care Supplies & Services - Children,R,2023,2
694,Unassigned,ROYAL CAMBRIDGE HOME,70915 CORRECTION,22-May-23,5400,0,173939,Prov. for Bad & Doubtful Debts,321017              Nursing & Residential Care Homes,A,2023,2
695,Community and Housing,HARBOUR CARE (UK) LTD,966066,10-May-23,6448.68,0,173947,Learning Disabilities Placemnt,321017              Nursing & Residential Care Homes,A,2023,2
696,Community and Housing,TOWNSWEB ARCHIVING LTD,ARD8900023,05-Jun-23,1417.2,236.2,174127,Senior Management - Libraries,270000              Information Communication Technology,A,2023,2
697,Community and Housing,ASHINGTON HOUSE,965815,10-May-23,4406.68,0,174259,Learning Disabilities Placemnt,321017              Nursing & Residential Care Homes,A,2023,2
698,Community and Housing,REDACTED PERSONAL DATA,968804,23-May-23,740.72,0,174449,Phys/Sens Placements - East,DIRECT PAYMENTS,R,2023,2
699,Community and Housing,PRECIOUS HOMES LTD,VER002545,22-May-23,10423.35,0,174641,Learning Disabilities Placemnt,321017              Nursing & Residential Care Homes,A,2023,2
700,Community and Housing,SUPREME HOMES,30387,23-May-23,3280,0,174758,Mental Health Placements,321017              Nursing & Residential Care Homes,A,2023,2
701,Community and Housing,ALPENBEST LIMITED,16042023-963516,02-May-23,573.01,0,174789,Older People Placements - East,321000              Social Community Care Supplies & Services - Adult,A,2023,2
702,Community and Housing,ALPENBEST LIMITED,16042023-994358,02-May-23,561.54,0,174789,Older People Placements - East,321000              Social Community Care Supplies & Services - Adult,A,2023,2
703,Community and Housing,ALPENBEST LIMITED,23042023-963516,02-May-23,545.57,0,174789,Older People Placements - East,321000              Social Community Care Supplies & Services - Adult,A,2023,2
704,Community and Housing,ALPENBEST LIMITED,23042023-994358,02-May-23,534.1,0,174789,Older People Placements - East,321000              Social Community Care Supplies & Services - Adult,A,2023,2
705,Community and Housing,ALPENBEST LIMITED,24042023-994358,30-May-23,580.16,0,174789,Older People Placements - East,321000              Social Community Care Supplies & Services - Adult,A,2023,2
706,Community and Housing,ALPENBEST LIMITED,24042023-101826,30-May-23,605.1,0,174789,Older People Placements - East,321000              Social Community Care Supplies & Services - Adult,A,2023,2
707,Community and Housing,ALPENBEST LIMITED,01052023-994358,30-May-23,609.96,0,174789,Older People Placements - East,321000              Social Community Care Supplies & Services - Adult,A,2023,2
708,Community and Housing,ALPENBEST LIMITED,01052023-963516,30-May-23,622.43,0,174789,Older People Placements - East,321000              Social Community Care Supplies & Services - Adult,A,2023,2
709,Community and Housing,ALPENBEST LIMITED,14052023-994358,30-May-23,609.96,0,174789,Older People Placements - East,321000              Social Community Care Supplies & Services - Adult,A,2023,2
710,Community and Housing,ALPENBEST LIMITED,14052023-963516,30-May-23,622.43,0,174789,Older People Placements - East,321000              Social Community Care Supplies & Services - Adult,A,2023,2
711,Community and Housing,ALPENBEST LIMITED,15052023-994358,30-May-23,580.16,0,174789,Older People Placements - East,321000              Social Community Care Supplies & Services - Adult,A,2023,2
712,Community and Housing,ALPENBEST LIMITED,15052023-963516,30-May-23,592.63,0,174789,Older People Placements - East,321000              Social Community Care Supplies & Services - Adult,A,2023,2
713,Community and Housing,SUTTON COURT CARE CENTRE,962474,02-May-23,5185.94,0,174833,Older People Placements - East,321017              Nursing & Residential Care Homes,A,2023,2
714,Community and Housing,SUTTON COURT CARE CENTRE,965858,10-May-23,2827.36,0,174833,Older People Placements - East,321017              Nursing & Residential Care Homes,A,2023,2
715,Community and Housing,SUTTON COURT CARE CENTRE,965879,10-May-23,3723.24,0,174833,Older People Placements - East,321017              Nursing & Residential Care Homes,A,2023,2
716,Community and Housing,SUTTON COURT CARE CENTRE,965958,10-May-23,3163.36,0,174833,Older People Placements - East,321017              Nursing & Residential Care Homes,A,2023,2
717,Community and Housing,SUTTON COURT CARE CENTRE,965986,10-May-23,4049.6,0,174833,Phys/Sens Placements - East,321017              Nursing & Residential Care Homes,A,2023,2
718,Community and Housing,SUTTON COURT CARE CENTRE,966140,10-May-23,4139.36,0,174833,Phys/Sens Placements - East,321017              Nursing & Residential Care Homes,A,2023,2
719,Community and Housing,SUTTON COURT CARE CENTRE,971624,30-May-23,6025.16,0,174833,Older People Placements - East,321017              Nursing & Residential Care Homes,A,2023,2
720,Community and Housing,REDACTED PERSONAL DATA,968739,23-May-23,636.4,0,174975,Learning Disabilities Placemnt,DIRECT PAYMENTS,R,2023,2
721,Corporate Services,COSMIC EUROPE LIMTED,UK7132,03-May-23,672,112,175169,Translation Service,TRANSLATIONS,A,2023,2
722,Corporate Services,COSMIC EUROPE LIMTED,UK7133,03-May-23,600,100,175169,Translation Service,TRANSLATIONS,A,2023,2
723,Corporate Services,COSMIC EUROPE LIMTED,UK7136,03-May-23,1428,238,175169,Translation Service,TRANSLATIONS,A,2023,2
724,"Children, Schools and Family",GLOBAL MEDIATION LTD,INV-94344,16-May-23,1560,260,175270,Non-Delegated Statements,260000              Human Resources                                                                           Confirmed,A,2023,2
725,Community and Housing,KISIMUL SCHOOL,965785,10-May-23,12524.72,0,175545,Learning Disabilities Placemnt,321017              Nursing & Residential Care Homes,A,2023,2
726,Community and Housing,KISIMUL SCHOOL,966027,10-May-23,16304,0,175545,Learning Disabilities Placemnt,321017              Nursing & Residential Care Homes,A,2023,2
727,Community and Housing,REDACTED PERSONAL DATA,968852,23-May-23,1781.92,0,175782,Phys/Sens Placements - East,DIRECT PAYMENTS,R,2023,2
728,Corporate Services,LAVAT CONSULTING LIMITED,INV-110812,16-May-23,2160,360,175816,Corporate Accountancy,260000              Human Resources,A,2023,2
729,Unassigned,LAVAT CONSULTING LIMITED,INV-110813,22-May-23,3600,600,175816,MSJCB I&E,260000              Human Resources,A,2023,2
730,Community and Housing,REDACTED PERSONAL DATA,968916,23-May-23,1332.44,0,175960,Learning Disabilities Placemnt,DIRECT PAYMENTS,R,2023,2
731,Environment and Regeneration,M J MAPP LTD,127000/6415,30-May-23,5168.15,861.36,176206,Parking - Car Parks,250000              Housing Management,A,2023,2
732,Environment and Regeneration,FMG CONSULTING LTD,FMG2530,22-May-23,2160,360,176373,Leisure Centres - Client Side,150000              Consultancy                                                                               Confimed,A,2023,2
733,Community and Housing,Care for Veterans,962262,02-May-23,6442.13,0,176384,Phys/Sens Placements - East,321017              Nursing & Residential Care Homes,A,2023,2
734,"Children, Schools and Family",LONDON BOROUGH OF WANDSWORTH,2101134996,17-May-23,2701.84,0,176557,Placements Under 18,OLA,A,2023,2
735,Community and Housing,REDACTED PERSONAL DATA,967233,15-May-23,1035.72,0,176673,Learning Disabilities Placemnt,DIRECT PAYMENTS,R,2023,2
736,Community and Housing,REDACTED PERSONAL DATA,968904,23-May-23,5222.8,0,176783,Phys/Sens Placements - East,DIRECT PAYMENTS,R,2023,2
737,Community and Housing,REDACTED PERSONAL DATA,969006,23-May-23,1430.08,0,176868,Phys/Sens Placements - East,DIRECT PAYMENTS,R,2023,2
738,Community and Housing,SPRING LAKE CARE HOME LTD,965925,10-May-23,11418,0,177067,Learning Disabilities Placemnt,321017              Nursing & Residential Care Homes,A,2023,2
739,Community and Housing,SPRING LAKE CARE HOME LTD,966133,10-May-23,6468,0,177067,Learning Disabilities Placemnt,321017              Nursing & Residential Care Homes,A,2023,2
740,Community and Housing,REDACTED PERSONAL DATA,968997,23-May-23,652.32,0,177115,Older People Placements - East,DIRECT PAYMENTS,R,2023,2
741,"Children, Schools and Family",HA TUTORS LTD,INV-13522,02-May-23,927.6,154.6,177219,Non-Delegated Statements,170000              Education,A,2023,2
742,"Children, Schools and Family",HA TUTORS LTD,INV-13524,02-May-23,2500.8,416.8,177219,Non-Delegated Statements,170000              Education,A,2023,2
743,"Children, Schools and Family",HA TUTORS LTD,INV-13519,02-May-23,624,104,177219,Non-Delegated Statements,170000              Education,A,2023,2
744,"Children, Schools and Family",HA TUTORS LTD,INV-13526,03-May-23,1239.6,206.6,177219,Non-Delegated Statements,170000              Education,A,2023,2
745,"Children, Schools and Family",HA TUTORS LTD,INV-13523,02-May-23,1240.8,206.8,177219,Non-Delegated Statements,170000              Education,A,2023,2
746,"Children, Schools and Family",HA TUTORS LTD,INV-13527,02-May-23,1933.2,322.2,177219,Non-Delegated Statements,170000              Education,A,2023,2
747,"Children, Schools and Family",HA TUTORS LTD,INV-13521,02-May-23,3661.2,610.2,177219,Non-Delegated Statements,170000              Education,A,2023,2
748,"Children, Schools and Family",HA TUTORS LTD,INV-13525,02-May-23,3882.8,647.13,177219,Non-Delegated Statements,170000              Education,A,2023,2
749,"Children, Schools and Family",HA TUTORS LTD,INV-13520,02-May-23,2377.8,396.3,177219,Non-Delegated Statements,170000              Education,A,2023,2
750,"Children, Schools and Family",HA TUTORS LTD,INV-13543,18-May-23,768.8,128.13,177219,PupilPremium- Virtual School,170000              Education,A,2023,2
751,"Children, Schools and Family",HA TUTORS LTD,INV-13623,18-May-23,918,153,177219,PupilPremium- Virtual School,170000              Education,A,2023,2
752,Capital,UK POWER NETWORKS (OPERATIONS),92164126,02-Jun-23,4284,714,177333,Highways & Footways,180000              Environmental Services,A,2023,2
753,Corporate Services,EXPERT IN MIND,38729,09-May-23,786.36,131.06,177342,SLLP - Disbursements,280000              Legal Services                                                                            Confirmed,A,2023,2
754,Corporate Services,EXPERT IN MIND,40165,22-May-23,518.4,86.4,177342,SLLP - Disbursements,280000              Legal Services                                                                            Confirmed,A,2023,2
755,Community and Housing,HYTYME B AND B,26880,17-May-23,11520,1920,177425,Bed & Breakfast - accomm,321000              Social Community Care Supplies & Services - Adult,A,2023,2
756,"Children, Schools and Family",HYTYME B AND B,26906,15-May-23,1386,231,177425,Family Assessmt & Intervention,321000              Social Community Care Supplies & Services - Adult,A,2023,2
757,Community and Housing,HYTYME B AND B,26826,23-May-23,2265.84,377.64,177425,Housing Strategy,321000              Social Community Care Supplies & Services - Adult,A,2023,2
758,Community and Housing,REDACTED PERSONAL DATA,968800,23-May-23,710.2,0,177453,Phys/Sens Placements - East,DIRECT PAYMENTS,R,2023,2
759,Community and Housing,REDACTED PERSONAL DATA,968792,23-May-23,724.72,0,177476,Learning Disabilities Placemnt,DIRECT PAYMENTS,R,2023,2
760,Community and Housing,REDACTED PERSONAL DATA,968741,23-May-23,1197.28,0,177502,Phys/Sens Placements - East,DIRECT PAYMENTS,R,2023,2
761,Community and Housing,VOICEABILITY,11813,30-May-23,1846.55,0,177608,Adult Safeguarding,321000              Social Community Care Supplies & Services - Adult,A,2023,2
762,Community and Housing,VOICEABILITY,11816,30-May-23,1408.88,0,177608,Adult Safeguarding,321000              Social Community Care Supplies & Services - Adult,A,2023,2
763,Community and Housing,VOICEABILITY,11815,30-May-23,2439.18,0,177608,Adult Safeguarding,321000              Social Community Care Supplies & Services - Adult,A,2023,2
764,Community and Housing,VOICEABILITY,11811,30-May-23,4328.83,0,177608,Adult Safeguarding,321000              Social Community Care Supplies & Services - Adult,A,2023,2
765,Corporate Services,HPI LIMITED,6160-001757968,18-May-23,702.64,117.11,177649,Local Taxation Bailiffs,200000              Financial Services,A,2023,2
766,"Children, Schools and Family",Catch 22 Charity Ltd,CSI0001223,11-May-23,94500,0,177705, Young Person Substance Misuse,321100              Social Community Care Supplies & Services - Children,A,2023,2
767,Unassigned,Catch 22 Charity Ltd,CSI0001223VAT,17-May-23,18900,0,177705,Corporate Accountancy,321100              Social Community Care Supplies & Services - Children,A,2023,2
768,Community and Housing,REDACTED PERSONAL DATA,968809,23-May-23,572.76,0,177739,Phys/Sens Placements - East,DIRECT PAYMENTS,R,2023,2
769,"Children, Schools and Family",WHITE HUT STUDIO,INV-0029,17-May-23,2200,0,177740,Virtual Schools - PEA's,290000              Arts & Leisure Services                                                                   Confirmed,A,2023,2
770,Community and Housing,GREENHAM,01/461106,04-May-23,753.5,125.58,177744,Libraries Service-Civic Centre,130000              Cleaning & Janitorial,A,2023,2
771,Environment and Regeneration,GREENHAM,07/489946,25-May-23,534.33,89.05,177744,Air Quality (NRMM),130000              Cleaning & Janitorial,A,2023,2
772,Community and Housing,REDACTED PERSONAL DATA,968821,23-May-23,668.24,0,177785,Phys/Sens Placements - East,DIRECT PAYMENTS,R,2023,2
773,"Children, Schools and Family",MM-ICT LIMITED,4631,15-May-23,1895.22,315.87,177830,PupilPremium- Virtual School,270000              Information Communication Technology,A,2023,2
774,Community and Housing,WORKSHOP 305,ASCO164,03-May-23,807.6,0,177941,Learning Disabilities Placemnt,321000              Social Community Care Supplies & Services - Adult,A,2023,2
775,Community and Housing,WORKSHOP 305,ALA164,09-May-23,538.4,0,177941,Learning Disabilities Placemnt,321000              Social Community Care Supplies & Services - Adult,A,2023,2
776,Community and Housing,WORKSHOP 305,RAG164,09-May-23,807.6,0,177941,Learning Disabilities Placemnt,321000              Social Community Care Supplies & Services - Adult,A,2023,2
777,Community and Housing,WORKSHOP 305,SLAP164,09-May-23,538.32,0,177941,Learning Disabilities Placemnt,321000              Social Community Care Supplies & Services - Adult,A,2023,2
778,Community and Housing,WORKSHOP 305,ASCO165,23-May-23,807.6,0,177941,Learning Disabilities Placemnt,321000              Social Community Care Supplies & Services - Adult,A,2023,2
779,Community and Housing,WORKSHOP 305,AGAR165,23-May-23,538.4,0,177941,Learning Disabilities Placemnt,321000              Social Community Care Supplies & Services - Adult,A,2023,2
780,Community and Housing,WORKSHOP 305,RAG165,24-May-23,807.6,0,177941,Learning Disabilities Placemnt,321000              Social Community Care Supplies & Services - Adult,A,2023,2
781,Community and Housing,WORKSHOP 305,SLAP165,30-May-23,538.32,0,177941,Learning Disabilities Placemnt,321000              Social Community Care Supplies & Services - Adult,A,2023,2
782,Community and Housing,REDACTED PERSONAL DATA,968735,23-May-23,731.4,0,177967,Learning Disabilities Placemnt,DIRECT PAYMENTS,R,2023,2
783,Community and Housing,REDACTED PERSONAL DATA,968862,23-May-23,890.96,0,177999,Learning Disabilities Placemnt,DIRECT PAYMENTS,R,2023,2
784,"Children, Schools and Family",REDACTED PERSONAL DATA,967519,15-May-23,2584.15,0,178179,Fostering Recruit/Assessment,321100              Social Community Care Supplies & Services - Children,R,2023,2
785,"Children, Schools and Family",REDACTED PERSONAL DATA,967543,15-May-23,618.93,0,178179,Fostering Recruit/Assessment,321100              Social Community Care Supplies & Services - Children,R,2023,2
786,"Children, Schools and Family",REDACTED PERSONAL DATA,967047,12-May-23,568.14,0,178288,UASC LAC Under 18,321100              Social Community Care Supplies & Services - Children,R,2023,2
787,Community and Housing,REDACTED PERSONAL DATA,968796,23-May-23,1008.44,0,178412,Learning Disabilities Placemnt,DIRECT PAYMENTS,R,2023,2
788,Community and Housing,REDACTED PERSONAL DATA,968981,23-May-23,4454.8,0,178412,Learning Disabilities Placemnt,DIRECT PAYMENTS,R,2023,2
789,Community and Housing,BRAMBLEDOWN CARE HOME,965936,10-May-23,7448.8,0,178465,Phys/Sens Placements - East,321017              Nursing & Residential Care Homes,A,2023,2
790,Community and Housing,LOVE WALK RESIDENTIAL HOME,965934,10-May-23,3381.4,0,178620,Phys/Sens Placements - East,321017              Nursing & Residential Care Homes,A,2023,2
791,Community and Housing,KEW HOUSE,965945,10-May-23,3289.24,0,178621,Older People Placements - East,321017              Nursing & Residential Care Homes,A,2023,2
792,Community and Housing,KEW HOUSE,966024,10-May-23,5800,0,178621,Older People Placements - East,321017              Nursing & Residential Care Homes,A,2023,2
793,Community and Housing,KEW HOUSE,966175,10-May-23,3220.32,0,178621,Older People Placements - East,321017              Nursing & Residential Care Homes,A,2023,2
794,Community and Housing,REDACTED PERSONAL DATA,968990,23-May-23,4710.56,0,178802,Learning Disabilities Placemnt,DIRECT PAYMENTS,R,2023,2
795,Community and Housing,REDACTED PERSONAL DATA,968932,23-May-23,1812.28,0,178874,Learning Disabilities Placemnt,DIRECT PAYMENTS,R,2023,2
796,Corporate Services,PENNA PLC,671868,22-May-23,5199.99,866.66,179007,Chief Executive,190000              Facilities & Management Services,A,2023,2
797,Corporate Services,PENNA PLC,671869,22-May-23,8606.4,1434.4,179007,Chief Executive,190000              Facilities & Management Services,A,2023,2
798,Community and Housing,REDACTED PERSONAL DATA,969090,23-May-23,1261.84,0,179049,Learning Disabilities Placemnt,DIRECT PAYMENTS,R,2023,2
799,Corporate Services,HAYS SPECIALIST RECRUITM'T LTD,1012918490,24-May-23,7200,1200,179169,Corporate Accountancy,260000              Human Resources,A,2023,2
800,Community and Housing,REDACTED PERSONAL DATA,968812,23-May-23,825.04,0,179299,Older People Placements - East,DIRECT PAYMENTS,R,2023,2
801,Community and Housing,REDACTED PERSONAL DATA,968950,23-May-23,1739.6,0,179332,Phys/Sens Placements - East,DIRECT PAYMENTS,R,2023,2
802,Community and Housing,REDACTED PERSONAL DATA,969000,23-May-23,4276.8,0,179383,Learning Disabilities Placemnt,DIRECT PAYMENTS,R,2023,2
803,Community and Housing,ELYSIUM CARE PARTNERSHIPS LTD,965976,10-May-23,9049.16,0,179734,Learning Disabilities Placemnt,321017              Nursing & Residential Care Homes,A,2023,2
804,Community and Housing,ELYSIUM CARE PARTNERSHIPS LTD,965991,10-May-23,3462.2,0,179734,Learning Disabilities Placemnt,321017              Nursing & Residential Care Homes,A,2023,2
805,Community and Housing,ELYSIUM CARE PARTNERSHIPS LTD,966109,10-May-23,9821,0,179734,Learning Disabilities Placemnt,321017              Nursing & Residential Care Homes,A,2023,2
806,Community and Housing,WESTHOPE LTD,965940,10-May-23,6350.78,1058.46,179748,Learning Disabilities Placemnt,321017              Nursing & Residential Care Homes,A,2023,2
807,Community and Housing,SUNNINGDALE HOUSE CARE HOME,966101,10-May-23,2575,0,179794,Learning Disabilities Placemnt,321017              Nursing & Residential Care Homes,A,2023,2
808,Community and Housing,SUNLIGHT HOUSE,965880,10-May-23,7667.6,0,179813,Learning Disabilities Placemnt,321017              Nursing & Residential Care Homes,A,2023,2
809,Community and Housing,SUNLIGHT HOUSE,965996,10-May-23,5140,0,179813,Learning Disabilities Placemnt,321017              Nursing & Residential Care Homes,A,2023,2
810,Community and Housing,BHAKTI SHYAMA CARE CENTRE,962454,02-May-23,1285.72,0,179993,Older People Placements - East,321017              Nursing & Residential Care Homes,A,2023,2
811,Community and Housing,BHAKTI SHYAMA CARE CENTRE,965871,10-May-23,3557.92,0,179993,Older People Placements - East,321017              Nursing & Residential Care Homes,A,2023,2
812,Community and Housing,BHAKTI SHYAMA CARE CENTRE,966172,10-May-23,2985.6,0,179993,Older People Placements - East,321017              Nursing & Residential Care Homes,A,2023,2
813,"Children, Schools and Family",REAMCARE LTD,LHRPAM052301,12-May-23,19457.1,0,180045,Placements Under 18,321100              Social Community Care Supplies & Services - Children Residential,A,2023,2
814,Community and Housing,REDACTED PERSONAL DATA,969075,23-May-23,1104.76,0,180174,Older People Placements - East,DIRECT PAYMENTS,R,2023,2
815,Community and Housing,SUNRISE DAY CARE,DP4900,04-May-23,3090.48,0,180196,Phys/Sens Placements - East,321000              Social Community Care Supplies & Services - Adult,A,2023,2
816,Community and Housing,SUNRISE DAY CARE,DP4899,04-May-23,1710.3,0,180196,Older People Placements - East,321000              Social Community Care Supplies & Services - Adult,A,2023,2
817,Community and Housing,SUNRISE DAY CARE,DP4898,04-May-23,1470.32,0,180196,Older People Placements - East,321000              Social Community Care Supplies & Services - Adult,A,2023,2
818,Community and Housing,SUNRISE DAY CARE,4506,04-May-23,765.36,0,180196,Older People Placements - East,321000              Social Community Care Supplies & Services - Adult,A,2023,2
819,Community and Housing,SUNRISE DAY CARE,4507,04-May-23,510.24,0,180196,Older People Placements - East,321000              Social Community Care Supplies & Services - Adult,A,2023,2
820,Community and Housing,SUNRISE DAY CARE,4498,04-May-23,680.32,0,180196,Learning Disabilities Placemnt,321000              Social Community Care Supplies & Services - Adult,A,2023,2
821,Community and Housing,SUNRISE DAY CARE,4508,04-May-23,510.24,0,180196,Older People Placements - East,321000              Social Community Care Supplies & Services - Adult,A,2023,2
822,Community and Housing,SUNRISE DAY CARE,4497,04-May-23,510.24,0,180196,Older People Placements - East,321000              Social Community Care Supplies & Services - Adult,A,2023,2
823,Community and Housing,SUNRISE DAY CARE,4494,04-May-23,510.24,0,180196,Older People Placements - East,321000              Social Community Care Supplies & Services - Adult,A,2023,2
824,Community and Housing,REDACTED PERSONAL DATA,968858,23-May-23,509.12,0,180242,Phys/Sens Placements - East,DIRECT PAYMENTS,R,2023,2
825,Community and Housing,REDACTED PERSONAL DATA,968738,23-May-23,1177.36,0,180282,Phys/Sens Placements - East,DIRECT PAYMENTS,R,2023,2
826,Community and Housing,REDACTED PERSONAL DATA,968744,23-May-23,2839.28,0,180285,Older People Placements - East,DIRECT PAYMENTS,R,2023,2
827,Community and Housing,SEVACARE,14.05.23/3,22-May-23,1100.21,0,180307,Older People Placements - East,321000              Social Community Care Supplies & Services - Adult,A,2023,2
828,Community and Housing,SEVACARE,14.05.23/2,22-May-23,750.65,0,180307,Older People Placements - East,321000              Social Community Care Supplies & Services - Adult,A,2023,2
829,"Children, Schools and Family",REDACTED PERSONAL DATA,971475,29-May-23,2379.9,0,180348,Fostering Recruit/Assessment,321100              Social Community Care Supplies & Services - Children,R,2023,2
830,Unassigned,UK Power Networks (Faults / Operations),92160744,08-May-23,1872,312,180431,Environment and Regeneration,190000              Facilities & Management Services,A,2023,2
831,Unassigned,UK Power Networks (Faults / Operations),92162749,22-May-23,1872,312,180431,Environment and Regeneration,190000              Facilities & Management Services,A,2023,2
832,Unassigned,UK Power Networks (Faults / Operations),92162753,22-May-23,1872,312,180431,Environment and Regeneration,190000              Facilities & Management Services,A,2023,2
833,Environment and Regeneration,UK Power Networks (Faults / Operations),92164012,31-May-23,1872,312,180431,Traffic Signs,190000              Facilities & Management Services,A,2023,2
834,Corporate Services,RESTORE PLC,1361771,18-May-23,633.26,105.54,180441,Legal Shared Service,190000              Facilities & Management Services,A,2023,2
835,"Children, Schools and Family",RESTORE PLC,1361769,18-May-23,587.45,97.91,180441,Fostering Recruit/Assessment,190000              Facilities & Management Services,A,2023,2
836,"Children, Schools and Family",RESTORE PLC,1358855,18-May-23,852.01,142,180441,Head of CSC & Youth Inclusion,190000              Facilities & Management Services,A,2023,2
837,Community and Housing,REDACTED PERSONAL DATA,969042,23-May-23,1320.52,0,180447,Older People Placements - East,DIRECT PAYMENTS,R,2023,2
838,Community and Housing,REDACTED PERSONAL DATA,968882,23-May-23,500.96,0,180478,Phys/Sens Placements - East,DIRECT PAYMENTS,R,2023,2
839,"Children, Schools and Family",Carshalton High School for Girls,CASI122,29-May-23,5362.94,0,180576,Non-Delegated Statements,170000              Education,A,2023,2
840,"Children, Schools and Family",Carshalton High School for Girls,CASI123,29-May-23,2633.14,0,180576,Non-Delegated Statements,170000              Education,A,2023,2
841,"Children, Schools and Family",REDACTED PERSONAL DATA,963157,04-May-23,538.33,0,180579,UASC LAC Under 18,321100              Social Community Care Supplies & Services - Children,R,2023,2
842,"Children, Schools and Family",REDACTED PERSONAL DATA,963181,04-May-23,538.33,0,180579,Placements Under 18,321100              Social Community Care Supplies & Services - Children,R,2023,2
843,"Children, Schools and Family",REDACTED PERSONAL DATA,967091,12-May-23,538.33,0,180579,UASC LAC Under 18,321100              Social Community Care Supplies & Services - Children,R,2023,2
844,"Children, Schools and Family",REDACTED PERSONAL DATA,967117,12-May-23,538.33,0,180579,Placements Under 18,321100              Social Community Care Supplies & Services - Children,R,2023,2
845,"Children, Schools and Family",REDACTED PERSONAL DATA,969410,19-May-23,538.33,0,180579,UASC LAC Under 18,321100              Social Community Care Supplies & Services - Children,R,2023,2
846,"Children, Schools and Family",REDACTED PERSONAL DATA,969438,19-May-23,538.33,0,180579,Placements Under 18,321100              Social Community Care Supplies & Services - Children,R,2023,2
847,"Children, Schools and Family",REDACTED PERSONAL DATA,970803,25-May-23,538.33,0,180579,UASC LAC Under 18,321100              Social Community Care Supplies & Services - Children,R,2023,2
848,"Children, Schools and Family",REDACTED PERSONAL DATA,970831,25-May-23,538.33,0,180579,Placements Under 18,321100              Social Community Care Supplies & Services - Children,R,2023,2
849,Unassigned,BERKSHIRE PENSION FUND,CETV0123,16-May-23,69116.84,0,180709,London Borough of Merton,PENSIONS,A,2023,2
850,Unassigned,LOVE WIMBLEDON LTD BUS.IMP.DIS,4952,23-May-23,212821.32,35470.22,180802,Corporate Services,200000              Financial Services,A,2023,2
851,Community and Housing,REDACTED PERSONAL DATA,968737,23-May-23,763.68,0,180804,Learning Disabilities Placemnt,DIRECT PAYMENTS,R,2023,2
852,Community and Housing,REDACTED PERSONAL DATA,968829,23-May-23,1913.16,0,180866,Phys/Sens Placements - East,DIRECT PAYMENTS,R,2023,2
853,Community and Housing,REDACTED PERSONAL DATA,970070,23-May-23,1806.44,0,180889,Older People Placements - East,DIRECT PAYMENTS,R,2023,2
854,Community and Housing,SENAD ECCLESBOURNE LODGE,965774,10-May-23,9810.88,0,180904,Learning Disabilities Placemnt,321017              Nursing & Residential Care Homes,A,2023,2
855,Community and Housing,REDACTED PERSONAL DATA,968815,23-May-23,890.96,0,180999,Older People Placements - East,DIRECT PAYMENTS,R,2023,2
856,Community and Housing,REDACTED PERSONAL DATA,968777,23-May-23,2396.48,0,181129,Older People Placements - East,DIRECT PAYMENTS,R,2023,2
857,Community and Housing,Community Equipment Services,9100000726,09-May-23,630,105,181238,Pooled Equipment,410000              Social Community Care Supplies & Services,A,2023,2
858,Community and Housing,Community Equipment Services,9100000735,22-May-23,630,105,181238,Pooled Equipment,410000              Social Community Care Supplies & Services,A,2023,2
859,Community and Housing,Community Equipment Services,9100000737,23-May-23,2827.2,471.2,181238,Pooled Equipment,410000              Social Community Care Supplies & Services,A,2023,2
860,Community and Housing,REDACTED PERSONAL DATA,968715,23-May-23,1400.08,0,181418,Older People Placements - East,DIRECT PAYMENTS,R,2023,2
861,"Children, Schools and Family",BINDMANS LLP,225226,18-May-23,2988,498,181461,Care Experienced over18,280000              Legal Services                                                                            Confirmed,A,2023,2
862,"Children, Schools and Family",REDACTED PERSONAL DATA,06/2023DANIELLA,19-May-23,1115.97,0,181587,Placements Over 18,321000              Social Community Care Supplies & Services - Adult,R,2023,2
863,"Children, Schools and Family",Moor House School and College,INV11629,23-May-23,16468,0,181592,Non-Delegated Statements,170000              Education,A,2023,2
864,"Children, Schools and Family",Moor House School and College,INV11630,23-May-23,12090.67,0,181592,Non-Delegated Statements,170000              Education,A,2023,2
865,Corporate Services,KIKI'S CHILDREN'S CLINIC,15933,30-May-23,690,0,181849,SLLP - Disbursements,310000              Healthcare                                                                                Confirmed,A,2023,2
866,Corporate Services,KIKI'S CHILDREN'S CLINIC,15999,30-May-23,915,0,181849,SLLP - Disbursements,310000              Healthcare                                                                                Confirmed,A,2023,2
867,Corporate Services,KIKI'S CHILDREN'S CLINIC,16082,30-May-23,1580,0,181849,SLLP - Disbursements,310000              Healthcare                                                                                Confirmed,A,2023,2
868,Community and Housing,REDACTED PERSONAL DATA,969061,23-May-23,534.52,0,182083,Learning Disabilities Placemnt,DIRECT PAYMENTS,R,2023,2
869,Corporate Services,SHARPE PRITCHARD SOLICITORS,100001570,25-May-23,9558,1593,182165,SLLP - Disbursements,280000              Legal Services                                                                            Confirmed,A,2023,2
870,Corporate Services,REDACTED PERSONAL DATA,1726/JN,22-May-23,1050,175,182247,SLLP - Disbursements,280000              Legal Services                                                                            Confirmed,R,2023,2
871,"Children, Schools and Family",REDACTED PERSONAL DATA,967379,15-May-23,1612.38,0,182314,Fostering Recruit/Assessment,321100              Social Community Care Supplies & Services - Children,R,2023,2
872,Community and Housing,REDACTED PERSONAL DATA,968724,23-May-23,4454.8,0,182348,Older People Placements - East,DIRECT PAYMENTS,R,2023,2
873,Corporate Services,BIRKIN CLEANING SERVICES LTD,29531,23-May-23,943.2,157.2,182414,Buildings Maintenance,130000              Cleaning & Janitorial,A,2023,2
874,"Children, Schools and Family",BIRKIN CLEANING SERVICES LTD,25761,25-May-23,1334.64,222.44,182414,Acacia IGC Building Management,130000              Cleaning & Janitorial,A,2023,2
875,Corporate Services,BIRKIN CLEANING SERVICES LTD,29627,25-May-23,1312.31,218.72,182414,Corporate Contracts - FM,130000              Cleaning & Janitorial,A,2023,2
876,"Children, Schools and Family",BIRKIN CLEANING SERVICES LTD,25762,25-May-23,683.65,113.94,182414,Adventure Playground Project,130000              Cleaning & Janitorial,A,2023,2
877,Community and Housing,BIRKIN CLEANING SERVICES LTD,29625,29-May-23,1629.23,271.54,182414,Morden Library,130000              Cleaning & Janitorial,A,2023,2
878,Community and Housing,BIRKIN CLEANING SERVICES LTD,29195,25-May-23,1962.97,327.16,182414,JMC  Day Centre,130000              Cleaning & Janitorial,A,2023,2
879,Corporate Services,BIRKIN CLEANING SERVICES LTD,29624,29-May-23,24732.96,4122.16,182414,Corporate Contracts - FM,130000              Cleaning & Janitorial,A,2023,2
880,Community and Housing,BIRKIN CLEANING SERVICES LTD,27393,25-May-23,3193.69,532.28,182414,Wimbledon Library,130000              Cleaning & Janitorial,A,2023,2
881,Environment and Regeneration,BIRKIN CLEANING SERVICES LTD,29646,31-May-23,817.45,136.24,182414,Transport-Contract Hire,130000              Cleaning & Janitorial,A,2023,2
882,Environment and Regeneration,BIRKIN CLEANING SERVICES LTD,29629,31-May-23,632.6,105.43,182414,Durnsford industrial estate,130000              Cleaning & Janitorial,A,2023,2
883,Community and Housing,BIRKIN CLEANING SERVICES LTD,29644,31-May-23,1314.83,219.14,182414,Donald Hope Library,130000              Cleaning & Janitorial,A,2023,2
884,"Children, Schools and Family",BIRKIN CLEANING SERVICES LTD,29641,31-May-23,1334.64,222.44,182414,Acacia IGC Building Management,130000              Cleaning & Janitorial,A,2023,2
885,Community and Housing,BIRKIN CLEANING SERVICES LTD,29639,31-May-23,697.76,116.29,182414,Eastway Day Centre,130000              Cleaning & Janitorial,A,2023,2
886,"Children, Schools and Family",BIRKIN CLEANING SERVICES LTD,29643,31-May-23,1302.7,217.12,182414,Brightwell,130000              Cleaning & Janitorial,A,2023,2
887,Community and Housing,BIRKIN CLEANING SERVICES LTD,29635,31-May-23,558.96,93.16,182414,West Barnes Lib,130000              Cleaning & Janitorial,A,2023,2
888,Community and Housing,BIRKIN CLEANING SERVICES LTD,29698,31-May-23,950.88,158.48,182414,Raynes Park Library,130000              Cleaning & Janitorial,A,2023,2
889,"Children, Schools and Family",BIRKIN CLEANING SERVICES LTD,29637,31-May-23,679.97,113.33,182414,Merton Youth Centres.,130000              Cleaning & Janitorial,A,2023,2
890,"Children, Schools and Family",BIRKIN CLEANING SERVICES LTD,29642,31-May-23,683.65,113.94,182414,Adventure Playground Project,130000              Cleaning & Janitorial,A,2023,2
891,Community and Housing,BIRKIN CLEANING SERVICES LTD,29647,31-May-23,1668.67,278.11,182414,Highpath (DayCentre) Leyton Rd,130000              Cleaning & Janitorial,A,2023,2
892,Community and Housing,BIRKIN CLEANING SERVICES LTD,29638,31-May-23,1941.66,323.61,182414,All Saints Day Centre,130000              Cleaning & Janitorial,A,2023,2
893,Community and Housing,BIRKIN CLEANING SERVICES LTD,29634,31-May-23,1920.73,320.12,182414,Pollards Hill Library,130000              Cleaning & Janitorial,A,2023,2
894,"Children, Schools and Family",BIRKIN CLEANING SERVICES LTD,29663,31-May-23,2233.45,372.24,182414,Steers Mead BuildingManagement,130000              Cleaning & Janitorial,A,2023,2
895,"Children, Schools and Family",REDACTED PERSONAL DATA,969703,22-May-23,811.4,0,182494,Child Disabilities - Placement,DIRECT PAYMENTS,R,2023,2
896,Community and Housing,REDACTED PERSONAL DATA,968884,23-May-23,1877.4,0,182584,Phys/Sens Placements - East,DIRECT PAYMENTS,R,2023,2
897,"Children, Schools and Family",REDACTED PERSONAL DATA,963115,04-May-23,538.33,0,182648,UASC LAC Under 18,321100              Social Community Care Supplies & Services - Children,R,2023,2
898,"Children, Schools and Family",REDACTED PERSONAL DATA,963170,04-May-23,538.33,0,182648,UASC LAC Under 18,321100              Social Community Care Supplies & Services - Children,R,2023,2
899,"Children, Schools and Family",REDACTED PERSONAL DATA,967050,12-May-23,538.33,0,182648,UASC LAC Under 18,321100              Social Community Care Supplies & Services - Children,R,2023,2
900,"Children, Schools and Family",REDACTED PERSONAL DATA,967105,12-May-23,638.33,0,182648,UASC LAC Under 18,321100              Social Community Care Supplies & Services - Children,R,2023,2
901,"Children, Schools and Family",REDACTED PERSONAL DATA,969367,19-May-23,538.33,0,182648,UASC LAC Under 18,321100              Social Community Care Supplies & Services - Children,R,2023,2
902,"Children, Schools and Family",REDACTED PERSONAL DATA,969426,19-May-23,538.33,0,182648,UASC LAC Under 18,321100              Social Community Care Supplies & Services - Children,R,2023,2
903,"Children, Schools and Family",REDACTED PERSONAL DATA,970761,25-May-23,538.33,0,182648,UASC LAC Under 18,321100              Social Community Care Supplies & Services - Children,R,2023,2
904,"Children, Schools and Family",REDACTED PERSONAL DATA,970819,25-May-23,538.33,0,182648,UASC LAC Under 18,321100              Social Community Care Supplies & Services - Children,R,2023,2
905,Community and Housing,REDACTED PERSONAL DATA,969082,23-May-23,5223.56,0,182894,Learning Disabilities Placemnt,DIRECT PAYMENTS,R,2023,2
906,Corporate Services,PELLINGS LLP,SI9035015,15-May-23,1200,200,182945,SLLP - Disbursements,280000              Legal Services                                                                            Confirmed,A,2023,2
907,Community and Housing,REDACTED PERSONAL DATA,968832,23-May-23,4103.12,0,183167,Older People Placements - East,DIRECT PAYMENTS,R,2023,2
908,Community and Housing,ST ANTONYS CARE HOME,965839,10-May-23,1714.29,0,183206,Older People Placements - East,321017              Nursing & Residential Care Homes,A,2023,2
909,Community and Housing,ST ANTONYS CARE HOME,965903,10-May-23,3840,0,183206,Older People Placements - East,321017              Nursing & Residential Care Homes,A,2023,2
910,Community and Housing,ST ANTONYS CARE HOME,965928,10-May-23,3840,0,183206,Older People Placements - East,321017              Nursing & Residential Care Homes,A,2023,2
911,Community and Housing,ST ANTONYS CARE HOME,965995,10-May-23,4000,0,183206,Older People Placements - East,321017              Nursing & Residential Care Homes,A,2023,2
912,"Children, Schools and Family",REDACTED PERSONAL DATA,969739,22-May-23,509.12,0,183241, Childrens Short Breaks,CSF-DIRECT PAYMENTS,R,2023,2
913,Community and Housing,TAMWORTH HOUSE MEDICAL CENTRE,IUD-Q22022-23TH,12-May-23,1740,0,183339,PH - Sexual Health,310000              Healthcare,A,2023,2
914,Community and Housing,TAMWORTH HOUSE MEDICAL CENTRE,IUD-Q32022-23TH,17-May-23,1540,0,183339,PH - Sexual Health,310000              Healthcare,A,2023,2
915,Community and Housing,TAMWORTH HOUSE MEDICAL CENTRE,IUDQ3202223TH,17-May-23,960,0,183339,PH - Sexual Health,310000              Healthcare,A,2023,2
916,Community and Housing,Wimbledon Medical Practice,LARC-Q4-23WMP,12-May-23,880,0,183348,PH - Sexual Health,310000              Healthcare,A,2023,2
917,Community and Housing,CENTRAL MEDICAL CENTRE,Q4JAN-MAR22/23,17-May-23,1280,0,183386,PH - Sexual Health,310000              Healthcare,A,2023,2
918,Community and Housing,REDACTED PERSONAL DATA,967242,15-May-23,537.02,0,183460,Learning Disabilities Placemnt,DIRECT PAYMENTS,R,2023,2
919,Community and Housing,REDACTED PERSONAL DATA,968840,23-May-23,1198.84,0,183460,Learning Disabilities Placemnt,DIRECT PAYMENTS,R,2023,2
920,Community and Housing,REDACTED PERSONAL DATA,968892,23-May-23,986.44,0,183464,Older People Placements - East,DIRECT PAYMENTS,R,2023,2
921,Community and Housing,CREST MANOR LTD,CM0809,17-May-23,5557.5,0,183548,Bed & Breakfast - accomm,250000              Housing Management,A,2023,2
922,"Children, Schools and Family",REDACTED PERSONAL DATA,969755,22-May-23,1710,0,183558,Child Disabilities - Placement,CSF-DIRECT PAYMENTS,R,2023,2
923,Community and Housing,Kent House Care Home,966046,10-May-23,2884,0,183560,Older People Placements - East,321017              Nursing & Residential Care Homes,A,2023,2
924,Community and Housing,REDACTED PERSONAL DATA,2215,24-May-23,1050,0,183599,Com Care Placement Contingency,321000              Social Community Care Supplies & Services - Adult                                         Confirmed,R,2023,2
925,"Children, Schools and Family",RENTOKIL INITIAL UK LTD,34645479,17-May-23,586.82,97.8,183672, Children's Centres Support,130000              Cleaning & Janitorial,A,2023,2
926,Community and Housing,RENTOKIL INITIAL UK LTD,34691326,29-May-23,678.1,113.02,183672,Eastway Day Centre,130000              Cleaning & Janitorial,A,2023,2
927,Corporate Services,RENTOKIL INITIAL UK LTD,60375244,31-May-23,1683.01,280.51,183672,Corporate Contracts - FM,130000              Cleaning & Janitorial,A,2023,2
928,Corporate Services,RENTOKIL INITIAL UK LTD,60365053,31-May-23,559.48,93.25,183672,PDC,130000              Cleaning & Janitorial,A,2023,2
929,Community and Housing,REDACTED PERSONAL DATA,968797,23-May-23,540.96,0,183690,Older People Placements - East,DIRECT PAYMENTS,R,2023,2
930,Community and Housing,REDACTED PERSONAL DATA,970117,23-May-23,679.2,0,184011,Older People Placements - East,DIRECT PAYMENTS,R,2023,2
931,Community and Housing,NHS MERTON CCG,965915,22-May-23,1662.08,0,184012,Mental Health Placements,310000              Healthcare,A,2023,2
932,Community and Housing,NHS MERTON CCG,966010,22-May-23,3504.56,0,184012,Mental Health Placements,310000              Healthcare,A,2023,2
933,Community and Housing,NHS MERTON CCG,966050,22-May-23,5935.12,0,184012,Mental Health Placements,310000              Healthcare,A,2023,2
934,Community and Housing,NHS MERTON CCG,969251,30-May-23,47808.57,0,184012,Mental Health Placements,310000              Healthcare,A,2023,2
935,"Children, Schools and Family",REDACTED PERSONAL DATA,962541,02-May-23,1103.75,0,184037,Fostering Recruit/Assessment,321100              Social Community Care Supplies & Services - Children,R,2023,2
936,Community and Housing,REDACTED PERSONAL DATA,968933,23-May-23,2530.08,0,184175,Older People Placements - East,DIRECT PAYMENTS,R,2023,2
937,Community and Housing,CROWNWISE LTD,MP/167/112,18-May-23,1160,0,184360,Mental Health Placements,321000              Social Community Care Supplies & Services - Adult,A,2023,2
938,Community and Housing,MARIAN HOUSE NURSING HOME,965820,10-May-23,2834.56,0,184385,Older People Placements - East,321017              Nursing & Residential Care Homes,A,2023,2
939,"Children, Schools and Family",REDACTED PERSONAL DATA,956522,02-May-23,549.61,0,184386,Placements Under 18,321100              Social Community Care Supplies & Services - Children,R,2023,2
940,"Children, Schools and Family",REDACTED PERSONAL DATA,956512,02-May-23,534.75,0,184386,Placements Under 18,321100              Social Community Care Supplies & Services - Children,R,2023,2
941,"Children, Schools and Family",REDACTED PERSONAL DATA,958313,02-May-23,552.99,0,184386,Placements Under 18,321100              Social Community Care Supplies & Services - Children,R,2023,2
942,"Children, Schools and Family",REDACTED PERSONAL DATA,958323,02-May-23,634.54,0,184386,Placements Under 18,321100              Social Community Care Supplies & Services - Children,R,2023,2
943,"Children, Schools and Family",REDACTED PERSONAL DATA,963229,04-May-23,582.17,0,184386,Placements Under 18,321100              Social Community Care Supplies & Services - Children,R,2023,2
944,"Children, Schools and Family",REDACTED PERSONAL DATA,967165,12-May-23,582.17,0,184386,Placements Under 18,321100              Social Community Care Supplies & Services - Children,R,2023,2
945,"Children, Schools and Family",REDACTED PERSONAL DATA,969486,19-May-23,582.17,0,184386,Placements Under 18,321100              Social Community Care Supplies & Services - Children,R,2023,2
946,"Children, Schools and Family",REDACTED PERSONAL DATA,970877,25-May-23,582.17,0,184386,Placements Under 18,321100              Social Community Care Supplies & Services - Children,R,2023,2
947,Community and Housing,REDACTED PERSONAL DATA,968957,23-May-23,4087.56,0,184580,Older People Placements - East,DIRECT PAYMENTS,R,2023,2
948,Unassigned,PENSION TOP-UP FUND (LBM),CAP YY04****B,11-May-23,987.82,0,184583,Super Fund - New Pension Regs,PENSIONS,A,2023,2
949,"Children, Schools and Family",Carew Academy,DI101105161,25-May-23,142358.02,0,184603,Non-Delegated Statements,170000              Education,A,2023,2
950,Community and Housing,REDACTED PERSONAL DATA,968935,23-May-23,726.92,0,184608,Older People Placements - East,DIRECT PAYMENTS,R,2023,2
951,Community and Housing,SK HOUSING LTD,6820,10-May-23,22752,3792,184774,Bed & Breakfast - accomm,321000              Social Community Care Supplies & Services - Adult,A,2023,2
952,Community and Housing,CROHAM PLACE,965768,10-May-23,9007.52,0,184807,Learning Disabilities Placemnt,321017              Nursing & Residential Care Homes,A,2023,2
953,Community and Housing,CROHAM PLACE,965918,10-May-23,9400,0,184807,Learning Disabilities Placemnt,321017              Nursing & Residential Care Homes,A,2023,2
954,Community and Housing,CROHAM PLACE,965957,10-May-23,9400,0,184807,Mental Health Placements,321017              Nursing & Residential Care Homes,A,2023,2
955,Community and Housing,REDACTED PERSONAL DATA,969067,23-May-23,938.12,0,184819,Older People Placements - East,DIRECT PAYMENTS,R,2023,2
956,"Children, Schools and Family",HIGHER LEVEL CARE (HLC) LTD,14821,18-May-23,2357.1,0,184822,Placements Over 18,321100              Social Community Care Supplies & Services - Children Residential,A,2023,2
957,"Children, Schools and Family",HIGHER LEVEL CARE (HLC) LTD,14822,18-May-23,1928.57,0,184822,UASC Care Leavers Over 18,321100              Social Community Care Supplies & Services - Children Residential,A,2023,2
958,"Children, Schools and Family",HIGHER LEVEL CARE (HLC) LTD,14824,18-May-23,3642.86,0,184822,UASC LAC Under 18,321100              Social Community Care Supplies & Services - Children Residential,A,2023,2
959,"Children, Schools and Family",HIGHER LEVEL CARE (HLC) LTD,14818,19-May-23,3642.6,0,184822,UASC Care Leavers Over 18,321100              Social Community Care Supplies & Services - Children Residential,A,2023,2
960,"Children, Schools and Family",HIGHER LEVEL CARE (HLC) LTD,14619,30-May-23,850,0,184822,Placements Under 18,321100              Social Community Care Supplies & Services - Children Residential,A,2023,2
961,"Children, Schools and Family",HIGHER LEVEL CARE (HLC) LTD,14662,30-May-23,3400,0,184822,Placements Under 18,321100              Social Community Care Supplies & Services - Children Residential,A,2023,2
962,"Children, Schools and Family",HIGHER LEVEL CARE (HLC) LTD,14745,30-May-23,3764.28,0,184822,Placements Under 18,321100              Social Community Care Supplies & Services - Children Residential,A,2023,2
963,"Children, Schools and Family",HIGHER LEVEL CARE (HLC) LTD,14826,30-May-23,3642.86,0,184822,Placements Under 18,321100              Social Community Care Supplies & Services - Children Residential,A,2023,2
964,Community and Housing,QUARTZ PROPERTIES,LBMGIPN20,22-May-23,3750,0,184919,Galpins Road Support,321000              Social Community Care Supplies & Services - Adult,A,2023,2
965,Community and Housing,QUARTZ PROPERTIES,LBM115(R1),23-May-23,43714.17,0,184919,Bed & Breakfast - accomm,321000              Social Community Care Supplies & Services - Adult,A,2023,2
966,Community and Housing,REDACTED PERSONAL DATA,968966,23-May-23,572.76,0,184950,Phys/Sens Placements - East,DIRECT PAYMENTS,R,2023,2
967,Corporate Services,CIPFA BUSINESS LIMITED,3167445,22-May-23,6890,0,184963,AD Resources,200000              Financial Services,A,2023,2
968,Corporate Services,CIPFA BUSINESS LIMITED,3167624,22-May-23,8538,1423,184963,AD Resources,200000              Financial Services,A,2023,2
969,Corporate Services,CIPFA BUSINESS LIMITED,3167964,22-May-23,4920,0,184963,AD Resources,200000              Financial Services,A,2023,2
970,"Children, Schools and Family",Treloar Trust,8615,30-May-23,25408.19,0,185020,SEN Residential (DSG),170000              Education,A,2023,2
971,Community and Housing,LONDON CARE LTD,5454/22,25-May-23,1095.8,0,185026,Older People Placements - East,321000              Social Community Care Supplies & Services - Adult,A,2023,2
972,Community and Housing,LONDON CARE LTD,5454/4,25-May-23,1337.92,0,185026,Older People Placements - East,321000              Social Community Care Supplies & Services - Adult,A,2023,2
973,Community and Housing,LONDON CARE LTD,5454/9,25-May-23,655.22,0,185026,Older People Placements - East,321000              Social Community Care Supplies & Services - Adult,A,2023,2
974,Community and Housing,LONDON CARE LTD,5454/10,25-May-23,2344.83,0,185026,Older People Placements - East,321000              Social Community Care Supplies & Services - Adult,A,2023,2
975,Community and Housing,LONDON CARE LTD,5454/23,25-May-23,1881.67,0,185026,Older People Placements - East,321000              Social Community Care Supplies & Services - Adult,A,2023,2
976,Community and Housing,LONDON CARE LTD,5454/13,25-May-23,809.51,0,185026,Older People Placements - East,321000              Social Community Care Supplies & Services - Adult,A,2023,2
977,Community and Housing,LONDON CARE LTD,5454/12,25-May-23,918.94,0,185026,Older People Placements - East,321000              Social Community Care Supplies & Services - Adult,A,2023,2
978,Community and Housing,LONDON CARE LTD,5454/20,25-May-23,734.16,0,185026,Older People Placements - East,321000              Social Community Care Supplies & Services - Adult,A,2023,2
979,Community and Housing,LONDON CARE LTD,5454/25,25-May-23,797.09,0,185026,Older People Placements - East,321000              Social Community Care Supplies & Services - Adult,A,2023,2
980,Community and Housing,LONDON CARE LTD,5454/1,25-May-23,941.33,0,185026,Older People Placements - East,321000              Social Community Care Supplies & Services - Adult,A,2023,2
981,Community and Housing,LONDON CARE LTD,5454/18,25-May-23,1338.83,0,185026,Older People Placements - East,321000              Social Community Care Supplies & Services - Adult,A,2023,2
982,Community and Housing,LONDON CARE LTD,5454/3,25-May-23,1454.33,0,185026,Older People Placements - East,321000              Social Community Care Supplies & Services - Adult,A,2023,2
983,Community and Housing,LONDON CARE LTD,5454/30,25-May-23,2283.58,0,185026,Older People Placements - East,321000              Social Community Care Supplies & Services - Adult,A,2023,2
984,Community and Housing,LONDON CARE LTD,5454/19,25-May-23,664.48,0,185026,Older People Placements - East,321000              Social Community Care Supplies & Services - Adult,A,2023,2
985,Community and Housing,LONDON CARE LTD,5454/21,25-May-23,1064.24,0,185026,Older People Placements - East,321000              Social Community Care Supplies & Services - Adult,A,2023,2
986,Community and Housing,REDACTED PERSONAL DATA,968944,23-May-23,1178.16,0,185250,Older People Placements - East,DIRECT PAYMENTS,R,2023,2
987,"Children, Schools and Family",ORCHARD HILL COLLEGE,DI2020101041,16-May-23,11539.17,0,185253,Non-Maintained Post 16 SEN,170000              Education,A,2023,2
988,"Children, Schools and Family",ORCHARD HILL COLLEGE,DI2020101045,16-May-23,17208.04,0,185253,Non-Maintained Post 16 SEN,170000              Education,A,2023,2
989,"Children, Schools and Family",ORCHARD HILL COLLEGE,DI2020101040,16-May-23,15588.02,0,185253,Non-Maintained Post 16 SEN,170000              Education,A,2023,2
990,"Children, Schools and Family",ORCHARD HILL COLLEGE,DI2020101048,16-May-23,13709.56,0,185253,Non-Maintained Post 16 SEN,170000              Education,A,2023,2
991,"Children, Schools and Family",ORCHARD HILL COLLEGE,DI2020101049,16-May-23,12237.72,0,185253,Non-Maintained Post 16 SEN,170000              Education,A,2023,2
992,"Children, Schools and Family",ORCHARD HILL COLLEGE,DI2020101054,16-May-23,12443.18,0,185253,Non-Maintained Post 16 SEN,170000              Education,A,2023,2
993,"Children, Schools and Family",ORCHARD HILL COLLEGE,DI202A101056,16-May-23,11747.04,0,185253,Non-Maintained Post 16 SEN,170000              Education,A,2023,2
994,"Children, Schools and Family",ORCHARD HILL COLLEGE,DI2020101047,16-May-23,13680.75,0,185253,Non-Maintained Post 16 SEN,170000              Education,A,2023,2
995,"Children, Schools and Family",ORCHARD HILL COLLEGE,DI2020101044,16-May-23,16595.76,0,185253,Non-Maintained Post 16 SEN,170000              Education,A,2023,2
996,"Children, Schools and Family",ORCHARD HILL COLLEGE,DI2020101042,16-May-23,12287.41,0,185253,Non-Maintained Post 16 SEN,170000              Education,A,2023,2
997,"Children, Schools and Family",ORCHARD HILL COLLEGE,DI2020101043,16-May-23,11310.88,0,185253,Non-Maintained Post 16 SEN,170000              Education,A,2023,2
998,"Children, Schools and Family",ORCHARD HILL COLLEGE,DI2020101055,16-May-23,16682.72,0,185253,Non-Maintained Post 16 SEN,170000              Education,A,2023,2
999,"Children, Schools and Family",ORCHARD HILL COLLEGE,DI2020101051,16-May-23,11333.67,0,185253,Non-Maintained Post 16 SEN,170000              Education,A,2023,2
1000,"Children, Schools and Family",ORCHARD HILL COLLEGE,DI2030101053,16-May-23,12214.9,0,185253,Non-Maintained Post 16 SEN,170000              Education,A,2023,2
1001,"Children, Schools and Family",ORCHARD HILL COLLEGE,DI2020101050,16-May-23,11672.11,0,185253,Non-Maintained Post 16 SEN,170000              Education,A,2023,2
1002,"Children, Schools and Family",FURZEDOWN PRIMARY SCHOOL,1,04-May-23,10160,0,185273,Non-Delegated Statements,170000              Education,A,2023,2
1003,Community and Housing,ROOMS AND  STUDIOS MANAGEMENT,1264,17-May-23,3816,636,185280,Bed & Breakfast - accomm,321000              Social Community Care Supplies & Services - Adult,A,2023,2
1004,Community and Housing,REDACTED PERSONAL DATA,968717,23-May-23,1369.4,0,185353,Mental Health Placements,DIRECT PAYMENTS,R,2023,2
1005,Corporate Services,REDACTED PERSONAL DATA,INV/JDO70,24-May-23,960,160,185360,SLLP - Disbursements,280000              Legal Services                                                                            Confirmed,R,2023,2
1006,Community and Housing,WISDOM SUPPORT SERVICES LTD,12437A,04-May-23,4652.2,0,185366,Mental Health Placements,321000              Social Community Care Supplies & Services - Adult,A,2023,2
1007,Community and Housing,WISDOM SUPPORT SERVICES LTD,12398,08-May-23,4652.2,0,185366,Mental Health Placements,321000              Social Community Care Supplies & Services - Adult,A,2023,2
1008,Community and Housing,WISDOM SUPPORT SERVICES LTD,12439,24-May-23,757.2,0,185366,Older People Placements - East,321000              Social Community Care Supplies & Services - Adult,A,2023,2
1009,Community and Housing,WISDOM SUPPORT SERVICES LTD,12457,02-Jun-23,1914.21,0,185366,Learning Disabilities Placemnt,321000              Social Community Care Supplies & Services - Adult,A,2023,2
1010,Community and Housing,WISDOM SUPPORT SERVICES LTD,12458,02-Jun-23,1313.92,0,185366,Learning Disabilities Placemnt,321000              Social Community Care Supplies & Services - Adult,A,2023,2
1011,Community and Housing,WISDOM SUPPORT SERVICES LTD,12460,02-Jun-23,2305.92,0,185366,Older People Placements - East,321000              Social Community Care Supplies & Services - Adult,A,2023,2
1012,"Children, Schools and Family",REDACTED PERSONAL DATA,964618,08-May-23,3053.83,0,185379,Fostering Recruit/Assessment,321100              Social Community Care Supplies & Services - Children,R,2023,2
1013,Corporate Services,Carter Brown The Expert Service Ltd,TI047817,19-May-23,2019.48,336.58,185403,SLLP - Disbursements,280000              Legal Services                                                                            Confirmed,A,2023,2
1014,Community and Housing,CONSENSUS - WATERBURY HOUSE,955473,29-May-23,10580.56,0,185414,Learning Disabilities Placemnt,321017              Nursing & Residential Care Homes,A,2023,2
1015,Community and Housing,CONSENSUS - WATERBURY HOUSE,965887,29-May-23,10580.56,0,185414,Learning Disabilities Placemnt,321017              Nursing & Residential Care Homes,A,2023,2
1016,"Children, Schools and Family",ELECTRONICS DIRECT,M965543,12-May-23,950,158.33,185453,UASC Care Leavers Over 18,160000              Domestic Goods,A,2023,2
1017,"Children, Schools and Family",ELECTRONICS DIRECT,SW179HU,24-May-23,1314.98,219.16,185453,UASC Care Leavers Over 18,160000              Domestic Goods,A,2023,2
1018,Community and Housing,THORNBECK COLLEGE,965881,10-May-23,10320.52,0,185470,Learning Disabilities Placemnt,321100              Social Community Care Supplies & Services - Children,A,2023,2
1019,Community and Housing,LAMBTON ROAD MEDICAL PRACTICE,LNV-1397,12-May-23,1520,0,185510,PH - Sexual Health,260000              Human Resources,A,2023,2
1020,"Children, Schools and Family",WOODMANSTERNE PRIMARY SCHOOL,HDAVIDSON1705202,17-May-23,600,0,185550,PupilPremium- Virtual School,170000              Education,A,2023,2
1021,Community and Housing,REDACTED PERSONAL DATA,968771,23-May-23,636.4,0,185557,Learning Disabilities Placemnt,DIRECT PAYMENTS,R,2023,2
1022,Community and Housing,REDACTED PERSONAL DATA,969021,23-May-23,1036.68,0,185653,Older People Placements - East,DIRECT PAYMENTS,R,2023,2
1023,Corporate Services,ENERGY ASSETS LIMITED,AM30180017,10-May-23,960.58,160.1,185666,Energy Budgets,370000              Utilities,A,2023,2
1024,Corporate Services,ENERGY ASSETS LIMITED,AM30180128,16-May-23,929.59,154.93,185666,Energy Budgets,370000              Utilities,A,2023,2
1025,Community and Housing,REDACTED PERSONAL DATA,968969,23-May-23,714.4,0,185709,Learning Disabilities Placemnt,DIRECT PAYMENTS,R,2023,2
1026,Unassigned,BENEDICT PRIMARY ACADEMY,SCHOOLS 2324/2 A,09-May-23,6280,0,185720,Schools,170000              Education,A,2023,2
1027,Community and Housing,M K ACCOMMODATION,MK5766,23-May-23,1040,0,185816,Hospital Discharge Grant,321000              Social Community Care Supplies & Services - Adult,A,2023,2
1028,Community and Housing,M K ACCOMMODATION,MK5734,23-May-23,2015,0,185816,Hospital Discharge Grant,321000              Social Community Care Supplies & Services - Adult,A,2023,2
1029,Community and Housing,M K ACCOMMODATION,MK5580,12-May-23,600,0,185816,Mental Health Placements,321000              Social Community Care Supplies & Services - Adult,A,2023,2
1030,Community and Housing,M K ACCOMMODATION,MK5773A,24-May-23,900,0,185816,Hospital Discharge Grant,321000              Social Community Care Supplies & Services - Adult,A,2023,2
1031,Community and Housing,M K ACCOMMODATION,MK5773,24-May-23,1300,0,185816,Hospital Discharge Grant,321000              Social Community Care Supplies & Services - Adult,A,2023,2
1032,"Children, Schools and Family",THE COMPLETE WORKS LTD,TCW22/23-1746,23-May-23,7905,0,185891,Non-Delegated Statements,170000              Education                                                                                 Confirmed,A,2023,2
1033,"Children, Schools and Family",GOSTO FINO PORTUGAL PATISSERIE,CC085354,01-Jun-23,618,103,185935,Head of Corporate Parenting,110000              Catering,A,2023,2
1034,Community and Housing,REDACTED PERSONAL DATA,971258,29-May-23,1594.52,0,185946,Mental Health Placements,321000              Social Community Care Supplies & Services - Adult,R,2023,2
1035,Community and Housing,E HOMES AND SHELTERS,EHSL1650,17-May-23,33924,0,185995,Bed & Breakfast - accomm,321000              Social Community Care Supplies & Services - Adult,A,2023,2
1036,"Children, Schools and Family",REDACTED PERSONAL DATA,969712,22-May-23,977.88,0,186027,Child Disabilities - Placement,CSF-DIRECT PAYMENTS,R,2023,2
1037,Community and Housing,REDACTED PERSONAL DATA,969034,23-May-23,1378.52,0,186071,Older People Placements - East,DIRECT PAYMENTS,R,2023,2
1038,Corporate Services,PSYCHOLOGY DIRECT LTD,INV-012965,12-May-23,2925.6,487.6,186166,SLLP - Disbursements,321100              Social Community Care Supplies & Services - Children,A,2023,2
1039,"Children, Schools and Family",REDACTED PERSONAL DATA,963101,04-May-23,707.62,0,186169,Placements Under 18,321100              Social Community Care Supplies & Services - Children,R,2023,2
1040,"Children, Schools and Family",REDACTED PERSONAL DATA,963128,04-May-23,707.62,0,186169,Placements Under 18,321100              Social Community Care Supplies & Services - Children,R,2023,2
1041,"Children, Schools and Family",REDACTED PERSONAL DATA,969386,19-May-23,592.82,0,186169,Placements Over 18,321100              Social Community Care Supplies & Services - Children,R,2023,2
1042,Environment and Regeneration,LA (Local Authority) Support Ltd,SER-00042326INV,22-May-23,18144,3024,186193,Waste Enforcement,180000              Environmental Services,A,2023,2
1043,Environment and Regeneration,LA (Local Authority) Support Ltd,SER-00043122INV,29-May-23,2874.96,479.16,186193,Waste Enforcement,180000              Environmental Services,A,2023,2
1044,"Children, Schools and Family",Partner Abuse Interventions Ltd,2385,24-May-23,5086.91,847.82,186250,Family Supp SafeGuard - Place,280000              Legal Services                                                                            Confirmed,A,2023,2
1045,Community and Housing,PENWORTHAM STAGING,TUNEDINSHOWCASE,31-May-23,900,0,186397,Tuned In,190000              Facilities & Management Services,A,2023,2
1046,Capital,W C EVANS AND SONS LTD,E68237,11-May-23,17089.84,0,186487,Disabled Facilities Grant,260000              Human Resources,A,2023,2
1047,"Children, Schools and Family",CARE O LINE,20689,15-May-23,1719.41,0,186615,Family Supp SafeGuard - Place,321100              Social Community Care Supplies & Services - Children,A,2023,2
1048,"Children, Schools and Family",CARE O LINE,20122,24-May-23,1620.5,0,186615,Family Supp SafeGuard - Place,321100              Social Community Care Supplies & Services - Children,A,2023,2
1049,"Children, Schools and Family",CARE O LINE,20020,24-May-23,1533,0,186615,Family Supp SafeGuard - Place,321100              Social Community Care Supplies & Services - Children,A,2023,2
1050,"Children, Schools and Family",CARE O LINE,20878,24-May-23,528.75,0,186615,Family Supp SafeGuard - Place,321100              Social Community Care Supplies & Services - Children,A,2023,2
1051,"Children, Schools and Family",CARE O LINE,20153,30-May-23,1157.5,0,186615,Family Supp SafeGuard - Place,321100              Social Community Care Supplies & Services - Children,A,2023,2
1052,"Children, Schools and Family",CARE O LINE,20092,30-May-23,1620.5,0,186615,Family Supp SafeGuard - Place,321100              Social Community Care Supplies & Services - Children,A,2023,2
1053,"Children, Schools and Family",CARE O LINE,20492,30-May-23,7940.6,0,186615,Family Supp SafeGuard - Place,321100              Social Community Care Supplies & Services - Children,A,2023,2
1054,"Children, Schools and Family",COMPASS FOSTERING LONDON LTD,33842,24-May-23,3808.53,0,186716,UASC LAC Under 18,321100              Social Community Care Supplies & Services - Children,A,2023,2
1055,"Children, Schools and Family",COMPASS FOSTERING LONDON LTD,34015,24-May-23,2891.31,0,186716,UASC LAC Under 18,321100              Social Community Care Supplies & Services - Children,A,2023,2
1056,"Children, Schools and Family",COMPASS FOSTERING LONDON LTD,34719,24-May-23,3897.01,0,186716,UASC LAC Under 18,321100              Social Community Care Supplies & Services - Children,A,2023,2
1057,"Children, Schools and Family",COMPASS FOSTERING LONDON LTD,34983,24-May-23,3771.3,0,186716,UASC LAC Under 18,321100              Social Community Care Supplies & Services - Children,A,2023,2
1058,"Children, Schools and Family",COMPASS FOSTERING LONDON LTD,34015-118260,24-May-23,628.57,0,186716,UASC LAC Under 18,321100              Social Community Care Supplies & Services - Children,A,2023,2
1059,Community and Housing,SUPREME HOMES LTD,966006,10-May-23,1956.8,0,186763,Mental Health Placements,321100              Social Community Care Supplies & Services - Children,A,2023,2
1060,Community and Housing,SUPREME HOMES LTD,30358,16-May-23,4282.12,0,186763,Mental Health Placements,321100              Social Community Care Supplies & Services - Children,A,2023,2
1061,Community and Housing,REDACTED PERSONAL DATA,968998,23-May-23,1336.44,0,186789,Phys/Sens Placements - East,DIRECT PAYMENTS,R,2023,2
1062,"Children, Schools and Family",YOUNG LONDON TODAY,INV-26353,17-May-23,4071.3,0,186890,Placements Over 18,321100              Social Community Care Supplies & Services - Children,A,2023,2
1063,Community and Housing,BLUEBIRD CARE,15018,04-May-23,867.97,0,186946,Older People Placements - East,321000              Social Community Care Supplies & Services - Adult,A,2023,2
1064,Community and Housing,BLUEBIRD CARE,15115,11-May-23,784.19,0,186946,Older People Placements - East,321000              Social Community Care Supplies & Services - Adult,A,2023,2
1065,Community and Housing,BLUEBIRD CARE,15168,24-May-23,867.58,0,186946,Older People Placements - East,321000              Social Community Care Supplies & Services - Adult,A,2023,2
1066,Community and Housing,BLUEBIRD CARE,15164,29-May-23,955.98,0,186946,Older People Placements - East,321000              Social Community Care Supplies & Services - Adult,A,2023,2
1067,Corporate Services,COSMUR CONSTRUCTION (LDN) LTD,SL009976,25-May-23,117804.48,19634.08,187025,Recovery Modernisation Progrm,"390000              Works - Construction, Repair & Maintenance",C,2023,2
1068,Community and Housing,CAREMARK (MERTON),8310,04-May-23,847.16,0,187170,Older People Placements - East,321000              Social Community Care Supplies & Services - Adult,A,2023,2
1069,Community and Housing,CAREMARK (MERTON),8287,08-May-23,875.56,0,187170,Older People Placements - East,321000              Social Community Care Supplies & Services - Adult,A,2023,2
1070,Community and Housing,CAREMARK (MERTON),8403,29-May-23,875.56,0,187170,Older People Placements - East,321000              Social Community Care Supplies & Services - Adult,A,2023,2
1071,Community and Housing,CAREMARK (MERTON),8400,29-May-23,694.68,0,187170,Older People Placements - East,321000              Social Community Care Supplies & Services - Adult,A,2023,2
1072,Community and Housing,GUY'S AND ST THOMAS' NHS FND'TN,3335088,12-May-23,11387.66,0,187184,PH - Sexual Health,310000              Healthcare,A,2023,2
1073,Capital,INSIGHT DIRECT (UK) LTD,2400005888,02-Jun-23,168318.71,28053.12,187252,Planned Replacement Programme,270000              Information Communication Technology,A,2023,2
1074,Community and Housing,KINGS COLLEGE NHS FNDAT'N TST,4210022396,16-May-23,1340.11,0,187326,PH - Sexual Health,310000              Healthcare,A,2023,2
1075,Unassigned,HARRIS PRIMARY ACADEMY MERTON,SCHOOLS 2324/2 A,09-May-23,46695,0,187329,Schools,170000              Education,A,2023,2
1076,"Children, Schools and Family",REDACTED PERSONAL DATA,969729,22-May-23,763.68,0,187336,Child Disabilities - Placement,CSF-DIRECT PAYMENTS,R,2023,2
1077,Corporate Services,REDACTED PERSONAL DATA,162961-A,24-May-23,2100,350,187404,SLLP - Disbursements,280000              Legal Services,R,2023,2
1078,Community and Housing,REDACTED PERSONAL DATA,968977,23-May-23,856.36,0,187457,Learning Disabilities Placemnt,DIRECT PAYMENTS,R,2023,2
1079,Community and Housing,BARTS HEALTH NHS TRUST,480137,16-May-23,858,0,187591,PH - Sexual Health,310000              Healthcare,A,2023,2
1080,Community and Housing,BARTS HEALTH NHS TRUST,480150,16-May-23,858,0,187591,PH - Sexual Health,310000              Healthcare,A,2023,2
1081,Community and Housing,BARTS HEALTH NHS TRUST,480163,16-May-23,858,0,187591,PH - Sexual Health,310000              Healthcare,A,2023,2
1082,Community and Housing,BARTS HEALTH NHS TRUST,483614,16-May-23,858,0,187591,PH - Sexual Health,310000              Healthcare,A,2023,2
1083,Community and Housing,BARTS HEALTH NHS TRUST,483627,16-May-23,858,0,187591,PH - Sexual Health,310000              Healthcare,A,2023,2
1084,Community and Housing,BARTS HEALTH NHS TRUST,483640,16-May-23,858,0,187591,PH - Sexual Health,310000              Healthcare,A,2023,2
1085,Community and Housing,REDACTED PERSONAL DATA,968772,23-May-23,785.64,0,187597,Phys/Sens Placements - East,DIRECT PAYMENTS,R,2023,2
1086,Community and Housing,REDACTED PERSONAL DATA,968953,23-May-23,4454.8,0,187729,Older People Placements - East,DIRECT PAYMENTS,R,2023,2
1087,Community and Housing,CONSENSUS - WALLACE CRESCENT,955634,29-May-23,9952.48,0,187792,Learning Disabilities Placemnt,321017              Nursing & Residential Care Homes,A,2023,2
1088,Community and Housing,CONSENSUS - WALLACE CRESCENT,955675,29-May-23,13529.04,0,187792,Learning Disabilities Placemnt,321017              Nursing & Residential Care Homes,A,2023,2
1089,Community and Housing,CONSENSUS - WALLACE CRESCENT,955711,29-May-23,13016.28,0,187792,Learning Disabilities Placemnt,321017              Nursing & Residential Care Homes,A,2023,2
1090,Community and Housing,CONSENSUS - WALLACE CRESCENT,966048,29-May-23,9952.48,0,187792,Learning Disabilities Placemnt,321017              Nursing & Residential Care Homes,A,2023,2
1091,Community and Housing,CONSENSUS - WALLACE CRESCENT,966089,29-May-23,13529.04,0,187792,Learning Disabilities Placemnt,321017              Nursing & Residential Care Homes,A,2023,2
1092,Community and Housing,CONSENSUS - WALLACE CRESCENT,966123,29-May-23,13016.28,0,187792,Learning Disabilities Placemnt,321017              Nursing & Residential Care Homes,A,2023,2
1093,Community and Housing,REDACTED PERSONAL DATA,968987,23-May-23,556.84,0,187842,Phys/Sens Placements - East,DIRECT PAYMENTS,R,2023,2
1094,Community and Housing,ENHANCEABLE DAY CENTRE,300423NC,19-May-23,686.76,114.46,187936,Learning Disabilities Placemnt,321000              Social Community Care Supplies & Services - Adult,A,2023,2
1095,Community and Housing,ENHANCEABLE DAY CENTRE,300423RH,30-May-23,981.12,163.52,187936,Learning Disabilities Placemnt,321000              Social Community Care Supplies & Services - Adult,A,2023,2
1096,Community and Housing,REDACTED PERSONAL DATA,968723,23-May-23,721.04,0,188010,Learning Disabilities Placemnt,DIRECT PAYMENTS,R,2023,2
1097,Community and Housing,REDACTED PERSONAL DATA,968948,23-May-23,3418.88,0,188043,Phys/Sens Placements - East,DIRECT PAYMENTS,R,2023,2
1098,"Children, Schools and Family",REDACTED PERSONAL DATA,963116,04-May-23,538.33,0,188093,Placements Under 18,321100              Social Community Care Supplies & Services - Children,R,2023,2
1099,"Children, Schools and Family",REDACTED PERSONAL DATA,963230,04-May-23,817.3,0,188093,Placements Under 18,321100              Social Community Care Supplies & Services - Children,R,2023,2
1100,"Children, Schools and Family",REDACTED PERSONAL DATA,967051,12-May-23,538.33,0,188093,Placements Under 18,321100              Social Community Care Supplies & Services - Children,R,2023,2
1101,"Children, Schools and Family",REDACTED PERSONAL DATA,967166,12-May-23,817.3,0,188093,Placements Under 18,321100              Social Community Care Supplies & Services - Children,R,2023,2
1102,"Children, Schools and Family",REDACTED PERSONAL DATA,969487,19-May-23,817.3,0,188093,Placements Under 18,321100              Social Community Care Supplies & Services - Children,R,2023,2
1103,"Children, Schools and Family",REDACTED PERSONAL DATA,970878,25-May-23,817.3,0,188093,Placements Under 18,321100              Social Community Care Supplies & Services - Children,R,2023,2
1104,"Children, Schools and Family",REDACTED PERSONAL DATA,963153,04-May-23,504.5,0,188095,Placements Under 18,321100              Social Community Care Supplies & Services - Children,R,2023,2
1105,"Children, Schools and Family",REDACTED PERSONAL DATA,967087,12-May-23,504.5,0,188095,Placements Under 18,321100              Social Community Care Supplies & Services - Children,R,2023,2
1106,"Children, Schools and Family",REDACTED PERSONAL DATA,969406,19-May-23,504.5,0,188095,Placements Under 18,321100              Social Community Care Supplies & Services - Children,R,2023,2
1107,"Children, Schools and Family",REDACTED PERSONAL DATA,970799,25-May-23,504.5,0,188095,Placements Under 18,321100              Social Community Care Supplies & Services - Children,R,2023,2
1108,Unassigned,CAYSH,2018/19 CORR,22-May-23,1625,0,188154,Prov. for Bad & Doubtful Debts,321017              Nursing & Residential Care Homes,A,2023,2
1109,Community and Housing,REDACTED PERSONAL DATA,968889,23-May-23,970.52,0,188160,Phys/Sens Placements - East,DIRECT PAYMENTS,R,2023,2
1110,Community and Housing,REDACTED PERSONAL DATA,968963,23-May-23,600,0,188230,Learning Disabilities Placemnt,DIRECT PAYMENTS,R,2023,2
1111,Community and Housing,TM HOUSE AND HOSTELS LTD,MSD/010523,12-May-23,1080,180,188251,Older People Placements - East,321000              Social Community Care Supplies & Services - Adult,A,2023,2
1112,Community and Housing,TM HOUSE AND HOSTELS LTD,MGG/010323-WF,15-May-23,1108.8,184.8,188251,Hospital Discharge Grant,321000              Social Community Care Supplies & Services - Adult,A,2023,2
1113,Community and Housing,TM HOUSE AND HOSTELS LTD,MGG/010423,19-May-23,1227.6,204.6,188251,Housing Strategy,321000              Social Community Care Supplies & Services - Adult,A,2023,2
1114,Community and Housing,TM HOUSE AND HOSTELS LTD,MGG/010523,23-May-23,5940,990,188251,Housing Strategy,321000              Social Community Care Supplies & Services - Adult,A,2023,2
1115,Community and Housing,TM HOUSE AND HOSTELS LTD,MC/010523,23-May-23,24738,4123,188251,Bed & Breakfast - accomm,321000              Social Community Care Supplies & Services - Adult,A,2023,2
1116,Community and Housing,TM HOUSE AND HOSTELS LTD,MGG/010423A.,24-May-23,6138,1023,188251,Housing Strategy,321000              Social Community Care Supplies & Services - Adult,A,2023,2
1117,Community and Housing,KINGSTON HOSP NHS FOUNDATION,78081561,12-May-23,56770,0,188280,PH - Sexual Health,310000              Healthcare,A,2023,2
1118,Community and Housing,KINGSTON HOSP NHS FOUNDATION,78081876,12-May-23,56770,0,188280,PH - Sexual Health,310000              Healthcare,A,2023,2
1119,Community and Housing,STENFORD PROPERTY LTD,324529,02-Jun-23,27690,0,188293,Bed & Breakfast - accomm,321000              Social Community Care Supplies & Services - Adult,A,2023,2
1120,"Children, Schools and Family",REDACTED PERSONAL DATA,969612,22-May-23,1272.8,0,188642,Child Disabilities - Placement,CSF-DIRECT PAYMENTS,R,2023,2
1121,Community and Housing,REDACTED PERSONAL DATA,968740,23-May-23,869.84,0,188643,Phys/Sens Placements - East,DIRECT PAYMENTS,R,2023,2
1122,Community and Housing,REDACTED PERSONAL DATA,968841,23-May-23,763.68,0,188675,Phys/Sens Placements - East,DIRECT PAYMENTS,R,2023,2
1123,Community and Housing,REDACTED PERSONAL DATA,968876,23-May-23,568.76,0,188692,Learning Disabilities Placemnt,DIRECT PAYMENTS,R,2023,2
1124,Community and Housing,REDACTED PERSONAL DATA,968976,23-May-23,1781.92,0,188868,Older People Placements - East,DIRECT PAYMENTS,R,2023,2
1125,"Children, Schools and Family",REDACTED PERSONAL DATA,969642,22-May-23,3008.24,0,188998,Child Disabilities - Placement,CSF-DIRECT PAYMENTS,R,2023,2
1126,Community and Housing,REDACTED PERSONAL DATA,968726,23-May-23,850.4,0,189003,Older People Placements - East,DIRECT PAYMENTS,R,2023,2
1127,Community and Housing,REDACTED PERSONAL DATA,969040,23-May-23,4184.28,0,189093,Older People Placements - East,DIRECT PAYMENTS,R,2023,2
1128,"Children, Schools and Family",REDACTED PERSONAL DATA,971069,25-May-23,895,0,189162,Placements Over 18,321100              Social Community Care Supplies & Services - Children,R,2023,2
1129,"Children, Schools and Family",REDACTED PERSONAL DATA,963223,04-May-23,504.5,0,189194,Placements Under 18,321100              Social Community Care Supplies & Services - Children,R,2023,2
1130,"Children, Schools and Family",REDACTED PERSONAL DATA,967159,12-May-23,504.5,0,189194,Placements Under 18,321100              Social Community Care Supplies & Services - Children,R,2023,2
1131,"Children, Schools and Family",REDACTED PERSONAL DATA,969479,19-May-23,504.5,0,189194,Placements Under 18,321100              Social Community Care Supplies & Services - Children,R,2023,2
1132,"Children, Schools and Family",REDACTED PERSONAL DATA,970870,25-May-23,504.5,0,189194,Placements Under 18,321100              Social Community Care Supplies & Services - Children,R,2023,2
1133,Unassigned,DAC BEACHCROFT CLAIMS LIMITED,03-10200184,25-May-23,1908,318,189242,Corporate Services,280000              Legal Services,A,2023,2
1134,Community and Housing,ALDERWOOD LIMITED,965801,10-May-23,24156,0,189252,Learning Disabilities Placemnt,321017              Nursing & Residential Care Homes,A,2023,2
1135,Community and Housing,REDACTED PERSONAL DATA,969025,23-May-23,4136.96,0,189256,Older People Placements - East,DIRECT PAYMENTS,R,2023,2
1136,"Children, Schools and Family",REDACTED PERSONAL DATA,969661,22-May-23,827.32,0,189270,Child Disabilities - Placement,CSF-DIRECT PAYMENTS,R,2023,2
1137,Community and Housing,THE NELSON MEDICAL PRACTICE,JAN/FEB/MAR23QTR,17-May-23,2440,0,189290,PH - Sexual Health,310000              Healthcare,A,2023,2
1138,"Children, Schools and Family",REDACTED PERSONAL DATA,963124,04-May-23,504.5,0,189297,Placements Under 18,321100              Social Community Care Supplies & Services - Children,R,2023,2
1139,"Children, Schools and Family",REDACTED PERSONAL DATA,967058,12-May-23,504.5,0,189297,Placements Under 18,321100              Social Community Care Supplies & Services - Children,R,2023,2
1140,"Children, Schools and Family",REDACTED PERSONAL DATA,969375,19-May-23,504.5,0,189297,Placements Under 18,321100              Social Community Care Supplies & Services - Children,R,2023,2
1141,"Children, Schools and Family",REDACTED PERSONAL DATA,970769,25-May-23,504.5,0,189297,Placements Under 18,321100              Social Community Care Supplies & Services - Children,R,2023,2
1142,Community and Housing,REDACTED PERSONAL DATA,968871,23-May-23,4450.8,0,189336,Older People Placements - East,DIRECT PAYMENTS,R,2023,2
1143,Corporate Services,Global Media Group Services Ltd,C-INV189048,16-May-23,4320,720,189370,Cost of Living Fund,190000              Facilities & Management Services,A,2023,2
1144,Corporate Services,Global Media Group Services Ltd,C-INV199770,17-May-23,2507.15,417.86,189370,Cost of Living Fund,190000              Facilities & Management Services,A,2023,2
1145,"Children, Schools and Family",Chelsea Hall School,SUM23-017,22-May-23,21575,0,189406,Non-Delegated Statements,170000              Education,A,2023,2
1146,"Children, Schools and Family",Chelsea Hall School,SUM23-025,22-May-23,12975,0,189406,Non-Delegated Statements,170000              Education,A,2023,2
1147,"Children, Schools and Family",Chelsea Hall School,SUM23-020,22-May-23,13295,0,189406,Non-Delegated Statements,170000              Education,A,2023,2
1148,"Children, Schools and Family",Chelsea Hall School,SUM23-026,22-May-23,12975,0,189406,Non-Delegated Statements,170000              Education,A,2023,2
1149,"Children, Schools and Family",Chelsea Hall School,SUM23-018,22-May-23,16650,0,189406,Non-Delegated Statements,170000              Education,A,2023,2
1150,"Children, Schools and Family",Chelsea Hall School,SUM23-024,22-May-23,12975,0,189406,Non-Delegated Statements,170000              Education,A,2023,2
1151,"Children, Schools and Family",Chelsea Hall School,SUM23-022,22-May-23,16650,0,189406,Non-Delegated Statements,170000              Education,A,2023,2
1152,"Children, Schools and Family",Chelsea Hall School,SUM23-022A,22-May-23,8160,0,189406,Non-Delegated Statements,170000              Education,A,2023,2
1153,"Children, Schools and Family",Chelsea Hall School,SUM23-023,22-May-23,16650,0,189406,Non-Delegated Statements,170000              Education,A,2023,2
1154,"Children, Schools and Family",Chelsea Hall School,SUM23-019,24-May-23,29060,0,189406,Non-Delegated Statements,170000              Education,A,2023,2
1155,Community and Housing,Greenwich Leisure Limited,SI-195767,24-May-23,2545.41,0,189492,Com Care Placement Contingency,290000              Arts & Leisure Services                                                                   confirmed,A,2023,2
1156,Community and Housing,REDACTED PERSONAL DATA,968918,23-May-23,3179.08,0,189595,Older People Placements - East,DIRECT PAYMENTS,R,2023,2
1157,Environment and Regeneration,COBALT PROJECT MANAGEMENT LTD,HOUSING-002,15-May-23,2400,400,189607,Housing Delivery Programme,"390000              Works - Construction, Repair & Maintenance",A,2023,2
1158,Community and Housing,REDACTED PERSONAL DATA,RNWL 110A HAYDON,17-May-23,2000,0,189639,Homelessness Prevention,321000              Social Community Care Supplies & Services - Adult,R,2023,2
1159,Community and Housing,REDACTED PERSONAL DATA,969062,23-May-23,509.12,0,189662,Learning Disabilities Placemnt,DIRECT PAYMENTS,R,2023,2
1160,Community and Housing,REDACTED PERSONAL DATA,968767,23-May-23,885.12,0,189671,Learning Disabilities Placemnt,DIRECT PAYMENTS,R,2023,2
1161,Community and Housing,REDACTED PERSONAL DATA,968763,23-May-23,764,0,189751,Older People Placements - East,DIRECT PAYMENTS,R,2023,2
1162,Community and Housing,KLEARWATER ADULT SERVICES,965783,10-May-23,9476,0,189849,Learning Disabilities Placemnt,321017              Nursing & Residential Care Homes,A,2023,2
1163,Community and Housing,KLEARWATER ADULT SERVICES,966134,10-May-23,5941.96,0,189849,Learning Disabilities Placemnt,321017              Nursing & Residential Care Homes,A,2023,2
1164,Community and Housing,REDACTED PERSONAL DATA,968743,23-May-23,569.76,0,190013,Learning Disabilities Placemnt,DIRECT PAYMENTS,R,2023,2
1165,"Children, Schools and Family",REDACTED PERSONAL DATA,969809,22-May-23,795.52,0,190137,Child Disabilities - Placement,DIRECT PAYMENTS,R,2023,2
1166,Community and Housing,REDACTED PERSONAL DATA,968813,23-May-23,670.16,0,190144,Phys/Sens Placements - East,DIRECT PAYMENTS,R,2023,2
1167,Community and Housing,REDACTED PERSONAL DATA,969066,23-May-23,722.32,0,190153,Learning Disabilities Placemnt,DIRECT PAYMENTS,R,2023,2
1168,Community and Housing,REDACTED PERSONAL DATA,969083,23-May-23,1152.4,0,190223,Learning Disabilities Placemnt,DIRECT PAYMENTS,R,2023,2
1169,Unassigned,LGPS CIV LTD,1888,30-May-23,6207.88,1034.65,190301,Investment Management Fee,200000              Financial Services,A,2023,2
1170,Environment and Regeneration,CROYDON COUNCIL,3021164,18-May-23,330042.29,55007.05,190319,Waste Disposal,OLA,A,2023,2
1171,Environment and Regeneration,CROYDON COUNCIL,3022143,05-Jun-23,74456.36,12409.4,190319,Garth Road Site,OLA,A,2023,2
1172,Environment and Regeneration,SOUTHERN GREEN LIMITED,INV-1422,22-May-23,2854.5,475.75,190329,Greenspaces Team (General),"390000              Works - Construction, Repair & Maintenance",A,2023,2
1173,Community and Housing,LIFEWAYS COMMUNITY CARE LTD,D020024160,16-May-23,2589.32,0,190388,Learning Disabilities Placemnt,321000              Social Community Care Supplies & Services - Adult,A,2023,2
1174,Community and Housing,LIFEWAYS COMMUNITY CARE LTD,D020024344,18-May-23,2589.32,0,190388,Learning Disabilities Placemnt,321000              Social Community Care Supplies & Services - Adult,A,2023,2
1175,Community and Housing,LIFEWAYS COMMUNITY CARE LTD,D020024777,18-May-23,2589.32,0,190388,Learning Disabilities Placemnt,321000              Social Community Care Supplies & Services - Adult,A,2023,2
1176,Community and Housing,LIFEWAYS COMMUNITY CARE LTD,D020024502,18-May-23,2589.32,0,190388,Learning Disabilities Placemnt,321000              Social Community Care Supplies & Services - Adult,A,2023,2
1177,Community and Housing,LIFEWAYS COMMUNITY CARE LTD,D020024853,18-May-23,2589.32,0,190388,Learning Disabilities Placemnt,321000              Social Community Care Supplies & Services - Adult,A,2023,2
